{"text_format":"1","workbook":"xlsx","n_sheets":3,"sheets":["Dados","Cadastro","Tabela Preço"],"not_rendered":{"charts":0,"images":1,"macros":1,"external_links":0,"defined_names":0,"comments":0,"pivot_tables":0},"unopened":[],"bounds":{"document_bytes":16777216,"sheet_cells":100000,"rows_first":2000,"rows_last":500,"rows_between":2000,"halvings":0,"cell_chars":16384,"cell_head_chars":4096},"cells_cut":0,"cells_raw":0,"read":"whole","date_system":"1900"}

{"sheet":"Dados","index":0,"n_rows":23,"n_cols":8,"rows_kept":23,"cut":false,"hidden":false,"merged":[]}
["Forma Pagamento","Quinzena","Mês","Local da pasta Jagar","Vendedor","Fone Vendedor","Frete","Coleção"]
["Boleto","Primeira","Janeiro","C:\\Users\\Guilherme\\Desktop\\Pedidos Jagar","Ernani",1,"CIF","Inverno 2016"]
["Cheque","Segunda","Fevereiro",null,"Ernani",2,"FOB","Verão 2016/17"]
["Depósito",null,"Março",null,"Ernani",3]
["Outro",null,"Abril",null,"Ernani",4]
[null,null,"Maio",null,"Ernani",5]
[null,null,"Junho",null,"Ernani",6]
[null,null,"Julho",null,"Ernani",7]
[null,null,"Agosto",null,"Ernani",8]
[null,null,"Setembro",null,"Ernani",9]
[null,null,"Outubro",null,"Ernani",0]
[null,null,"Novembro",null,"Ernani"]
[null,null,"Dezembro",null,"Ernani"]
[null,null,null,null,"Ernani"]
[null,null,null,null,"Ernani"]
[null,null,null,null,"Ernani"]
[null,null,null,null,"Ernani"]
[null,null,null,null,"Ernani"]
[null,null,null,null,"Ernani"]
[null,null,null,null,"Ernani"]
[null,null,null,null,"Ernani"]
[null,null,null,null,"Ernani"]
[null,null,null,null,"Ernani"]

{"sheet":"Cadastro","index":1,"n_rows":164,"n_cols":67,"rows_kept":164,"cut":false,"hidden":false,"merged":[[163,33,163,34],[163,35,163,36],[163,37,163,38],[163,39,163,43],[163,44,163,50],[163,1,163,3],[163,4,163,6],[163,17,163,28],[163,29,163,30],[163,31,163,32],[162,31,162,32],[162,33,162,34],[162,35,162,36],[162,37,162,38],[162,39,162,43],[162,44,162,50],[161,33,161,34],[161,35,161,36],[161,37,161,38],[161,39,161,43],[161,44,161,50],[162,1,162,3],[162,4,162,6],[162,17,162,28],[162,29,162,30],[161,1,161,3],[161,4,161,6],[161,17,161,28],[161,29,161,30],[161,31,161,32],[160,31,160,32],[160,33,160,34],[160,35,160,36],[160,37,160,38],[160,39,160,43],[160,44,160,50],[159,33,159,34],[159,35,159,36],[159,37,159,38],[159,39,159,43],[159,44,159,50],[160,1,160,3],[160,4,160,6],[160,17,160,28],[160,29,160,30],[159,1,159,3],[159,4,159,6],[159,17,159,28],[159,29,159,30],[159,31,159,32],[158,31,158,32],[158,33,158,34],[158,35,158,36],[158,37,158,38],[158,39,158,43],[158,44,158,50],[157,33,157,34],[157,35,157,36],[157,37,157,38],[157,39,157,43],[157,44,157,50],[158,1,158,3],[158,4,158,6],[158,17,158,28],[158,29,158,30],[157,1,157,3],[157,4,157,6],[157,17,157,28],[157,29,157,30],[157,31,157,32],[156,31,156,32],[156,33,156,34],[156,35,156,36],[156,37,156,38],[156,39,156,43],[156,44,156,50],[155,33,155,34],[155,35,155,36],[155,37,155,38],[155,39,155,43],[155,44,155,50],[156,1,156,3],[156,4,156,6],[156,17,156,28],[156,29,156,30],[155,1,155,3],[155,4,155,6],[155,17,155,28],[155,29,155,30],[155,31,155,32],[154,31,154,32],[154,33,154,34],[154,35,154,36],[154,37,154,38],[154,39,154,43],[154,44,154,50],[153,33,153,34],[153,35,153,36],[153,37,153,38],[153,39,153,43],[153,44,153,50],[154,1,154,3],[154,4,154,6],[154,17,154,28],[154,29,154,30],[153,1,153,3],[153,4,153,6],[153,17,153,28],[153,29,153,30],[153,31,153,32],[152,31,152,32],[152,33,152,34],[152,35,152,36],[152,37,152,38],[152,39,152,43],[152,44,152,50],[151,33,151,34],[151,35,151,36],[151,37,151,38],[151,39,151,43],[151,44,151,50],[152,1,152,3],[152,4,152,6],[152,17,152,28],[152,29,152,30],[151,1,151,3],[151,4,151,6],[151,17,151,28],[151,29,151,30],[151,31,151,32],[150,31,150,32],[150,33,150,34],[150,35,150,36],[150,37,150,38],[150,39,150,43],[150,44,150,50],[149,33,149,34],[149,35,149,36],[149,37,149,38],[149,39,149,43],[149,44,149,50],[150,1,150,3],[150,4,150,6],[150,17,150,28],[150,29,150,30],[149,1,149,3],[149,4,149,6],[149,17,149,28],[149,29,149,30],[149,31,149,32],[148,31,148,32],[148,33,148,34],[148,35,148,36],[148,37,148,38],[148,39,148,43],[148,44,148,50],[147,33,147,34],[147,35,147,36],[147,37,147,38],[147,39,147,43],[147,44,147,50],[148,1,148,3],[148,4,148,6],[148,17,148,28],[148,29,148,30],[147,1,147,3],[147,4,147,6],[147,17,147,28],[147,29,147,30],[147,31,147,32],[146,31,146,32],[146,33,146,34],[146,35,146,36],[146,37,146,38],[146,39,146,43],[146,44,146,50],[145,33,145,34],[145,35,145,36],[145,37,145,38],[145,39,145,43],[145,44,145,50],[146,1,146,3],[146,4,146,6],[146,17,146,28],[146,29,146,30],[145,1,145,3],[145,4,145,6],[145,17,145,28],[145,29,145,30],[145,31,145,32],[144,31,144,32],[144,33,144,34],[144,35,144,36],[144,37,144,38],[144,39,144,43],[144,44,144,50],[143,33,143,34],[143,35,143,36],[143,37,143,38],[143,39,143,43],[143,44,143,50],[144,1,144,3],[144,4,144,6],[144,17,144,28],[144,29,144,30],[143,1,143,3],[143,4,143,6],[143,17,143,28],[143,29,143,30],[143,31,143,32],[142,31,142,32],[142,33,142,34],[142,35,142,36],[142,37,142,38],[142,39,142,43],[142,44,142,50],[141,33,141,34],[141,35,141,36],[141,37,141,38],[141,39,141,43],[141,44,141,50],[142,1,142,3],[142,4,142,6],[142,17,142,28],[142,29,142,30],[141,1,141,3],[141,4,141,6],[141,17,141,28],[141,29,141,30],[141,31,141,32],[140,31,140,32],[140,33,140,34],[140,35,140,36],[140,37,140,38],[140,39,140,43],[140,44,140,50],[139,33,139,34],[139,35,139,36],[139,37,139,38],[139,39,139,43],[139,44,139,50],[140,1,140,3],[140,4,140,6],[140,17,140,28],[140,29,140,30],[139,1,139,3],[139,4,139,6],[139,17,139,28],[139,29,139,30],[139,31,139,32],[138,31,138,32],[138,33,138,34],[138,35,138,36],[138,37,138,38],[138,39,138,43],[138,44,138,50],[137,33,137,34],[137,35,137,36],[137,37,137,38],[137,39,137,43],[137,44,137,50],[138,1,138,3],[138,4,138,6],[138,17,138,28],[138,29,138,30],[137,1,137,3],[137,4,137,6],[137,17,137,28],[137,29,137,30],[137,31,137,32],[136,31,136,32],[136,33,136,34],[136,35,136,36],[136,37,136,38],[136,39,136,43],[136,44,136,50],[135,33,135,34],[135,35,135,36],[135,37,135,38],[135,39,135,43],[135,44,135,50],[136,1,136,3],[136,4,136,6],[136,17,136,28],[136,29,136,30],[135,1,135,3],[135,4,135,6],[135,17,135,28],[135,29,135,30],[135,31,135,32],[134,31,134,32],[134,33,134,34],[134,35,134,36],[134,37,134,38],[134,39,134,43],[134,44,134,50],[133,33,133,34],[133,35,133,36],[133,37,133,38],[133,39,133,43],[133,44,133,50],[134,1,134,3],[134,4,134,6],[134,17,134,28],[134,29,134,30],[133,1,133,3],[133,4,133,6],[133,17,133,28],[133,29,133,30],[133,31,133,32],[132,31,132,32],[132,33,132,34],[132,35,132,36],[132,37,132,38],[132,39,132,43],[132,44,132,50],[131,33,131,34],[131,35,131,36],[131,37,131,38],[131,39,131,43],[131,44,131,50],[132,1,132,3],[132,4,132,6],[132,17,132,28],[132,29,132,30],[131,1,131,3],[131,4,131,6],[131,17,131,28],[131,29,131,30],[131,31,131,32],[130,31,130,32],[130,33,130,34],[130,35,130,36],[130,37,130,38],[130,39,130,43],[130,44,130,50],[129,33,129,34],[129,35,129,36],[129,37,129,38],[129,39,129,43],[129,44,129,50],[130,1,130,3],[130,4,130,6],[130,17,130,28],[130,29,130,30],[129,1,129,3],[129,4,129,6],[129,17,129,28],[129,29,129,30],[129,31,129,32],[128,31,128,32],[128,33,128,34],[128,35,128,36],[128,37,128,38],[128,39,128,43],[128,44,128,50],[127,33,127,34],[127,35,127,36],[127,37,127,38],[127,39,127,43],[127,44,127,50],[128,1,128,3],[128,4,128,6],[128,17,128,28],[128,29,128,30],[127,1,127,3],[127,4,127,6],[127,17,127,28],[127,29,127,30],[127,31,127,32],[126,31,126,32],[126,33,126,34],[126,35,126,36],[126,37,126,38],[126,39,126,43],[126,44,126,50],[125,33,125,34],[125,35,125,36],[125,37,125,38],[125,39,125,43],[125,44,125,50],[126,1,126,3],[126,4,126,6],[126,17,126,28],[126,29,126,30],[125,1,125,3],[125,4,125,6],[125,17,125,28],[125,29,125,30],[125,31,125,32],[124,31,124,32],[124,33,124,34],[124,35,124,36],[124,37,124,38],[124,39,124,43],[124,44,124,50],[123,33,123,34],[123,35,123,36],[123,37,123,38],[123,39,123,43],[123,44,123,50],[124,1,124,3],[124,4,124,6],[124,17,124,28],[124,29,124,30],[123,1,123,3],[123,4,123,6],[123,17,123,28],[123,29,123,30],[123,31,123,32],[122,31,122,32],[122,33,122,34],[122,35,122,36],[122,37,122,38],[122,39,122,43],[122,44,122,50],[121,33,121,34],[121,35,121,36],[121,37,121,38],[121,39,121,43],[121,44,121,50],[122,1,122,3],[122,4,122,6],[122,17,122,28],[122,29,122,30],[121,1,121,3],[121,4,121,6],[121,17,121,28],[121,29,121,30],[121,31,121,32],[120,31,120,32],[120,33,120,34],[120,35,120,36],[120,37,120,38],[120,39,120,43],[120,44,120,50],[119,33,119,34],[119,35,119,36],[119,37,119,38],[119,39,119,43],[119,44,119,50],[120,1,120,3],[120,4,120,6],[120,17,120,28],[120,29,120,30],[119,1,119,3],[119,4,119,6],[119,17,119,28],[119,29,119,30],[119,31,119,32],[118,31,118,32],[118,33,118,34],[118,35,118,36],[118,37,118,38],[118,39,118,43],[118,44,118,50],[117,33,117,34],[117,35,117,36],[117,37,117,38],[117,39,117,43],[117,44,117,50],[118,1,118,3],[118,4,118,6],[118,17,118,28],[118,29,118,30],[117,1,117,3],[117,4,117,6],[117,17,117,28],[117,29,117,30],[117,31,117,32],[116,31,116,32],[116,33,116,34],[116,35,116,36],[116,37,116,38],[116,39,116,43],[116,44,116,50],[115,33,115,34],[115,35,115,36],[115,37,115,38],[115,39,115,43],[115,44,115,50],[116,1,116,3],[116,4,116,6],[116,17,116,28],[116,29,116,30],[115,1,115,3],[115,4,115,6],[115,17,115,28],[115,29,115,30],[115,31,115,32],[114,31,114,32],[114,33,114,34],[114,35,114,36],[114,37,114,38],[114,39,114,43],[114,44,114,50],[113,33,113,34],[113,35,113,36],[113,37,113,38],[113,39,113,43],[113,44,113,50],[114,1,114,3],[114,4,114,6],[114,17,114,28],[114,29,114,30],[113,1,113,3],[113,4,113,6],[113,17,113,28],[113,29,113,30],[113,31,113,32],[112,31,112,32],[112,33,112,34],[112,35,112,36],[112,37,112,38],[112,39,112,43],[112,44,112,50],[111,33,111,34],[111,35,111,36],[111,37,111,38],[111,39,111,43],[111,44,111,50],[112,1,112,3],[112,4,112,6],[112,17,112,28],[112,29,112,30],[111,1,111,3],[111,4,111,6],[111,17,111,28],[111,29,111,30],[111,31,111,32],[110,31,110,32],[110,33,110,34],[110,35,110,36],[110,37,110,38],[110,39,110,43],[110,44,110,50],[109,33,109,34],[109,35,109,36],[109,37,109,38],[109,39,109,43],[109,44,109,50],[110,1,110,3],[110,4,110,6],[110,17,110,28],[110,29,110,30],[109,1,109,3],[109,4,109,6],[109,17,109,28],[109,29,109,30],[109,31,109,32],[108,31,108,32],[108,33,108,34],[108,35,108,36],[108,37,108,38],[108,39,108,43],[108,44,108,50],[107,33,107,34],[107,35,107,36],[107,37,107,38],[107,39,107,43],[107,44,107,50],[108,1,108,3],[108,4,108,6],[108,17,108,28],[108,29,108,30],[107,1,107,3],[107,4,107,6],[107,17,107,28],[107,29,107,30],[107,31,107,32],[106,31,106,32],[106,33,106,34],[106,35,106,36],[106,37,106,38],[106,39,106,43],[106,44,106,50],[105,33,105,34],[105,35,105,36],[105,37,105,38],[105,39,105,43],[105,44,105,50],[106,1,106,3],[106,4,106,6],[106,17,106,28],[106,29,106,30],[105,1,105,3],[105,4,105,6],[105,17,105,28],[105,29,105,30],[105,31,105,32],[104,31,104,32],[104,33,104,34],[104,35,104,36],[104,37,104,38],[104,39,104,43],[104,44,104,50],[103,33,103,34],[103,35,103,36],[103,37,103,38],[103,39,103,43],[103,44,103,50],[104,1,104,3],[104,4,104,6],[104,17,104,28],[104,29,104,30],[103,1,103,3],[103,4,103,6],[103,17,103,28],[103,29,103,30],[103,31,103,32],[102,31,102,32],[102,33,102,34],[102,35,102,36],[102,37,102,38],[102,39,102,43],[102,44,102,50],[101,33,101,34],[101,35,101,36],[101,37,101,38],[101,39,101,43],[101,44,101,50],[102,1,102,3],[102,4,102,6],[102,17,102,28],[102,29,102,30],[101,1,101,3],[101,4,101,6],[101,17,101,28],[101,29,101,30],[101,31,101,32],[100,31,100,32],[100,33,100,34],[100,35,100,36],[100,37,100,38],[100,39,100,43],[100,44,100,50],[99,33,99,34],[99,35,99,36],[99,37,99,38],[99,39,99,43],[99,44,99,50],[100,1,100,3],[100,4,100,6],[100,17,100,28],[100,29,100,30],[99,1,99,3],[99,4,99,6],[99,17,99,28],[99,29,99,30],[99,31,99,32],[98,31,98,32],[98,33,98,34],[98,35,98,36],[98,37,98,38],[98,39,98,43],[98,44,98,50],[97,33,97,34],[97,35,97,36],[97,37,97,38],[97,39,97,43],[97,44,97,50],[98,1,98,3],[98,4,98,6],[98,17,98,28],[98,29,98,30],[97,1,97,3],[97,4,97,6],[97,17,97,28],[97,29,97,30],[97,31,97,32],[96,31,96,32],[96,33,96,34],[96,35,96,36],[96,37,96,38],[96,39,96,43],[96,44,96,50],[95,33,95,34],[95,35,95,36],[95,37,95,38],[95,39,95,43],[95,44,95,50],[96,1,96,3],[96,4,96,6],[96,17,96,28],[96,29,96,30],[95,1,95,3],[95,4,95,6],[95,17,95,28],[95,29,95,30],[95,31,95,32],[94,31,94,32],[94,33,94,34],[94,35,94,36],[94,37,94,38],[94,39,94,43],[94,44,94,50],[93,33,93,34],[93,35,93,36],[93,37,93,38],[93,39,93,43],[93,44,93,50],[94,1,94,3],[94,4,94,6],[94,17,94,28],[94,29,94,30],[93,1,93,3],[93,4,93,6],[93,17,93,28],[93,29,93,30],[93,31,93,32],[92,31,92,32],[92,33,92,34],[92,35,92,36],[92,37,92,38],[92,39,92,43],[92,44,92,50],[91,33,91,34],[91,35,91,36],[91,37,91,38],[91,39,91,43],[91,44,91,50],[92,1,92,3],[92,4,92,6],[92,17,92,28],[92,29,92,30],[91,1,91,3],[91,4,91,6],[91,17,91,28],[91,29,91,30],[91,31,91,32],[90,31,90,32],[90,33,90,34],[90,35,90,36],[90,37,90,38],[90,39,90,43],[90,44,90,50],[89,33,89,34],[89,35,89,36],[89,37,89,38],[89,39,89,43],[89,44,89,50],[90,1,90,3],[90,4,90,6],[90,17,90,28],[90,29,90,30],[89,1,89,3],[89,4,89,6],[89,17,89,28],[89,29,89,30],[89,31,89,32],[88,31,88,32],[88,33,88,34],[88,35,88,36],[88,37,88,38],[88,39,88,43],[88,44,88,50],[87,33,87,34],[87,35,87,36],[87,37,87,38],[87,39,87,43],[87,44,87,50],[88,1,88,3],[88,4,88,6],[88,17,88,28],[88,29,88,30],[87,1,87,3],[87,4,87,6],[87,17,87,28],[87,29,87,30],[87,31,87,32],[86,31,86,32],[86,33,86,34],[86,35,86,36],[86,37,86,38],[86,39,86,43],[86,44,86,50],[85,33,85,34],[85,35,85,36],[85,37,85,38],[85,39,85,43],[85,44,85,50],[86,1,86,3],[86,4,86,6],[86,17,86,28],[86,29,86,30],[85,1,85,3],[85,4,85,6],[85,17,85,28],[85,29,85,30],[85,31,85,32],[84,31,84,32],[84,33,84,34],[84,35,84,36],[84,37,84,38],[84,39,84,43],[84,44,84,50],[83,33,83,34],[83,35,83,36],[83,37,83,38],[83,39,83,43],[83,44,83,50],[84,1,84,3],[84,4,84,6],[84,17,84,28],[84,29,84,30],[83,1,83,3],[83,4,83,6],[83,17,83,28],[83,29,83,30],[83,31,83,32],[82,31,82,32],[82,33,82,34],[82,35,82,36],[82,37,82,38],[82,39,82,43],[82,44,82,50],[81,33,81,34],[81,35,81,36],[81,37,81,38],[81,39,81,43],[81,44,81,50],[82,1,82,3],[82,4,82,6],[82,17,82,28],[82,29,82,30],[81,1,81,3],[81,4,81,6],[81,17,81,28],[81,29,81,30],[81,31,81,32],[80,31,80,32],[80,33,80,34],[80,35,80,36],[80,37,80,38],[80,39,80,43],[80,44,80,50],[79,33,79,34],[79,35,79,36],[79,37,79,38],[79,39,79,43],[79,44,79,50],[80,1,80,3],[80,4,80,6],[80,17,80,28],[80,29,80,30],[79,1,79,3],[79,4,79,6],[79,17,79,28],[79,29,79,30],[79,31,79,32],[78,31,78,32],[78,33,78,34],[78,35,78,36],[78,37,78,38],[78,39,78,43],[78,44,78,50],[77,33,77,34],[77,35,77,36],[77,37,77,38],[77,39,77,43],[77,44,77,50],[78,1,78,3],[78,4,78,6],[78,17,78,28],[78,29,78,30],[77,1,77,3],[77,4,77,6],[77,17,77,28],[77,29,77,30],[77,31,77,32],[76,31,76,32],[76,33,76,34],[76,35,76,36],[76,37,76,38],[76,39,76,43],[76,44,76,50],[75,33,75,34],[75,35,75,36],[75,37,75,38],[75,39,75,43],[75,44,75,50],[76,1,76,3],[76,4,76,6],[76,17,76,28],[76,29,76,30],[75,1,75,3],[75,4,75,6],[75,17,75,28],[75,29,75,30],[75,31,75,32],[74,31,74,32],[74,33,74,34],[74,35,74,36],[74,37,74,38],[74,39,74,43],[74,44,74,50],[73,33,73,34],[73,35,73,36],[73,37,73,38],[73,39,73,43],[73,44,73,50],[74,1,74,3],[74,4,74,6],[74,17,74,28],[74,29,74,30],[73,1,73,3],[73,4,73,6],[73,17,73,28],[73,29,73,30],[73,31,73,32],[72,31,72,32],[72,33,72,34],[72,35,72,36],[72,37,72,38],[72,39,72,43],[72,44,72,50],[71,33,71,34],[71,35,71,36],[71,37,71,38],[71,39,71,43],[71,44,71,50],[72,1,72,3],[72,4,72,6],[72,17,72,28],[72,29,72,30],[71,1,71,3],[71,4,71,6],[71,17,71,28],[71,29,71,30],[71,31,71,32],[70,31,70,32],[70,33,70,34],[70,35,70,36],[70,37,70,38],[70,39,70,43],[70,44,70,50],[69,33,69,34],[69,35,69,36],[69,37,69,38],[69,39,69,43],[69,44,69,50],[70,1,70,3],[70,4,70,6],[70,17,70,28],[70,29,70,30],[69,1,69,3],[69,4,69,6],[69,17,69,28],[69,29,69,30],[69,31,69,32],[68,31,68,32],[68,33,68,34],[68,35,68,36],[68,37,68,38],[68,39,68,43],[68,44,68,50],[67,33,67,34],[67,35,67,36],[67,37,67,38],[67,39,67,43],[67,44,67,50],[68,1,68,3],[68,4,68,6],[68,17,68,28],[68,29,68,30],[67,1,67,3],[67,4,67,6],[67,17,67,28],[67,29,67,30],[67,31,67,32],[66,31,66,32],[66,33,66,34],[66,35,66,36],[66,37,66,38],[66,39,66,43],[66,44,66,50],[65,33,65,34],[65,35,65,36],[65,37,65,38],[65,39,65,43],[65,44,65,50],[66,1,66,3],[66,4,66,6],[66,17,66,28],[66,29,66,30],[65,1,65,3],[65,4,65,6],[65,17,65,28],[65,29,65,30],[65,31,65,32],[64,31,64,32],[64,33,64,34],[64,35,64,36],[64,37,64,38],[64,39,64,43],[64,44,64,50],[63,33,63,34],[63,35,63,36],[63,37,63,38],[63,39,63,43]],"merged_total":1599,"flags":["merged_cut"]}
[30,60,90,null,null,null,null,null,null,null,null,null,"Rua Exp. Carlos Fischer, 342 H.  Bairro Imigrantes",null,null,null,null,null,null,null,null,null,null,null,null,null,null,null,null,null,null,null,null,null,{"$f":"Dados!D2 &\"\\PDF\\\"","v":"C:\\Users\\Guilherme\\Desktop\\Pedidos Jagar\\PDF\\"},"Num. Pedido",null,null,null,"Num Ped. Fabrica",null,null,null,"Data Cad. Pedido",null,null,null,null,null,null,null,null,null,null,null,null,null,null,null,null,null,null,null,null,null,null,"30/60/90"]
[null,null,null,null,null,null,null,null,null,null,{"$f":"IF(A1=\"\",\"\",AVERAGE(A1:L1))","v":60},{"$f":"IF(A1=\"\",\"\",COUNTA(A1:L1))","v":3},"Guabiruba - SC. CEP: 88360-000 Fone 47 3354-0011",null,null,null,null,null,null,null,null,null,null,null,null,null,null,null,null,null,null,null,null,null,null,25555,null,null,null,1235,null,null,null,"2016-04-18"]
[null,null,null,null,null,null,null,null,null,null,null,null,"www.jagarmalhas.com.br/jaga@jagarmalhas.com.br",null,null,null,null,null,null,null,null,null,null,null,null,null,null,null,null,null,null,null,null,null,{"$f":"E4 & TEXT(AR2,\" - DD.MM.AAAA\")","v":"Malhas Jagar Ind. E Com. Ltda - 18.04.2016"},"Tabela",null,null,null,null,null,null,null,"Vendedor"]
["Cliente:",null,null,null,"Malhas Jagar Ind. E Com. Ltda",null,null,null,null,null,null,null,null,null,null,null,null,null,null,null,null,null,null,null,null,null,null,null,null,null,null,null,null,null,null,"Tabela 1",null,null,null,null,null,null,null,"Ernani"]
["Endereço:",null,null,null,null,"Rua Exp. Carlos Fischer",null,null,null,null,null,null,null,null,null,null,null,null,null,null,null,null,null,null,null,null,null,null,null,"Nº:",null,"342 H",null,null,null,"Faturamento:",null,null,null,null,null,null,null,"Fone Vendedor"]
["Cidade:",null,null,null,"Guabiruba",null,null,null,null,null,null,null,null,null,null,null,"Bairro:",null,null,null,"Imigrantes",null,null,null,null,null,null,null,null,null,null,"UF:",null,"SC",null,"a faturar",null,null,null,null,null,null,null,{"$f":"IF(AR4=\"\",\"\",VLOOKUP(AR4,Dados!E1:F50,2,FALSE))","v":1}]
["CEP:",null,null,"88360-000",null,null,null,null,"E-mail:",null,null,null,"jagar@jagarmalhas.com.br",null,null,null,null,null,null,null,null,null,null,null,null,"Contato:",null,null,null,"Guilherme",null,null,null,null,null,"Coleção:",null,null,null,null,null,null,null,"Código Cliente"]
["Fone 1:",null,null,null,"47 3354 0011",null,null,null,null,null,null,"Fone 2:",null,null,null,"47 3354 0011",null,null,null,null,null,null,"Whatsapp:",null,null,null,null,null,"47 3354 0011",null,null,null,null,null,null,"Verão 2016/17",null,null,null,null,null,null,null,1200]
["CNPJ:",null,null,"85.302.313/0001-57",null,null,null,null,null,null,null,null,"Insc.Est.:",null,null,null,null,252461606,null,null,null,null,null,null,null,null,null,"Frete:",null,null,null,"CIF",null,null,null,"Nota Fiscal",null,null,100,null,null,null,"Entrega","Quinz",null,null,"Primeira"]
["Cond. Pagto:",null,null,null,null,null,null,"30/60/90",null,null,null,null,null,null,null,null,null,null,null,null,null,null,null,null,"Forma Pgto:",null,null,null,null,null,"Boleto",null,null,null,null,null,null,null,null,null,null,null,null,"Mês",null,"Setembro"]
["Parcelas",null,null,null,null,{"$f":"IF(L2=\"\",\"\",L2)","v":3},null,"Valor Parcela",null,null,null,null,null,null,{"$f":"IF(F11=\"\",\"\",AQ11/F11)","v":267.45166666666626},null,null,null,null,null,null,"R$ Frete",null,null,null,50,null,null,null,"TOTAL","BRUTO",{"$f":"SUM(AS15:AY164)","v":835.94999999999868},null,null,null,null,null,null,null,null,"TOTAL","LIQUI",{"$f":"IF(AF11=\"\",\"\",(-(AF11*T12-AF11-Z11)))","v":802.35499999999877}]
["Prazo médio:",null,null,null,null,null,null,{"$f":"IF(K2=\"\",\"\",K2)","v":60},null,null,"Desconto Pedido:",null,null,null,null,null,null,null,null,0.1,null,"% / R$ Comissão"]
["Tot Peças",null,null,null,null,{"$f":"IF(B15=\"\",\"\",SUM(B15:D164))","v":80},null,null,"Média R$/Peça:",null,null,null,null,null,null,null,{"$f":"IF(F13=\"\",\"\",AQ11/F13)","v":10.029437499999984},null,null,null,null,0.1,null,{"$f":"IF(V13=\"\",\"\",AQ11*V13)","v":80.235499999999888},null,null,null,null,null,"G2",null,"G3",null,"G4",null,null,null,null,null,"Preço Unitário",null,null,null,null,"Valor Total"]
["Qtd TOT",null,null,null,"Ref.",null,null,"Descrição",null,null,null,null,null,null,null,null,null,"Observação",null,null,null,null,null,null,null,null,null,null,null,"P",null,"M",null,"G",null,"GG",null,"EX"]
[1,{"$f":"IF(E15=\"\",\"\",SUM(AD15:AL15))","v":5},null,null,4009,null,null,{"$f":"IF(E15=\"\",\"  \",VLOOKUP(E15,'Tabela Preço'!$A$2:$C$600,2,FALSE))","v":"Shorts Ad. Fem. Liganete Com Bolsos"},null,null,null,null,null,null,null,null,{"$f":"IF(E15=\"\",\"  \",VLOOKUP(E15,'Tabela Preço'!$A$2:$D$600,18))","v":{"$error":"#REF!"}},"estampas sortidas",null,null,null,null,null,null,null,null,null,null,null,1,null,1,null,1,null,1,null,1,null,{"$f":"IF(E15=\"\",\"  \",IF($AJ$4=\"Tabela 1\",VLOOKUP(E15,Tabelapreço[],4),IF($AJ$4=\"Prazo\",VLOOKUP(E15,Tabelapreço[],5),IF($AJ$4=\"A vista\",VLOOKUP(E15,Tabelapreço[],6),IF($AJ$4=\"Varejo\",VLOOKUP(E15,Tabelapreço[],7),IF($AJ$4=\"Tabela 6\",VLOOKUP(E15,Tabelapreço[],8),IF($AJ$4=\"Tabela 8\",VLOOKUP(E15,Tabelapreço[],9),IF($AJ$4=\"L. Fernando\",VLOOKUP(E15,Tabelapreço[],10),IF($AJ$4=\"Promoção\",VLOOKUP(E15,Tabelapreço[],11),IF($AJ$4=\"Facção\",VLOOKUP(E15,Tabelapreço[],12)))))))))))","v":5.5499999999999803},null,null,null,null,{"$f":"IF(E15=\"\",\"\",AN15*B15)","v":27.749999999999901}]
[2,{"$f":"IF(E16=\"\",\"\",SUM(AD16:AL16))","v":25},null,null,4075,null,null,{"$f":"IF(E16=\"\",\"  \",VLOOKUP(E16,'Tabela Preço'!$A$2:$C$600,2,FALSE))","v":"Vestido Básico Liganete Estampada"},null,null,null,null,null,null,null,null,{"$f":"IF(E16=\"\",\"  \",VLOOKUP(E16,'Tabela Preço'!$A$2:$D$600,18))","v":{"$error":"#REF!"}},"mais preto",null,null,null,null,null,null,null,null,null,null,null,5,null,5,null,5,null,5,null,5,null,{"$f":"IF(E16=\"\",\"  \",IF($AJ$4=\"Tabela 1\",VLOOKUP(E16,Tabelapreço[],4),IF($AJ$4=\"Prazo\",VLOOKUP(E16,Tabelapreço[],5),IF($AJ$4=\"A vista\",VLOOKUP(E16,Tabelapreço[],6),IF($AJ$4=\"Varejo\",VLOOKUP(E16,Tabelapreço[],7),IF($AJ$4=\"Tabela 6\",VLOOKUP(E16,Tabelapreço[],8),IF($AJ$4=\"Tabela 8\",VLOOKUP(E16,Tabelapreço[],9),IF($AJ$4=\"L. Fernando\",VLOOKUP(E16,Tabelapreço[],10),IF($AJ$4=\"Promoção\",VLOOKUP(E16,Tabelapreço[],11),IF($AJ$4=\"Facção\",VLOOKUP(E16,Tabelapreço[],12)))))))))))","v":8.2999999999999705},null,null,null,null,{"$f":"IF(E16=\"\",\"\",AN16*B16)","v":207.49999999999926}]
[3,{"$f":"IF(E17=\"\",\"\",SUM(AD17:AL17))","v":20},null,null,4109,null,null,{"$f":"IF(E17=\"\",\"  \",VLOOKUP(E17,'Tabela Preço'!$A$2:$C$600,2,FALSE))","v":"Regata de alça Viscolycra Lisa - com renda decote"},null,null,null,null,null,null,null,null,{"$f":"IF(E17=\"\",\"  \",VLOOKUP(E17,'Tabela Preço'!$A$2:$D$600,18))","v":{"$error":"#REF!"}},"menos azul",null,null,null,null,null,null,null,null,null,null,null,4,null,4,null,4,null,4,null,4,null,{"$f":"IF(E17=\"\",\"  \",IF($AJ$4=\"Tabela 1\",VLOOKUP(E17,Tabelapreço[],4),IF($AJ$4=\"Prazo\",VLOOKUP(E17,Tabelapreço[],5),IF($AJ$4=\"A vista\",VLOOKUP(E17,Tabelapreço[],6),IF($AJ$4=\"Varejo\",VLOOKUP(E17,Tabelapreço[],7),IF($AJ$4=\"Tabela 6\",VLOOKUP(E17,Tabelapreço[],8),IF($AJ$4=\"Tabela 8\",VLOOKUP(E17,Tabelapreço[],9),IF($AJ$4=\"L. Fernando\",VLOOKUP(E17,Tabelapreço[],10),IF($AJ$4=\"Promoção\",VLOOKUP(E17,Tabelapreço[],11),IF($AJ$4=\"Facção\",VLOOKUP(E17,Tabelapreço[],12)))))))))))","v":9.9499999999999709},null,null,null,null,198.99999999999943]
[4,15,null,null,4199,null,null,{"$f":"IF(E18=\"\",\"  \",VLOOKUP(E18,'Tabela Preço'!$A$2:$C$600,2,FALSE))","v":"Top Polifitness Liso com bojo e recorte tule  "},null,null,null,null,null,null,null,null,{"$f":"IF(E18=\"\",\"  \",VLOOKUP(E18,'Tabela Preço'!$A$2:$D$600,18))","v":{"$error":"#REF!"}},"sem branco",null,null,null,null,null,null,null,null,null,null,null,5,null,5,null,5,null,null,null,null,null,{"$f":"IF(E18=\"\",\"  \",IF($AJ$4=\"Tabela 1\",VLOOKUP(E18,Tabelapreço[],4),IF($AJ$4=\"Prazo\",VLOOKUP(E18,Tabelapreço[],5),IF($AJ$4=\"A vista\",VLOOKUP(E18,Tabelapreço[],6),IF($AJ$4=\"Varejo\",VLOOKUP(E18,Tabelapreço[],7),IF($AJ$4=\"Tabela 6\",VLOOKUP(E18,Tabelapreço[],8),IF($AJ$4=\"Tabela 8\",VLOOKUP(E18,Tabelapreço[],9),IF($AJ$4=\"L. Fernando\",VLOOKUP(E18,Tabelapreço[],10),IF($AJ$4=\"Promoção\",VLOOKUP(E18,Tabelapreço[],11),IF($AJ$4=\"Facção\",VLOOKUP(E18,Tabelapreço[],12)))))))))))","v":13.95},null,null,null,null,209.25]
[5,3,null,null,4174,null,null,{"$f":"IF(E19=\"\",\"  \",VLOOKUP(E19,'Tabela Preço'!$A$2:$C$600,2,FALSE))","v":"Blusa Liganete renda guipir no decote e viés interno"},null,null,null,null,null,null,null,null,{"$f":"IF(E19=\"\",\"  \",VLOOKUP(E19,'Tabela Preço'!$A$2:$D$600,18))","v":{"$error":"#REF!"}},"sortido",null,null,null,null,null,null,null,null,null,null,null,1,null,1,null,1,null,null,null,null,null,{"$f":"IF(E19=\"\",\"  \",IF($AJ$4=\"Tabela 1\",VLOOKUP(E19,Tabelapreço[],4),IF($AJ$4=\"Prazo\",VLOOKUP(E19,Tabelapreço[],5),IF($AJ$4=\"A vista\",VLOOKUP(E19,Tabelapreço[],6),IF($AJ$4=\"Varejo\",VLOOKUP(E19,Tabelapreço[],7),IF($AJ$4=\"Tabela 6\",VLOOKUP(E19,Tabelapreço[],8),IF($AJ$4=\"Tabela 8\",VLOOKUP(E19,Tabelapreço[],9),IF($AJ$4=\"L. Fernando\",VLOOKUP(E19,Tabelapreço[],10),IF($AJ$4=\"Promoção\",VLOOKUP(E19,Tabelapreço[],11),IF($AJ$4=\"Facção\",VLOOKUP(E19,Tabelapreço[],12)))))))))))","v":12.75},null,null,null,null,38.25]
[6,12,null,null,4176,null,null,{"$f":"IF(E20=\"\",\"  \",VLOOKUP(E20,'Tabela Preço'!$A$2:$C$600,2,FALSE))","v":"Shorts Suplex light estampado frizo e detalhe preto "},null,null,null,null,null,null,null,null,{"$f":"IF(E20=\"\",\"  \",VLOOKUP(E20,'Tabela Preço'!$A$2:$D$600,18))","v":{"$error":"#REF!"}},null,null,null,null,null,null,null,null,null,null,null,null,4,null,4,null,4,null,null,null,null,null,{"$f":"IF(E20=\"\",\"  \",IF($AJ$4=\"Tabela 1\",VLOOKUP(E20,Tabelapreço[],4),IF($AJ$4=\"Prazo\",VLOOKUP(E20,Tabelapreço[],5),IF($AJ$4=\"A vista\",VLOOKUP(E20,Tabelapreço[],6),IF($AJ$4=\"Varejo\",VLOOKUP(E20,Tabelapreço[],7),IF($AJ$4=\"Tabela 6\",VLOOKUP(E20,Tabelapreço[],8),IF($AJ$4=\"Tabela 8\",VLOOKUP(E20,Tabelapreço[],9),IF($AJ$4=\"L. Fernando\",VLOOKUP(E20,Tabelapreço[],10),IF($AJ$4=\"Promoção\",VLOOKUP(E20,Tabelapreço[],11),IF($AJ$4=\"Facção\",VLOOKUP(E20,Tabelapreço[],12)))))))))))","v":12.85},null,null,null,null,154.19999999999999]
[7,"",null,null,null,null,null,{"$f":"IF(E21=\"\",\"  \",VLOOKUP(E21,'Tabela Preço'!$A$2:$C$600,2,FALSE))","v":"  "},null,null,null,null,null,null,null,null,{"$f":"IF(E21=\"\",\"  \",VLOOKUP(E21,'Tabela Preço'!$A$2:$D$600,18))","v":"  "},null,null,null,null,null,null,null,null,null,null,null,null,null,null,null,null,null,null,null,null,null,null,{"$f":"IF(E21=\"\",\"  \",IF($AJ$4=\"Tabela 1\",VLOOKUP(E21,Tabelapreço[],4),IF($AJ$4=\"Prazo\",VLOOKUP(E21,Tabelapreço[],5),IF($AJ$4=\"A vista\",VLOOKUP(E21,Tabelapreço[],6),IF($AJ$4=\"Varejo\",VLOOKUP(E21,Tabelapreço[],7),IF($AJ$4=\"Tabela 6\",VLOOKUP(E21,Tabelapreço[],8),IF($AJ$4=\"Tabela 8\",VLOOKUP(E21,Tabelapreço[],9),IF($AJ$4=\"L. Fernando\",VLOOKUP(E21,Tabelapreço[],10),IF($AJ$4=\"Promoção\",VLOOKUP(E21,Tabelapreço[],11),IF($AJ$4=\"Facção\",VLOOKUP(E21,Tabelapreço[],12)))))))))))","v":"  "},null,null,null,null,""]
[8,"",null,null,null,null,null,{"$f":"IF(E22=\"\",\"  \",VLOOKUP(E22,'Tabela Preço'!$A$2:$C$600,2,FALSE))","v":"  "},null,null,null,null,null,null,null,null,{"$f":"IF(E22=\"\",\"  \",VLOOKUP(E22,'Tabela Preço'!$A$2:$D$600,18))","v":"  "},null,null,null,null,null,null,null,null,null,null,null,null,null,null,null,null,null,null,null,null,null,null,{"$f":"IF(E22=\"\",\"  \",IF($AJ$4=\"Tabela 1\",VLOOKUP(E22,Tabelapreço[],4),IF($AJ$4=\"Prazo\",VLOOKUP(E22,Tabelapreço[],5),IF($AJ$4=\"A vista\",VLOOKUP(E22,Tabelapreço[],6),IF($AJ$4=\"Varejo\",VLOOKUP(E22,Tabelapreço[],7),IF($AJ$4=\"Tabela 6\",VLOOKUP(E22,Tabelapreço[],8),IF($AJ$4=\"Tabela 8\",VLOOKUP(E22,Tabelapreço[],9),IF($AJ$4=\"L. Fernando\",VLOOKUP(E22,Tabelapreço[],10),IF($AJ$4=\"Promoção\",VLOOKUP(E22,Tabelapreço[],11),IF($AJ$4=\"Facção\",VLOOKUP(E22,Tabelapreço[],12)))))))))))","v":"  "},null,null,null,null,""]
[9,"",null,null,null,null,null,{"$f":"IF(E23=\"\",\"  \",VLOOKUP(E23,'Tabela Preço'!$A$2:$C$600,2,FALSE))","v":"  "},null,null,null,null,null,null,null,null,{"$f":"IF(E23=\"\",\"  \",VLOOKUP(E23,'Tabela Preço'!$A$2:$D$600,18))","v":"  "},null,null,null,null,null,null,null,null,null,null,null,null,null,null,null,null,null,null,null,null,null,null,{"$f":"IF(E23=\"\",\"  \",IF($AJ$4=\"Tabela 1\",VLOOKUP(E23,Tabelapreço[],4),IF($AJ$4=\"Prazo\",VLOOKUP(E23,Tabelapreço[],5),IF($AJ$4=\"A vista\",VLOOKUP(E23,Tabelapreço[],6),IF($AJ$4=\"Varejo\",VLOOKUP(E23,Tabelapreço[],7),IF($AJ$4=\"Tabela 6\",VLOOKUP(E23,Tabelapreço[],8),IF($AJ$4=\"Tabela 8\",VLOOKUP(E23,Tabelapreço[],9),IF($AJ$4=\"L. Fernando\",VLOOKUP(E23,Tabelapreço[],10),IF($AJ$4=\"Promoção\",VLOOKUP(E23,Tabelapreço[],11),IF($AJ$4=\"Facção\",VLOOKUP(E23,Tabelapreço[],12)))))))))))","v":"  "},null,null,null,null,""]
[10,"",null,null,null,null,null,{"$f":"IF(E24=\"\",\"  \",VLOOKUP(E24,'Tabela Preço'!$A$2:$C$600,2,FALSE))","v":"  "},null,null,null,null,null,null,null,null,{"$f":"IF(E24=\"\",\"  \",VLOOKUP(E24,'Tabela Preço'!$A$2:$D$600,18))","v":"  "},null,null,null,null,null,null,null,null,null,null,null,null,null,null,null,null,null,null,null,null,null,null,{"$f":"IF(E24=\"\",\"  \",IF($AJ$4=\"Tabela 1\",VLOOKUP(E24,Tabelapreço[],4),IF($AJ$4=\"Prazo\",VLOOKUP(E24,Tabelapreço[],5),IF($AJ$4=\"A vista\",VLOOKUP(E24,Tabelapreço[],6),IF($AJ$4=\"Varejo\",VLOOKUP(E24,Tabelapreço[],7),IF($AJ$4=\"Tabela 6\",VLOOKUP(E24,Tabelapreço[],8),IF($AJ$4=\"Tabela 8\",VLOOKUP(E24,Tabelapreço[],9),IF($AJ$4=\"L. Fernando\",VLOOKUP(E24,Tabelapreço[],10),IF($AJ$4=\"Promoção\",VLOOKUP(E24,Tabelapreço[],11),IF($AJ$4=\"Facção\",VLOOKUP(E24,Tabelapreço[],12)))))))))))","v":"  "},null,null,null,null,""]
[11,"",null,null,null,null,null,{"$f":"IF(E25=\"\",\"  \",VLOOKUP(E25,'Tabela Preço'!$A$2:$C$600,2,FALSE))","v":"  "},null,null,null,null,null,null,null,null,{"$f":"IF(E25=\"\",\"  \",VLOOKUP(E25,'Tabela Preço'!$A$2:$D$600,18))","v":"  "},null,null,null,null,null,null,null,null,null,null,null,null,null,null,null,null,null,null,null,null,null,null,{"$f":"IF(E25=\"\",\"  \",IF($AJ$4=\"Tabela 1\",VLOOKUP(E25,Tabelapreço[],4),IF($AJ$4=\"Prazo\",VLOOKUP(E25,Tabelapreço[],5),IF($AJ$4=\"A vista\",VLOOKUP(E25,Tabelapreço[],6),IF($AJ$4=\"Varejo\",VLOOKUP(E25,Tabelapreço[],7),IF($AJ$4=\"Tabela 6\",VLOOKUP(E25,Tabelapreço[],8),IF($AJ$4=\"Tabela 8\",VLOOKUP(E25,Tabelapreço[],9),IF($AJ$4=\"L. Fernando\",VLOOKUP(E25,Tabelapreço[],10),IF($AJ$4=\"Promoção\",VLOOKUP(E25,Tabelapreço[],11),IF($AJ$4=\"Facção\",VLOOKUP(E25,Tabelapreço[],12)))))))))))","v":"  "},null,null,null,null,""]
[12,"",null,null,null,null,null,{"$f":"IF(E26=\"\",\"  \",VLOOKUP(E26,'Tabela Preço'!$A$2:$C$600,2,FALSE))","v":"  "},null,null,null,null,null,null,null,null,{"$f":"IF(E26=\"\",\"  \",VLOOKUP(E26,'Tabela Preço'!$A$2:$D$600,18))","v":"  "},null,null,null,null,null,null,null,null,null,null,null,null,null,null,null,null,null,null,null,null,null,null,{"$f":"IF(E26=\"\",\"  \",IF($AJ$4=\"Tabela 1\",VLOOKUP(E26,Tabelapreço[],4),IF($AJ$4=\"Prazo\",VLOOKUP(E26,Tabelapreço[],5),IF($AJ$4=\"A vista\",VLOOKUP(E26,Tabelapreço[],6),IF($AJ$4=\"Varejo\",VLOOKUP(E26,Tabelapreço[],7),IF($AJ$4=\"Tabela 6\",VLOOKUP(E26,Tabelapreço[],8),IF($AJ$4=\"Tabela 8\",VLOOKUP(E26,Tabelapreço[],9),IF($AJ$4=\"L. Fernando\",VLOOKUP(E26,Tabelapreço[],10),IF($AJ$4=\"Promoção\",VLOOKUP(E26,Tabelapreço[],11),IF($AJ$4=\"Facção\",VLOOKUP(E26,Tabelapreço[],12)))))))))))","v":"  "},null,null,null,null,""]
[13,"",null,null,null,null,null,{"$f":"IF(E27=\"\",\"  \",VLOOKUP(E27,'Tabela Preço'!$A$2:$C$600,2,FALSE))","v":"  "},null,null,null,null,null,null,null,null,{"$f":"IF(E27=\"\",\"  \",VLOOKUP(E27,'Tabela Preço'!$A$2:$D$600,18))","v":"  "},null,null,null,null,null,null,null,null,null,null,null,null,null,null,null,null,null,null,null,null,null,null,{"$f":"IF(E27=\"\",\"  \",IF($AJ$4=\"Tabela 1\",VLOOKUP(E27,Tabelapreço[],4),IF($AJ$4=\"Prazo\",VLOOKUP(E27,Tabelapreço[],5),IF($AJ$4=\"A vista\",VLOOKUP(E27,Tabelapreço[],6),IF($AJ$4=\"Varejo\",VLOOKUP(E27,Tabelapreço[],7),IF($AJ$4=\"Tabela 6\",VLOOKUP(E27,Tabelapreço[],8),IF($AJ$4=\"Tabela 8\",VLOOKUP(E27,Tabelapreço[],9),IF($AJ$4=\"L. Fernando\",VLOOKUP(E27,Tabelapreço[],10),IF($AJ$4=\"Promoção\",VLOOKUP(E27,Tabelapreço[],11),IF($AJ$4=\"Facção\",VLOOKUP(E27,Tabelapreço[],12)))))))))))","v":"  "},null,null,null,null,""]
[14,"",null,null,null,null,null,{"$f":"IF(E28=\"\",\"  \",VLOOKUP(E28,'Tabela Preço'!$A$2:$C$600,2,FALSE))","v":"  "},null,null,null,null,null,null,null,null,{"$f":"IF(E28=\"\",\"  \",VLOOKUP(E28,'Tabela Preço'!$A$2:$D$600,18))","v":"  "},null,null,null,null,null,null,null,null,null,null,null,null,null,null,null,null,null,null,null,null,null,null,{"$f":"IF(E28=\"\",\"  \",IF($AJ$4=\"Tabela 1\",VLOOKUP(E28,Tabelapreço[],4),IF($AJ$4=\"Prazo\",VLOOKUP(E28,Tabelapreço[],5),IF($AJ$4=\"A vista\",VLOOKUP(E28,Tabelapreço[],6),IF($AJ$4=\"Varejo\",VLOOKUP(E28,Tabelapreço[],7),IF($AJ$4=\"Tabela 6\",VLOOKUP(E28,Tabelapreço[],8),IF($AJ$4=\"Tabela 8\",VLOOKUP(E28,Tabelapreço[],9),IF($AJ$4=\"L. Fernando\",VLOOKUP(E28,Tabelapreço[],10),IF($AJ$4=\"Promoção\",VLOOKUP(E28,Tabelapreço[],11),IF($AJ$4=\"Facção\",VLOOKUP(E28,Tabelapreço[],12)))))))))))","v":"  "},null,null,null,null,""]
[15,"",null,null,null,null,null,{"$f":"IF(E29=\"\",\"  \",VLOOKUP(E29,'Tabela Preço'!$A$2:$C$600,2,FALSE))","v":"  "},null,null,null,null,null,null,null,null,{"$f":"IF(E29=\"\",\"  \",VLOOKUP(E29,'Tabela Preço'!$A$2:$D$600,18))","v":"  "},null,null,null,null,null,null,null,null,null,null,null,null,null,null,null,null,null,null,null,null,null,null,{"$f":"IF(E29=\"\",\"  \",IF($AJ$4=\"Tabela 1\",VLOOKUP(E29,Tabelapreço[],4),IF($AJ$4=\"Prazo\",VLOOKUP(E29,Tabelapreço[],5),IF($AJ$4=\"A vista\",VLOOKUP(E29,Tabelapreço[],6),IF($AJ$4=\"Varejo\",VLOOKUP(E29,Tabelapreço[],7),IF($AJ$4=\"Tabela 6\",VLOOKUP(E29,Tabelapreço[],8),IF($AJ$4=\"Tabela 8\",VLOOKUP(E29,Tabelapreço[],9),IF($AJ$4=\"L. Fernando\",VLOOKUP(E29,Tabelapreço[],10),IF($AJ$4=\"Promoção\",VLOOKUP(E29,Tabelapreço[],11),IF($AJ$4=\"Facção\",VLOOKUP(E29,Tabelapreço[],12)))))))))))","v":"  "},null,null,null,null,""]
[16,"",null,null,null,null,null,{"$f":"IF(E30=\"\",\"  \",VLOOKUP(E30,'Tabela Preço'!$A$2:$C$600,2,FALSE))","v":"  "},null,null,null,null,null,null,null,null,{"$f":"IF(E30=\"\",\"  \",VLOOKUP(E30,'Tabela Preço'!$A$2:$D$600,18))","v":"  "},null,null,null,null,null,null,null,null,null,null,null,null,null,null,null,null,null,null,null,null,null,null,{"$f":"IF(E30=\"\",\"  \",IF($AJ$4=\"Tabela 1\",VLOOKUP(E30,Tabelapreço[],4),IF($AJ$4=\"Prazo\",VLOOKUP(E30,Tabelapreço[],5),IF($AJ$4=\"A vista\",VLOOKUP(E30,Tabelapreço[],6),IF($AJ$4=\"Varejo\",VLOOKUP(E30,Tabelapreço[],7),IF($AJ$4=\"Tabela 6\",VLOOKUP(E30,Tabelapreço[],8),IF($AJ$4=\"Tabela 8\",VLOOKUP(E30,Tabelapreço[],9),IF($AJ$4=\"L. Fernando\",VLOOKUP(E30,Tabelapreço[],10),IF($AJ$4=\"Promoção\",VLOOKUP(E30,Tabelapreço[],11),IF($AJ$4=\"Facção\",VLOOKUP(E30,Tabelapreço[],12)))))))))))","v":"  "},null,null,null,null,""]
[17,"",null,null,null,null,null,{"$f":"IF(E31=\"\",\"  \",VLOOKUP(E31,'Tabela Preço'!$A$2:$C$600,2,FALSE))","v":"  "},null,null,null,null,null,null,null,null,{"$f":"IF(E31=\"\",\"  \",VLOOKUP(E31,'Tabela Preço'!$A$2:$D$600,18))","v":"  "},null,null,null,null,null,null,null,null,null,null,null,null,null,null,null,null,null,null,null,null,null,null,{"$f":"IF(E31=\"\",\"  \",IF($AJ$4=\"Tabela 1\",VLOOKUP(E31,Tabelapreço[],4),IF($AJ$4=\"Prazo\",VLOOKUP(E31,Tabelapreço[],5),IF($AJ$4=\"A vista\",VLOOKUP(E31,Tabelapreço[],6),IF($AJ$4=\"Varejo\",VLOOKUP(E31,Tabelapreço[],7),IF($AJ$4=\"Tabela 6\",VLOOKUP(E31,Tabelapreço[],8),IF($AJ$4=\"Tabela 8\",VLOOKUP(E31,Tabelapreço[],9),IF($AJ$4=\"L. Fernando\",VLOOKUP(E31,Tabelapreço[],10),IF($AJ$4=\"Promoção\",VLOOKUP(E31,Tabelapreço[],11),IF($AJ$4=\"Facção\",VLOOKUP(E31,Tabelapreço[],12)))))))))))","v":"  "},null,null,null,null,""]
[18,"",null,null,null,null,null,{"$f":"IF(E32=\"\",\"  \",VLOOKUP(E32,'Tabela Preço'!$A$2:$C$600,2,FALSE))","v":"  "},null,null,null,null,null,null,null,null,{"$f":"IF(E32=\"\",\"  \",VLOOKUP(E32,'Tabela Preço'!$A$2:$D$600,18))","v":"  "},null,null,null,null,null,null,null,null,null,null,null,null,null,null,null,null,null,null,null,null,null,null,{"$f":"IF(E32=\"\",\"  \",IF($AJ$4=\"Tabela 1\",VLOOKUP(E32,Tabelapreço[],4),IF($AJ$4=\"Prazo\",VLOOKUP(E32,Tabelapreço[],5),IF($AJ$4=\"A vista\",VLOOKUP(E32,Tabelapreço[],6),IF($AJ$4=\"Varejo\",VLOOKUP(E32,Tabelapreço[],7),IF($AJ$4=\"Tabela 6\",VLOOKUP(E32,Tabelapreço[],8),IF($AJ$4=\"Tabela 8\",VLOOKUP(E32,Tabelapreço[],9),IF($AJ$4=\"L. Fernando\",VLOOKUP(E32,Tabelapreço[],10),IF($AJ$4=\"Promoção\",VLOOKUP(E32,Tabelapreço[],11),IF($AJ$4=\"Facção\",VLOOKUP(E32,Tabelapreço[],12)))))))))))","v":"  "},null,null,null,null,""]
[19,"",null,null,null,null,null,{"$f":"IF(E33=\"\",\"  \",VLOOKUP(E33,'Tabela Preço'!$A$2:$C$600,2,FALSE))","v":"  "},null,null,null,null,null,null,null,null,{"$f":"IF(E33=\"\",\"  \",VLOOKUP(E33,'Tabela Preço'!$A$2:$D$600,18))","v":"  "},null,null,null,null,null,null,null,null,null,null,null,null,null,null,null,null,null,null,null,null,null,null,{"$f":"IF(E33=\"\",\"  \",IF($AJ$4=\"Tabela 1\",VLOOKUP(E33,Tabelapreço[],4),IF($AJ$4=\"Prazo\",VLOOKUP(E33,Tabelapreço[],5),IF($AJ$4=\"A vista\",VLOOKUP(E33,Tabelapreço[],6),IF($AJ$4=\"Varejo\",VLOOKUP(E33,Tabelapreço[],7),IF($AJ$4=\"Tabela 6\",VLOOKUP(E33,Tabelapreço[],8),IF($AJ$4=\"Tabela 8\",VLOOKUP(E33,Tabelapreço[],9),IF($AJ$4=\"L. Fernando\",VLOOKUP(E33,Tabelapreço[],10),IF($AJ$4=\"Promoção\",VLOOKUP(E33,Tabelapreço[],11),IF($AJ$4=\"Facção\",VLOOKUP(E33,Tabelapreço[],12)))))))))))","v":"  "},null,null,null,null,""]
[20,"",null,null,null,null,null,{"$f":"IF(E34=\"\",\"  \",VLOOKUP(E34,'Tabela Preço'!$A$2:$C$600,2,FALSE))","v":"  "},null,null,null,null,null,null,null,null,{"$f":"IF(E34=\"\",\"  \",VLOOKUP(E34,'Tabela Preço'!$A$2:$D$600,18))","v":"  "},null,null,null,null,null,null,null,null,null,null,null,null,null,null,null,null,null,null,null,null,null,null,{"$f":"IF(E34=\"\",\"  \",IF($AJ$4=\"Tabela 1\",VLOOKUP(E34,Tabelapreço[],4),IF($AJ$4=\"Prazo\",VLOOKUP(E34,Tabelapreço[],5),IF($AJ$4=\"A vista\",VLOOKUP(E34,Tabelapreço[],6),IF($AJ$4=\"Varejo\",VLOOKUP(E34,Tabelapreço[],7),IF($AJ$4=\"Tabela 6\",VLOOKUP(E34,Tabelapreço[],8),IF($AJ$4=\"Tabela 8\",VLOOKUP(E34,Tabelapreço[],9),IF($AJ$4=\"L. Fernando\",VLOOKUP(E34,Tabelapreço[],10),IF($AJ$4=\"Promoção\",VLOOKUP(E34,Tabelapreço[],11),IF($AJ$4=\"Facção\",VLOOKUP(E34,Tabelapreço[],12)))))))))))","v":"  "},null,null,null,null,""]
[21,"",null,null,null,null,null,{"$f":"IF(E35=\"\",\"  \",VLOOKUP(E35,'Tabela Preço'!$A$2:$C$600,2,FALSE))","v":"  "},null,null,null,null,null,null,null,null,{"$f":"IF(E35=\"\",\"  \",VLOOKUP(E35,'Tabela Preço'!$A$2:$D$600,18))","v":"  "},null,null,null,null,null,null,null,null,null,null,null,null,null,null,null,null,null,null,null,null,null,null,{"$f":"IF(E35=\"\",\"  \",IF($AJ$4=\"Tabela 1\",VLOOKUP(E35,Tabelapreço[],4),IF($AJ$4=\"Prazo\",VLOOKUP(E35,Tabelapreço[],5),IF($AJ$4=\"A vista\",VLOOKUP(E35,Tabelapreço[],6),IF($AJ$4=\"Varejo\",VLOOKUP(E35,Tabelapreço[],7),IF($AJ$4=\"Tabela 6\",VLOOKUP(E35,Tabelapreço[],8),IF($AJ$4=\"Tabela 8\",VLOOKUP(E35,Tabelapreço[],9),IF($AJ$4=\"L. Fernando\",VLOOKUP(E35,Tabelapreço[],10),IF($AJ$4=\"Promoção\",VLOOKUP(E35,Tabelapreço[],11),IF($AJ$4=\"Facção\",VLOOKUP(E35,Tabelapreço[],12)))))))))))","v":"  "},null,null,null,null,""]
[22,"",null,null,null,null,null,{"$f":"IF(E36=\"\",\"  \",VLOOKUP(E36,'Tabela Preço'!$A$2:$C$600,2,FALSE))","v":"  "},null,null,null,null,null,null,null,null,{"$f":"IF(E36=\"\",\"  \",VLOOKUP(E36,'Tabela Preço'!$A$2:$D$600,18))","v":"  "},null,null,null,null,null,null,null,null,null,null,null,null,null,null,null,null,null,null,null,null,null,null,{"$f":"IF(E36=\"\",\"  \",IF($AJ$4=\"Tabela 1\",VLOOKUP(E36,Tabelapreço[],4),IF($AJ$4=\"Prazo\",VLOOKUP(E36,Tabelapreço[],5),IF($AJ$4=\"A vista\",VLOOKUP(E36,Tabelapreço[],6),IF($AJ$4=\"Varejo\",VLOOKUP(E36,Tabelapreço[],7),IF($AJ$4=\"Tabela 6\",VLOOKUP(E36,Tabelapreço[],8),IF($AJ$4=\"Tabela 8\",VLOOKUP(E36,Tabelapreço[],9),IF($AJ$4=\"L. Fernando\",VLOOKUP(E36,Tabelapreço[],10),IF($AJ$4=\"Promoção\",VLOOKUP(E36,Tabelapreço[],11),IF($AJ$4=\"Facção\",VLOOKUP(E36,Tabelapreço[],12)))))))))))","v":"  "},null,null,null,null,""]
[23,"",null,null,null,null,null,{"$f":"IF(E37=\"\",\"  \",VLOOKUP(E37,'Tabela Preço'!$A$2:$C$600,2,FALSE))","v":"  "},null,null,null,null,null,null,null,null,{"$f":"IF(E37=\"\",\"  \",VLOOKUP(E37,'Tabela Preço'!$A$2:$D$600,18))","v":"  "},null,null,null,null,null,null,null,null,null,null,null,null,null,null,null,null,null,null,null,null,null,null,{"$f":"IF(E37=\"\",\"  \",IF($AJ$4=\"Tabela 1\",VLOOKUP(E37,Tabelapreço[],4),IF($AJ$4=\"Prazo\",VLOOKUP(E37,Tabelapreço[],5),IF($AJ$4=\"A vista\",VLOOKUP(E37,Tabelapreço[],6),IF($AJ$4=\"Varejo\",VLOOKUP(E37,Tabelapreço[],7),IF($AJ$4=\"Tabela 6\",VLOOKUP(E37,Tabelapreço[],8),IF($AJ$4=\"Tabela 8\",VLOOKUP(E37,Tabelapreço[],9),IF($AJ$4=\"L. Fernando\",VLOOKUP(E37,Tabelapreço[],10),IF($AJ$4=\"Promoção\",VLOOKUP(E37,Tabelapreço[],11),IF($AJ$4=\"Facção\",VLOOKUP(E37,Tabelapreço[],12)))))))))))","v":"  "},null,null,null,null,""]
[24,"",null,null,null,null,null,{"$f":"IF(E38=\"\",\"  \",VLOOKUP(E38,'Tabela Preço'!$A$2:$C$600,2,FALSE))","v":"  "},null,null,null,null,null,null,null,null,{"$f":"IF(E38=\"\",\"  \",VLOOKUP(E38,'Tabela Preço'!$A$2:$D$600,18))","v":"  "},null,null,null,null,null,null,null,null,null,null,null,null,null,null,null,null,null,null,null,null,null,null,{"$f":"IF(E38=\"\",\"  \",IF($AJ$4=\"Tabela 1\",VLOOKUP(E38,Tabelapreço[],4),IF($AJ$4=\"Prazo\",VLOOKUP(E38,Tabelapreço[],5),IF($AJ$4=\"A vista\",VLOOKUP(E38,Tabelapreço[],6),IF($AJ$4=\"Varejo\",VLOOKUP(E38,Tabelapreço[],7),IF($AJ$4=\"Tabela 6\",VLOOKUP(E38,Tabelapreço[],8),IF($AJ$4=\"Tabela 8\",VLOOKUP(E38,Tabelapreço[],9),IF($AJ$4=\"L. Fernando\",VLOOKUP(E38,Tabelapreço[],10),IF($AJ$4=\"Promoção\",VLOOKUP(E38,Tabelapreço[],11),IF($AJ$4=\"Facção\",VLOOKUP(E38,Tabelapreço[],12)))))))))))","v":"  "},null,null,null,null,""]
[25,"",null,null,null,null,null,{"$f":"IF(E39=\"\",\"  \",VLOOKUP(E39,'Tabela Preço'!$A$2:$C$600,2,FALSE))","v":"  "},null,null,null,null,null,null,null,null,{"$f":"IF(E39=\"\",\"  \",VLOOKUP(E39,'Tabela Preço'!$A$2:$D$600,18))","v":"  "},null,null,null,null,null,null,null,null,null,null,null,null,null,null,null,null,null,null,null,null,null,null,{"$f":"IF(E39=\"\",\"  \",IF($AJ$4=\"Tabela 1\",VLOOKUP(E39,Tabelapreço[],4),IF($AJ$4=\"Prazo\",VLOOKUP(E39,Tabelapreço[],5),IF($AJ$4=\"A vista\",VLOOKUP(E39,Tabelapreço[],6),IF($AJ$4=\"Varejo\",VLOOKUP(E39,Tabelapreço[],7),IF($AJ$4=\"Tabela 6\",VLOOKUP(E39,Tabelapreço[],8),IF($AJ$4=\"Tabela 8\",VLOOKUP(E39,Tabelapreço[],9),IF($AJ$4=\"L. Fernando\",VLOOKUP(E39,Tabelapreço[],10),IF($AJ$4=\"Promoção\",VLOOKUP(E39,Tabelapreço[],11),IF($AJ$4=\"Facção\",VLOOKUP(E39,Tabelapreço[],12)))))))))))","v":"  "},null,null,null,null,""]
[26,"",null,null,null,null,null,{"$f":"IF(E40=\"\",\"  \",VLOOKUP(E40,'Tabela Preço'!$A$2:$C$600,2,FALSE))","v":"  "},null,null,null,null,null,null,null,null,{"$f":"IF(E40=\"\",\"  \",VLOOKUP(E40,'Tabela Preço'!$A$2:$D$600,18))","v":"  "},null,null,null,null,null,null,null,null,null,null,null,null,null,null,null,null,null,null,null,null,null,null,{"$f":"IF(E40=\"\",\"  \",IF($AJ$4=\"Tabela 1\",VLOOKUP(E40,Tabelapreço[],4),IF($AJ$4=\"Prazo\",VLOOKUP(E40,Tabelapreço[],5),IF($AJ$4=\"A vista\",VLOOKUP(E40,Tabelapreço[],6),IF($AJ$4=\"Varejo\",VLOOKUP(E40,Tabelapreço[],7),IF($AJ$4=\"Tabela 6\",VLOOKUP(E40,Tabelapreço[],8),IF($AJ$4=\"Tabela 8\",VLOOKUP(E40,Tabelapreço[],9),IF($AJ$4=\"L. Fernando\",VLOOKUP(E40,Tabelapreço[],10),IF($AJ$4=\"Promoção\",VLOOKUP(E40,Tabelapreço[],11),IF($AJ$4=\"Facção\",VLOOKUP(E40,Tabelapreço[],12)))))))))))","v":"  "},null,null,null,null,""]
[27,"",null,null,null,null,null,{"$f":"IF(E41=\"\",\"  \",VLOOKUP(E41,'Tabela Preço'!$A$2:$C$600,2,FALSE))","v":"  "},null,null,null,null,null,null,null,null,{"$f":"IF(E41=\"\",\"  \",VLOOKUP(E41,'Tabela Preço'!$A$2:$D$600,18))","v":"  "},null,null,null,null,null,null,null,null,null,null,null,null,null,null,null,null,null,null,null,null,null,null,{"$f":"IF(E41=\"\",\"  \",IF($AJ$4=\"Tabela 1\",VLOOKUP(E41,Tabelapreço[],4),IF($AJ$4=\"Prazo\",VLOOKUP(E41,Tabelapreço[],5),IF($AJ$4=\"A vista\",VLOOKUP(E41,Tabelapreço[],6),IF($AJ$4=\"Varejo\",VLOOKUP(E41,Tabelapreço[],7),IF($AJ$4=\"Tabela 6\",VLOOKUP(E41,Tabelapreço[],8),IF($AJ$4=\"Tabela 8\",VLOOKUP(E41,Tabelapreço[],9),IF($AJ$4=\"L. Fernando\",VLOOKUP(E41,Tabelapreço[],10),IF($AJ$4=\"Promoção\",VLOOKUP(E41,Tabelapreço[],11),IF($AJ$4=\"Facção\",VLOOKUP(E41,Tabelapreço[],12)))))))))))","v":"  "},null,null,null,null,""]
[28,"",null,null,null,null,null,{"$f":"IF(E42=\"\",\"  \",VLOOKUP(E42,'Tabela Preço'!$A$2:$C$600,2,FALSE))","v":"  "},null,null,null,null,null,null,null,null,{"$f":"IF(E42=\"\",\"  \",VLOOKUP(E42,'Tabela Preço'!$A$2:$D$600,18))","v":"  "},null,null,null,null,null,null,null,null,null,null,null,null,null,null,null,null,null,null,null,null,null,null,{"$f":"IF(E42=\"\",\"  \",IF($AJ$4=\"Tabela 1\",VLOOKUP(E42,Tabelapreço[],4),IF($AJ$4=\"Prazo\",VLOOKUP(E42,Tabelapreço[],5),IF($AJ$4=\"A vista\",VLOOKUP(E42,Tabelapreço[],6),IF($AJ$4=\"Varejo\",VLOOKUP(E42,Tabelapreço[],7),IF($AJ$4=\"Tabela 6\",VLOOKUP(E42,Tabelapreço[],8),IF($AJ$4=\"Tabela 8\",VLOOKUP(E42,Tabelapreço[],9),IF($AJ$4=\"L. Fernando\",VLOOKUP(E42,Tabelapreço[],10),IF($AJ$4=\"Promoção\",VLOOKUP(E42,Tabelapreço[],11),IF($AJ$4=\"Facção\",VLOOKUP(E42,Tabelapreço[],12)))))))))))","v":"  "},null,null,null,null,""]
[29,"",null,null,null,null,null,{"$f":"IF(E43=\"\",\"  \",VLOOKUP(E43,'Tabela Preço'!$A$2:$C$600,2,FALSE))","v":"  "},null,null,null,null,null,null,null,null,{"$f":"IF(E43=\"\",\"  \",VLOOKUP(E43,'Tabela Preço'!$A$2:$D$600,18))","v":"  "},null,null,null,null,null,null,null,null,null,null,null,null,null,null,null,null,null,null,null,null,null,null,{"$f":"IF(E43=\"\",\"  \",IF($AJ$4=\"Tabela 1\",VLOOKUP(E43,Tabelapreço[],4),IF($AJ$4=\"Prazo\",VLOOKUP(E43,Tabelapreço[],5),IF($AJ$4=\"A vista\",VLOOKUP(E43,Tabelapreço[],6),IF($AJ$4=\"Varejo\",VLOOKUP(E43,Tabelapreço[],7),IF($AJ$4=\"Tabela 6\",VLOOKUP(E43,Tabelapreço[],8),IF($AJ$4=\"Tabela 8\",VLOOKUP(E43,Tabelapreço[],9),IF($AJ$4=\"L. Fernando\",VLOOKUP(E43,Tabelapreço[],10),IF($AJ$4=\"Promoção\",VLOOKUP(E43,Tabelapreço[],11),IF($AJ$4=\"Facção\",VLOOKUP(E43,Tabelapreço[],12)))))))))))","v":"  "},null,null,null,null,""]
[30,"",null,null,null,null,null,{"$f":"IF(E44=\"\",\"  \",VLOOKUP(E44,'Tabela Preço'!$A$2:$C$600,2,FALSE))","v":"  "},null,null,null,null,null,null,null,null,{"$f":"IF(E44=\"\",\"  \",VLOOKUP(E44,'Tabela Preço'!$A$2:$D$600,18))","v":"  "},null,null,null,null,null,null,null,null,null,null,null,null,null,null,null,null,null,null,null,null,null,null,{"$f":"IF(E44=\"\",\"  \",IF($AJ$4=\"Tabela 1\",VLOOKUP(E44,Tabelapreço[],4),IF($AJ$4=\"Prazo\",VLOOKUP(E44,Tabelapreço[],5),IF($AJ$4=\"A vista\",VLOOKUP(E44,Tabelapreço[],6),IF($AJ$4=\"Varejo\",VLOOKUP(E44,Tabelapreço[],7),IF($AJ$4=\"Tabela 6\",VLOOKUP(E44,Tabelapreço[],8),IF($AJ$4=\"Tabela 8\",VLOOKUP(E44,Tabelapreço[],9),IF($AJ$4=\"L. Fernando\",VLOOKUP(E44,Tabelapreço[],10),IF($AJ$4=\"Promoção\",VLOOKUP(E44,Tabelapreço[],11),IF($AJ$4=\"Facção\",VLOOKUP(E44,Tabelapreço[],12)))))))))))","v":"  "},null,null,null,null,""]
[31,"",null,null,null,null,null,{"$f":"IF(E45=\"\",\"  \",VLOOKUP(E45,'Tabela Preço'!$A$2:$C$600,2,FALSE))","v":"  "},null,null,null,null,null,null,null,null,{"$f":"IF(E45=\"\",\"  \",VLOOKUP(E45,'Tabela Preço'!$A$2:$D$600,18))","v":"  "},null,null,null,null,null,null,null,null,null,null,null,null,null,null,null,null,null,null,null,null,null,null,{"$f":"IF(E45=\"\",\"  \",IF($AJ$4=\"Tabela 1\",VLOOKUP(E45,Tabelapreço[],4),IF($AJ$4=\"Prazo\",VLOOKUP(E45,Tabelapreço[],5),IF($AJ$4=\"A vista\",VLOOKUP(E45,Tabelapreço[],6),IF($AJ$4=\"Varejo\",VLOOKUP(E45,Tabelapreço[],7),IF($AJ$4=\"Tabela 6\",VLOOKUP(E45,Tabelapreço[],8),IF($AJ$4=\"Tabela 8\",VLOOKUP(E45,Tabelapreço[],9),IF($AJ$4=\"L. Fernando\",VLOOKUP(E45,Tabelapreço[],10),IF($AJ$4=\"Promoção\",VLOOKUP(E45,Tabelapreço[],11),IF($AJ$4=\"Facção\",VLOOKUP(E45,Tabelapreço[],12)))))))))))","v":"  "},null,null,null,null,""]
[32,"",null,null,null,null,null,{"$f":"IF(E46=\"\",\"  \",VLOOKUP(E46,'Tabela Preço'!$A$2:$C$600,2,FALSE))","v":"  "},null,null,null,null,null,null,null,null,{"$f":"IF(E46=\"\",\"  \",VLOOKUP(E46,'Tabela Preço'!$A$2:$D$600,18))","v":"  "},null,null,null,null,null,null,null,null,null,null,null,null,null,null,null,null,null,null,null,null,null,null,{"$f":"IF(E46=\"\",\"  \",IF($AJ$4=\"Tabela 1\",VLOOKUP(E46,Tabelapreço[],4),IF($AJ$4=\"Prazo\",VLOOKUP(E46,Tabelapreço[],5),IF($AJ$4=\"A vista\",VLOOKUP(E46,Tabelapreço[],6),IF($AJ$4=\"Varejo\",VLOOKUP(E46,Tabelapreço[],7),IF($AJ$4=\"Tabela 6\",VLOOKUP(E46,Tabelapreço[],8),IF($AJ$4=\"Tabela 8\",VLOOKUP(E46,Tabelapreço[],9),IF($AJ$4=\"L. Fernando\",VLOOKUP(E46,Tabelapreço[],10),IF($AJ$4=\"Promoção\",VLOOKUP(E46,Tabelapreço[],11),IF($AJ$4=\"Facção\",VLOOKUP(E46,Tabelapreço[],12)))))))))))","v":"  "},null,null,null,null,""]
[33,"",null,null,null,null,null,{"$f":"IF(E47=\"\",\"  \",VLOOKUP(E47,'Tabela Preço'!$A$2:$C$600,2,FALSE))","v":"  "},null,null,null,null,null,null,null,null,{"$f":"IF(E47=\"\",\"  \",VLOOKUP(E47,'Tabela Preço'!$A$2:$D$600,18))","v":"  "},null,null,null,null,null,null,null,null,null,null,null,null,null,null,null,null,null,null,null,null,null,null,{"$f":"IF(E47=\"\",\"  \",IF($AJ$4=\"Tabela 1\",VLOOKUP(E47,Tabelapreço[],4),IF($AJ$4=\"Prazo\",VLOOKUP(E47,Tabelapreço[],5),IF($AJ$4=\"A vista\",VLOOKUP(E47,Tabelapreço[],6),IF($AJ$4=\"Varejo\",VLOOKUP(E47,Tabelapreço[],7),IF($AJ$4=\"Tabela 6\",VLOOKUP(E47,Tabelapreço[],8),IF($AJ$4=\"Tabela 8\",VLOOKUP(E47,Tabelapreço[],9),IF($AJ$4=\"L. Fernando\",VLOOKUP(E47,Tabelapreço[],10),IF($AJ$4=\"Promoção\",VLOOKUP(E47,Tabelapreço[],11),IF($AJ$4=\"Facção\",VLOOKUP(E47,Tabelapreço[],12)))))))))))","v":"  "},null,null,null,null,""]
[34,"",null,null,null,null,null,{"$f":"IF(E48=\"\",\"  \",VLOOKUP(E48,'Tabela Preço'!$A$2:$C$600,2,FALSE))","v":"  "},null,null,null,null,null,null,null,null,{"$f":"IF(E48=\"\",\"  \",VLOOKUP(E48,'Tabela Preço'!$A$2:$D$600,18))","v":"  "},null,null,null,null,null,null,null,null,null,null,null,null,null,null,null,null,null,null,null,null,null,null,{"$f":"IF(E48=\"\",\"  \",IF($AJ$4=\"Tabela 1\",VLOOKUP(E48,Tabelapreço[],4),IF($AJ$4=\"Prazo\",VLOOKUP(E48,Tabelapreço[],5),IF($AJ$4=\"A vista\",VLOOKUP(E48,Tabelapreço[],6),IF($AJ$4=\"Varejo\",VLOOKUP(E48,Tabelapreço[],7),IF($AJ$4=\"Tabela 6\",VLOOKUP(E48,Tabelapreço[],8),IF($AJ$4=\"Tabela 8\",VLOOKUP(E48,Tabelapreço[],9),IF($AJ$4=\"L. Fernando\",VLOOKUP(E48,Tabelapreço[],10),IF($AJ$4=\"Promoção\",VLOOKUP(E48,Tabelapreço[],11),IF($AJ$4=\"Facção\",VLOOKUP(E48,Tabelapreço[],12)))))))))))","v":"  "},null,null,null,null,""]
[35,"",null,null,null,null,null,{"$f":"IF(E49=\"\",\"  \",VLOOKUP(E49,'Tabela Preço'!$A$2:$C$600,2,FALSE))","v":"  "},null,null,null,null,null,null,null,null,{"$f":"IF(E49=\"\",\"  \",VLOOKUP(E49,'Tabela Preço'!$A$2:$D$600,18))","v":"  "},null,null,null,null,null,null,null,null,null,null,null,null,null,null,null,null,null,null,null,null,null,null,{"$f":"IF(E49=\"\",\"  \",IF($AJ$4=\"Tabela 1\",VLOOKUP(E49,Tabelapreço[],4),IF($AJ$4=\"Prazo\",VLOOKUP(E49,Tabelapreço[],5),IF($AJ$4=\"A vista\",VLOOKUP(E49,Tabelapreço[],6),IF($AJ$4=\"Varejo\",VLOOKUP(E49,Tabelapreço[],7),IF($AJ$4=\"Tabela 6\",VLOOKUP(E49,Tabelapreço[],8),IF($AJ$4=\"Tabela 8\",VLOOKUP(E49,Tabelapreço[],9),IF($AJ$4=\"L. Fernando\",VLOOKUP(E49,Tabelapreço[],10),IF($AJ$4=\"Promoção\",VLOOKUP(E49,Tabelapreço[],11),IF($AJ$4=\"Facção\",VLOOKUP(E49,Tabelapreço[],12)))))))))))","v":"  "},null,null,null,null,""]
[36,"",null,null,null,null,null,{"$f":"IF(E50=\"\",\"  \",VLOOKUP(E50,'Tabela Preço'!$A$2:$C$600,2,FALSE))","v":"  "},null,null,null,null,null,null,null,null,{"$f":"IF(E50=\"\",\"  \",VLOOKUP(E50,'Tabela Preço'!$A$2:$D$600,18))","v":"  "},null,null,null,null,null,null,null,null,null,null,null,null,null,null,null,null,null,null,null,null,null,null,{"$f":"IF(E50=\"\",\"  \",IF($AJ$4=\"Tabela 1\",VLOOKUP(E50,Tabelapreço[],4),IF($AJ$4=\"Prazo\",VLOOKUP(E50,Tabelapreço[],5),IF($AJ$4=\"A vista\",VLOOKUP(E50,Tabelapreço[],6),IF($AJ$4=\"Varejo\",VLOOKUP(E50,Tabelapreço[],7),IF($AJ$4=\"Tabela 6\",VLOOKUP(E50,Tabelapreço[],8),IF($AJ$4=\"Tabela 8\",VLOOKUP(E50,Tabelapreço[],9),IF($AJ$4=\"L. Fernando\",VLOOKUP(E50,Tabelapreço[],10),IF($AJ$4=\"Promoção\",VLOOKUP(E50,Tabelapreço[],11),IF($AJ$4=\"Facção\",VLOOKUP(E50,Tabelapreço[],12)))))))))))","v":"  "},null,null,null,null,""]
[37,"",null,null,null,null,null,{"$f":"IF(E51=\"\",\"  \",VLOOKUP(E51,'Tabela Preço'!$A$2:$C$600,2,FALSE))","v":"  "},null,null,null,null,null,null,null,null,{"$f":"IF(E51=\"\",\"  \",VLOOKUP(E51,'Tabela Preço'!$A$2:$D$600,18))","v":"  "},null,null,null,null,null,null,null,null,null,null,null,null,null,null,null,null,null,null,null,null,null,null,{"$f":"IF(E51=\"\",\"  \",IF($AJ$4=\"Tabela 1\",VLOOKUP(E51,Tabelapreço[],4),IF($AJ$4=\"Prazo\",VLOOKUP(E51,Tabelapreço[],5),IF($AJ$4=\"A vista\",VLOOKUP(E51,Tabelapreço[],6),IF($AJ$4=\"Varejo\",VLOOKUP(E51,Tabelapreço[],7),IF($AJ$4=\"Tabela 6\",VLOOKUP(E51,Tabelapreço[],8),IF($AJ$4=\"Tabela 8\",VLOOKUP(E51,Tabelapreço[],9),IF($AJ$4=\"L. Fernando\",VLOOKUP(E51,Tabelapreço[],10),IF($AJ$4=\"Promoção\",VLOOKUP(E51,Tabelapreço[],11),IF($AJ$4=\"Facção\",VLOOKUP(E51,Tabelapreço[],12)))))))))))","v":"  "},null,null,null,null,""]
[38,"",null,null,null,null,null,{"$f":"IF(E52=\"\",\"  \",VLOOKUP(E52,'Tabela Preço'!$A$2:$C$600,2,FALSE))","v":"  "},null,null,null,null,null,null,null,null,{"$f":"IF(E52=\"\",\"  \",VLOOKUP(E52,'Tabela Preço'!$A$2:$D$600,18))","v":"  "},null,null,null,null,null,null,null,null,null,null,null,null,null,null,null,null,null,null,null,null,null,null,{"$f":"IF(E52=\"\",\"  \",IF($AJ$4=\"Tabela 1\",VLOOKUP(E52,Tabelapreço[],4),IF($AJ$4=\"Prazo\",VLOOKUP(E52,Tabelapreço[],5),IF($AJ$4=\"A vista\",VLOOKUP(E52,Tabelapreço[],6),IF($AJ$4=\"Varejo\",VLOOKUP(E52,Tabelapreço[],7),IF($AJ$4=\"Tabela 6\",VLOOKUP(E52,Tabelapreço[],8),IF($AJ$4=\"Tabela 8\",VLOOKUP(E52,Tabelapreço[],9),IF($AJ$4=\"L. Fernando\",VLOOKUP(E52,Tabelapreço[],10),IF($AJ$4=\"Promoção\",VLOOKUP(E52,Tabelapreço[],11),IF($AJ$4=\"Facção\",VLOOKUP(E52,Tabelapreço[],12)))))))))))","v":"  "},null,null,null,null,""]
[39,"",null,null,null,null,null,{"$f":"IF(E53=\"\",\"  \",VLOOKUP(E53,'Tabela Preço'!$A$2:$C$600,2,FALSE))","v":"  "},null,null,null,null,null,null,null,null,{"$f":"IF(E53=\"\",\"  \",VLOOKUP(E53,'Tabela Preço'!$A$2:$D$600,18))","v":"  "},null,null,null,null,null,null,null,null,null,null,null,null,null,null,null,null,null,null,null,null,null,null,{"$f":"IF(E53=\"\",\"  \",IF($AJ$4=\"Tabela 1\",VLOOKUP(E53,Tabelapreço[],4),IF($AJ$4=\"Prazo\",VLOOKUP(E53,Tabelapreço[],5),IF($AJ$4=\"A vista\",VLOOKUP(E53,Tabelapreço[],6),IF($AJ$4=\"Varejo\",VLOOKUP(E53,Tabelapreço[],7),IF($AJ$4=\"Tabela 6\",VLOOKUP(E53,Tabelapreço[],8),IF($AJ$4=\"Tabela 8\",VLOOKUP(E53,Tabelapreço[],9),IF($AJ$4=\"L. Fernando\",VLOOKUP(E53,Tabelapreço[],10),IF($AJ$4=\"Promoção\",VLOOKUP(E53,Tabelapreço[],11),IF($AJ$4=\"Facção\",VLOOKUP(E53,Tabelapreço[],12)))))))))))","v":"  "},null,null,null,null,""]
[40,"",null,null,null,null,null,{"$f":"IF(E54=\"\",\"  \",VLOOKUP(E54,'Tabela Preço'!$A$2:$C$600,2,FALSE))","v":"  "},null,null,null,null,null,null,null,null,{"$f":"IF(E54=\"\",\"  \",VLOOKUP(E54,'Tabela Preço'!$A$2:$D$600,18))","v":"  "},null,null,null,null,null,null,null,null,null,null,null,null,null,null,null,null,null,null,null,null,null,null,{"$f":"IF(E54=\"\",\"  \",IF($AJ$4=\"Tabela 1\",VLOOKUP(E54,Tabelapreço[],4),IF($AJ$4=\"Prazo\",VLOOKUP(E54,Tabelapreço[],5),IF($AJ$4=\"A vista\",VLOOKUP(E54,Tabelapreço[],6),IF($AJ$4=\"Varejo\",VLOOKUP(E54,Tabelapreço[],7),IF($AJ$4=\"Tabela 6\",VLOOKUP(E54,Tabelapreço[],8),IF($AJ$4=\"Tabela 8\",VLOOKUP(E54,Tabelapreço[],9),IF($AJ$4=\"L. Fernando\",VLOOKUP(E54,Tabelapreço[],10),IF($AJ$4=\"Promoção\",VLOOKUP(E54,Tabelapreço[],11),IF($AJ$4=\"Facção\",VLOOKUP(E54,Tabelapreço[],12)))))))))))","v":"  "},null,null,null,null,""]
[41,"",null,null,null,null,null,{"$f":"IF(E55=\"\",\"  \",VLOOKUP(E55,'Tabela Preço'!$A$2:$C$600,2,FALSE))","v":"  "},null,null,null,null,null,null,null,null,{"$f":"IF(E55=\"\",\"  \",VLOOKUP(E55,'Tabela Preço'!$A$2:$D$600,18))","v":"  "},null,null,null,null,null,null,null,null,null,null,null,null,null,null,null,null,null,null,null,null,null,null,{"$f":"IF(E55=\"\",\"  \",IF($AJ$4=\"Tabela 1\",VLOOKUP(E55,Tabelapreço[],4),IF($AJ$4=\"Prazo\",VLOOKUP(E55,Tabelapreço[],5),IF($AJ$4=\"A vista\",VLOOKUP(E55,Tabelapreço[],6),IF($AJ$4=\"Varejo\",VLOOKUP(E55,Tabelapreço[],7),IF($AJ$4=\"Tabela 6\",VLOOKUP(E55,Tabelapreço[],8),IF($AJ$4=\"Tabela 8\",VLOOKUP(E55,Tabelapreço[],9),IF($AJ$4=\"L. Fernando\",VLOOKUP(E55,Tabelapreço[],10),IF($AJ$4=\"Promoção\",VLOOKUP(E55,Tabelapreço[],11),IF($AJ$4=\"Facção\",VLOOKUP(E55,Tabelapreço[],12)))))))))))","v":"  "},null,null,null,null,""]
[42,"",null,null,null,null,null,{"$f":"IF(E56=\"\",\"  \",VLOOKUP(E56,'Tabela Preço'!$A$2:$C$600,2,FALSE))","v":"  "},null,null,null,null,null,null,null,null,{"$f":"IF(E56=\"\",\"  \",VLOOKUP(E56,'Tabela Preço'!$A$2:$D$600,18))","v":"  "},null,null,null,null,null,null,null,null,null,null,null,null,null,null,null,null,null,null,null,null,null,null,{"$f":"IF(E56=\"\",\"  \",IF($AJ$4=\"Tabela 1\",VLOOKUP(E56,Tabelapreço[],4),IF($AJ$4=\"Prazo\",VLOOKUP(E56,Tabelapreço[],5),IF($AJ$4=\"A vista\",VLOOKUP(E56,Tabelapreço[],6),IF($AJ$4=\"Varejo\",VLOOKUP(E56,Tabelapreço[],7),IF($AJ$4=\"Tabela 6\",VLOOKUP(E56,Tabelapreço[],8),IF($AJ$4=\"Tabela 8\",VLOOKUP(E56,Tabelapreço[],9),IF($AJ$4=\"L. Fernando\",VLOOKUP(E56,Tabelapreço[],10),IF($AJ$4=\"Promoção\",VLOOKUP(E56,Tabelapreço[],11),IF($AJ$4=\"Facção\",VLOOKUP(E56,Tabelapreço[],12)))))))))))","v":"  "},null,null,null,null,""]
[43,"",null,null,null,null,null,{"$f":"IF(E57=\"\",\"  \",VLOOKUP(E57,'Tabela Preço'!$A$2:$C$600,2,FALSE))","v":"  "},null,null,null,null,null,null,null,null,{"$f":"IF(E57=\"\",\"  \",VLOOKUP(E57,'Tabela Preço'!$A$2:$D$600,18))","v":"  "},null,null,null,null,null,null,null,null,null,null,null,null,null,null,null,null,null,null,null,null,null,null,{"$f":"IF(E57=\"\",\"  \",IF($AJ$4=\"Tabela 1\",VLOOKUP(E57,Tabelapreço[],4),IF($AJ$4=\"Prazo\",VLOOKUP(E57,Tabelapreço[],5),IF($AJ$4=\"A vista\",VLOOKUP(E57,Tabelapreço[],6),IF($AJ$4=\"Varejo\",VLOOKUP(E57,Tabelapreço[],7),IF($AJ$4=\"Tabela 6\",VLOOKUP(E57,Tabelapreço[],8),IF($AJ$4=\"Tabela 8\",VLOOKUP(E57,Tabelapreço[],9),IF($AJ$4=\"L. Fernando\",VLOOKUP(E57,Tabelapreço[],10),IF($AJ$4=\"Promoção\",VLOOKUP(E57,Tabelapreço[],11),IF($AJ$4=\"Facção\",VLOOKUP(E57,Tabelapreço[],12)))))))))))","v":"  "},null,null,null,null,""]
[44,"",null,null,null,null,null,{"$f":"IF(E58=\"\",\"  \",VLOOKUP(E58,'Tabela Preço'!$A$2:$C$600,2,FALSE))","v":"  "},null,null,null,null,null,null,null,null,{"$f":"IF(E58=\"\",\"  \",VLOOKUP(E58,'Tabela Preço'!$A$2:$D$600,18))","v":"  "},null,null,null,null,null,null,null,null,null,null,null,null,null,null,null,null,null,null,null,null,null,null,{"$f":"IF(E58=\"\",\"  \",IF($AJ$4=\"Tabela 1\",VLOOKUP(E58,Tabelapreço[],4),IF($AJ$4=\"Prazo\",VLOOKUP(E58,Tabelapreço[],5),IF($AJ$4=\"A vista\",VLOOKUP(E58,Tabelapreço[],6),IF($AJ$4=\"Varejo\",VLOOKUP(E58,Tabelapreço[],7),IF($AJ$4=\"Tabela 6\",VLOOKUP(E58,Tabelapreço[],8),IF($AJ$4=\"Tabela 8\",VLOOKUP(E58,Tabelapreço[],9),IF($AJ$4=\"L. Fernando\",VLOOKUP(E58,Tabelapreço[],10),IF($AJ$4=\"Promoção\",VLOOKUP(E58,Tabelapreço[],11),IF($AJ$4=\"Facção\",VLOOKUP(E58,Tabelapreço[],12)))))))))))","v":"  "},null,null,null,null,""]
[45,"",null,null,null,null,null,{"$f":"IF(E59=\"\",\"  \",VLOOKUP(E59,'Tabela Preço'!$A$2:$C$600,2,FALSE))","v":"  "},null,null,null,null,null,null,null,null,{"$f":"IF(E59=\"\",\"  \",VLOOKUP(E59,'Tabela Preço'!$A$2:$D$600,18))","v":"  "},null,null,null,null,null,null,null,null,null,null,null,null,null,null,null,null,null,null,null,null,null,null,{"$f":"IF(E59=\"\",\"  \",IF($AJ$4=\"Tabela 1\",VLOOKUP(E59,Tabelapreço[],4),IF($AJ$4=\"Prazo\",VLOOKUP(E59,Tabelapreço[],5),IF($AJ$4=\"A vista\",VLOOKUP(E59,Tabelapreço[],6),IF($AJ$4=\"Varejo\",VLOOKUP(E59,Tabelapreço[],7),IF($AJ$4=\"Tabela 6\",VLOOKUP(E59,Tabelapreço[],8),IF($AJ$4=\"Tabela 8\",VLOOKUP(E59,Tabelapreço[],9),IF($AJ$4=\"L. Fernando\",VLOOKUP(E59,Tabelapreço[],10),IF($AJ$4=\"Promoção\",VLOOKUP(E59,Tabelapreço[],11),IF($AJ$4=\"Facção\",VLOOKUP(E59,Tabelapreço[],12)))))))))))","v":"  "},null,null,null,null,""]
[46,"",null,null,null,null,null,{"$f":"IF(E60=\"\",\"  \",VLOOKUP(E60,'Tabela Preço'!$A$2:$C$600,2,FALSE))","v":"  "},null,null,null,null,null,null,null,null,{"$f":"IF(E60=\"\",\"  \",VLOOKUP(E60,'Tabela Preço'!$A$2:$D$600,18))","v":"  "},null,null,null,null,null,null,null,null,null,null,null,null,null,null,null,null,null,null,null,null,null,null,{"$f":"IF(E60=\"\",\"  \",IF($AJ$4=\"Tabela 1\",VLOOKUP(E60,Tabelapreço[],4),IF($AJ$4=\"Prazo\",VLOOKUP(E60,Tabelapreço[],5),IF($AJ$4=\"A vista\",VLOOKUP(E60,Tabelapreço[],6),IF($AJ$4=\"Varejo\",VLOOKUP(E60,Tabelapreço[],7),IF($AJ$4=\"Tabela 6\",VLOOKUP(E60,Tabelapreço[],8),IF($AJ$4=\"Tabela 8\",VLOOKUP(E60,Tabelapreço[],9),IF($AJ$4=\"L. Fernando\",VLOOKUP(E60,Tabelapreço[],10),IF($AJ$4=\"Promoção\",VLOOKUP(E60,Tabelapreço[],11),IF($AJ$4=\"Facção\",VLOOKUP(E60,Tabelapreço[],12)))))))))))","v":"  "},null,null,null,null,""]
[47,"",null,null,null,null,null,{"$f":"IF(E61=\"\",\"  \",VLOOKUP(E61,'Tabela Preço'!$A$2:$C$600,2,FALSE))","v":"  "},null,null,null,null,null,null,null,null,{"$f":"IF(E61=\"\",\"  \",VLOOKUP(E61,'Tabela Preço'!$A$2:$D$600,18))","v":"  "},null,null,null,null,null,null,null,null,null,null,null,null,null,null,null,null,null,null,null,null,null,null,{"$f":"IF(E61=\"\",\"  \",IF($AJ$4=\"Tabela 1\",VLOOKUP(E61,Tabelapreço[],4),IF($AJ$4=\"Prazo\",VLOOKUP(E61,Tabelapreço[],5),IF($AJ$4=\"A vista\",VLOOKUP(E61,Tabelapreço[],6),IF($AJ$4=\"Varejo\",VLOOKUP(E61,Tabelapreço[],7),IF($AJ$4=\"Tabela 6\",VLOOKUP(E61,Tabelapreço[],8),IF($AJ$4=\"Tabela 8\",VLOOKUP(E61,Tabelapreço[],9),IF($AJ$4=\"L. Fernando\",VLOOKUP(E61,Tabelapreço[],10),IF($AJ$4=\"Promoção\",VLOOKUP(E61,Tabelapreço[],11),IF($AJ$4=\"Facção\",VLOOKUP(E61,Tabelapreço[],12)))))))))))","v":"  "},null,null,null,null,""]
[48,"",null,null,null,null,null,{"$f":"IF(E62=\"\",\"  \",VLOOKUP(E62,'Tabela Preço'!$A$2:$C$600,2,FALSE))","v":"  "},null,null,null,null,null,null,null,null,{"$f":"IF(E62=\"\",\"  \",VLOOKUP(E62,'Tabela Preço'!$A$2:$D$600,18))","v":"  "},null,null,null,null,null,null,null,null,null,null,null,null,null,null,null,null,null,null,null,null,null,null,{"$f":"IF(E62=\"\",\"  \",IF($AJ$4=\"Tabela 1\",VLOOKUP(E62,Tabelapreço[],4),IF($AJ$4=\"Prazo\",VLOOKUP(E62,Tabelapreço[],5),IF($AJ$4=\"A vista\",VLOOKUP(E62,Tabelapreço[],6),IF($AJ$4=\"Varejo\",VLOOKUP(E62,Tabelapreço[],7),IF($AJ$4=\"Tabela 6\",VLOOKUP(E62,Tabelapreço[],8),IF($AJ$4=\"Tabela 8\",VLOOKUP(E62,Tabelapreço[],9),IF($AJ$4=\"L. Fernando\",VLOOKUP(E62,Tabelapreço[],10),IF($AJ$4=\"Promoção\",VLOOKUP(E62,Tabelapreço[],11),IF($AJ$4=\"Facção\",VLOOKUP(E62,Tabelapreço[],12)))))))))))","v":"  "},null,null,null,null,""]
[49,"",null,null,null,null,null,{"$f":"IF(E63=\"\",\"  \",VLOOKUP(E63,'Tabela Preço'!$A$2:$C$600,2,FALSE))","v":"  "},null,null,null,null,null,null,null,null,{"$f":"IF(E63=\"\",\"  \",VLOOKUP(E63,'Tabela Preço'!$A$2:$D$600,18))","v":"  "},null,null,null,null,null,null,null,null,null,null,null,null,null,null,null,null,null,null,null,null,null,null,{"$f":"IF(E63=\"\",\"  \",IF($AJ$4=\"Tabela 1\",VLOOKUP(E63,Tabelapreço[],4),IF($AJ$4=\"Prazo\",VLOOKUP(E63,Tabelapreço[],5),IF($AJ$4=\"A vista\",VLOOKUP(E63,Tabelapreço[],6),IF($AJ$4=\"Varejo\",VLOOKUP(E63,Tabelapreço[],7),IF($AJ$4=\"Tabela 6\",VLOOKUP(E63,Tabelapreço[],8),IF($AJ$4=\"Tabela 8\",VLOOKUP(E63,Tabelapreço[],9),IF($AJ$4=\"L. Fernando\",VLOOKUP(E63,Tabelapreço[],10),IF($AJ$4=\"Promoção\",VLOOKUP(E63,Tabelapreço[],11),IF($AJ$4=\"Facção\",VLOOKUP(E63,Tabelapreço[],12)))))))))))","v":"  "},null,null,null,null,""]
[50,{"$f":"IF(E64=\"\",\"\",SUM(AD64:AL64))","v":""},null,null,null,null,null,{"$f":"IF(E64=\"\",\"  \",VLOOKUP(E64,'Tabela Preço'!$A$2:$C$600,2,FALSE))","v":"  "},null,null,null,null,null,null,null,null,{"$f":"IF(E64=\"\",\"  \",VLOOKUP(E64,'Tabela Preço'!$A$2:$D$600,18))","v":"  "},null,null,null,null,null,null,null,null,null,null,null,null,null,null,null,null,null,null,null,null,null,null,{"$f":"IF(E64=\"\",\"  \",IF($AJ$4=\"Tabela 1\",VLOOKUP(E64,Tabelapreço[],4),IF($AJ$4=\"Prazo\",VLOOKUP(E64,Tabelapreço[],5),IF($AJ$4=\"A vista\",VLOOKUP(E64,Tabelapreço[],6),IF($AJ$4=\"Varejo\",VLOOKUP(E64,Tabelapreço[],7),IF($AJ$4=\"Tabela 6\",VLOOKUP(E64,Tabelapreço[],8),IF($AJ$4=\"Tabela 8\",VLOOKUP(E64,Tabelapreço[],9),IF($AJ$4=\"L. Fernando\",VLOOKUP(E64,Tabelapreço[],10),IF($AJ$4=\"Promoção\",VLOOKUP(E64,Tabelapreço[],11),IF($AJ$4=\"Facção\",VLOOKUP(E64,Tabelapreço[],12)))))))))))","v":"  "},null,null,null,null,""]
[51,"",null,null,null,null,null,{"$f":"IF(E65=\"\",\"  \",VLOOKUP(E65,'Tabela Preço'!$A$2:$C$600,2,FALSE))","v":"  "},null,null,null,null,null,null,null,null,{"$f":"IF(E65=\"\",\"  \",VLOOKUP(E65,'Tabela Preço'!$A$2:$D$600,18))","v":"  "},null,null,null,null,null,null,null,null,null,null,null,null,null,null,null,null,null,null,null,null,null,null,{"$f":"IF(E65=\"\",\"  \",IF($AJ$4=\"Tabela 1\",VLOOKUP(E65,Tabelapreço[],4),IF($AJ$4=\"Prazo\",VLOOKUP(E65,Tabelapreço[],5),IF($AJ$4=\"A vista\",VLOOKUP(E65,Tabelapreço[],6),IF($AJ$4=\"Varejo\",VLOOKUP(E65,Tabelapreço[],7),IF($AJ$4=\"Tabela 6\",VLOOKUP(E65,Tabelapreço[],8),IF($AJ$4=\"Tabela 8\",VLOOKUP(E65,Tabelapreço[],9),IF($AJ$4=\"L. Fernando\",VLOOKUP(E65,Tabelapreço[],10),IF($AJ$4=\"Promoção\",VLOOKUP(E65,Tabelapreço[],11),IF($AJ$4=\"Facção\",VLOOKUP(E65,Tabelapreço[],12)))))))))))","v":"  "},null,null,null,null,""]
[52,"",null,null,null,null,null,{"$f":"IF(E66=\"\",\"  \",VLOOKUP(E66,'Tabela Preço'!$A$2:$C$600,2,FALSE))","v":"  "},null,null,null,null,null,null,null,null,{"$f":"IF(E66=\"\",\"  \",VLOOKUP(E66,'Tabela Preço'!$A$2:$D$600,18))","v":"  "},null,null,null,null,null,null,null,null,null,null,null,null,null,null,null,null,null,null,null,null,null,null,{"$f":"IF(E66=\"\",\"  \",IF($AJ$4=\"Tabela 1\",VLOOKUP(E66,Tabelapreço[],4),IF($AJ$4=\"Prazo\",VLOOKUP(E66,Tabelapreço[],5),IF($AJ$4=\"A vista\",VLOOKUP(E66,Tabelapreço[],6),IF($AJ$4=\"Varejo\",VLOOKUP(E66,Tabelapreço[],7),IF($AJ$4=\"Tabela 6\",VLOOKUP(E66,Tabelapreço[],8),IF($AJ$4=\"Tabela 8\",VLOOKUP(E66,Tabelapreço[],9),IF($AJ$4=\"L. Fernando\",VLOOKUP(E66,Tabelapreço[],10),IF($AJ$4=\"Promoção\",VLOOKUP(E66,Tabelapreço[],11),IF($AJ$4=\"Facção\",VLOOKUP(E66,Tabelapreço[],12)))))))))))","v":"  "},null,null,null,null,""]
[53,"",null,null,null,null,null,{"$f":"IF(E67=\"\",\"  \",VLOOKUP(E67,'Tabela Preço'!$A$2:$C$600,2,FALSE))","v":"  "},null,null,null,null,null,null,null,null,{"$f":"IF(E67=\"\",\"  \",VLOOKUP(E67,'Tabela Preço'!$A$2:$D$600,18))","v":"  "},null,null,null,null,null,null,null,null,null,null,null,null,null,null,null,null,null,null,null,null,null,null,{"$f":"IF(E67=\"\",\"  \",IF($AJ$4=\"Tabela 1\",VLOOKUP(E67,Tabelapreço[],4),IF($AJ$4=\"Prazo\",VLOOKUP(E67,Tabelapreço[],5),IF($AJ$4=\"A vista\",VLOOKUP(E67,Tabelapreço[],6),IF($AJ$4=\"Varejo\",VLOOKUP(E67,Tabelapreço[],7),IF($AJ$4=\"Tabela 6\",VLOOKUP(E67,Tabelapreço[],8),IF($AJ$4=\"Tabela 8\",VLOOKUP(E67,Tabelapreço[],9),IF($AJ$4=\"L. Fernando\",VLOOKUP(E67,Tabelapreço[],10),IF($AJ$4=\"Promoção\",VLOOKUP(E67,Tabelapreço[],11),IF($AJ$4=\"Facção\",VLOOKUP(E67,Tabelapreço[],12)))))))))))","v":"  "},null,null,null,null,""]
[54,"",null,null,null,null,null,{"$f":"IF(E68=\"\",\"  \",VLOOKUP(E68,'Tabela Preço'!$A$2:$C$600,2,FALSE))","v":"  "},null,null,null,null,null,null,null,null,{"$f":"IF(E68=\"\",\"  \",VLOOKUP(E68,'Tabela Preço'!$A$2:$D$600,18))","v":"  "},null,null,null,null,null,null,null,null,null,null,null,null,null,null,null,null,null,null,null,null,null,null,{"$f":"IF(E68=\"\",\"  \",IF($AJ$4=\"Tabela 1\",VLOOKUP(E68,Tabelapreço[],4),IF($AJ$4=\"Prazo\",VLOOKUP(E68,Tabelapreço[],5),IF($AJ$4=\"A vista\",VLOOKUP(E68,Tabelapreço[],6),IF($AJ$4=\"Varejo\",VLOOKUP(E68,Tabelapreço[],7),IF($AJ$4=\"Tabela 6\",VLOOKUP(E68,Tabelapreço[],8),IF($AJ$4=\"Tabela 8\",VLOOKUP(E68,Tabelapreço[],9),IF($AJ$4=\"L. Fernando\",VLOOKUP(E68,Tabelapreço[],10),IF($AJ$4=\"Promoção\",VLOOKUP(E68,Tabelapreço[],11),IF($AJ$4=\"Facção\",VLOOKUP(E68,Tabelapreço[],12)))))))))))","v":"  "},null,null,null,null,""]
[55,"",null,null,null,null,null,{"$f":"IF(E69=\"\",\"  \",VLOOKUP(E69,'Tabela Preço'!$A$2:$C$600,2,FALSE))","v":"  "},null,null,null,null,null,null,null,null,{"$f":"IF(E69=\"\",\"  \",VLOOKUP(E69,'Tabela Preço'!$A$2:$D$600,18))","v":"  "},null,null,null,null,null,null,null,null,null,null,null,null,null,null,null,null,null,null,null,null,null,null,{"$f":"IF(E69=\"\",\"  \",IF($AJ$4=\"Tabela 1\",VLOOKUP(E69,Tabelapreço[],4),IF($AJ$4=\"Prazo\",VLOOKUP(E69,Tabelapreço[],5),IF($AJ$4=\"A vista\",VLOOKUP(E69,Tabelapreço[],6),IF($AJ$4=\"Varejo\",VLOOKUP(E69,Tabelapreço[],7),IF($AJ$4=\"Tabela 6\",VLOOKUP(E69,Tabelapreço[],8),IF($AJ$4=\"Tabela 8\",VLOOKUP(E69,Tabelapreço[],9),IF($AJ$4=\"L. Fernando\",VLOOKUP(E69,Tabelapreço[],10),IF($AJ$4=\"Promoção\",VLOOKUP(E69,Tabelapreço[],11),IF($AJ$4=\"Facção\",VLOOKUP(E69,Tabelapreço[],12)))))))))))","v":"  "},null,null,null,null,""]
[56,"",null,null,null,null,null,{"$f":"IF(E70=\"\",\"  \",VLOOKUP(E70,'Tabela Preço'!$A$2:$C$600,2,FALSE))","v":"  "},null,null,null,null,null,null,null,null,{"$f":"IF(E70=\"\",\"  \",VLOOKUP(E70,'Tabela Preço'!$A$2:$D$600,18))","v":"  "},null,null,null,null,null,null,null,null,null,null,null,null,null,null,null,null,null,null,null,null,null,null,{"$f":"IF(E70=\"\",\"  \",IF($AJ$4=\"Tabela 1\",VLOOKUP(E70,Tabelapreço[],4),IF($AJ$4=\"Prazo\",VLOOKUP(E70,Tabelapreço[],5),IF($AJ$4=\"A vista\",VLOOKUP(E70,Tabelapreço[],6),IF($AJ$4=\"Varejo\",VLOOKUP(E70,Tabelapreço[],7),IF($AJ$4=\"Tabela 6\",VLOOKUP(E70,Tabelapreço[],8),IF($AJ$4=\"Tabela 8\",VLOOKUP(E70,Tabelapreço[],9),IF($AJ$4=\"L. Fernando\",VLOOKUP(E70,Tabelapreço[],10),IF($AJ$4=\"Promoção\",VLOOKUP(E70,Tabelapreço[],11),IF($AJ$4=\"Facção\",VLOOKUP(E70,Tabelapreço[],12)))))))))))","v":"  "},null,null,null,null,""]
[57,"",null,null,null,null,null,{"$f":"IF(E71=\"\",\"  \",VLOOKUP(E71,'Tabela Preço'!$A$2:$C$600,2,FALSE))","v":"  "},null,null,null,null,null,null,null,null,{"$f":"IF(E71=\"\",\"  \",VLOOKUP(E71,'Tabela Preço'!$A$2:$D$600,18))","v":"  "},null,null,null,null,null,null,null,null,null,null,null,null,null,null,null,null,null,null,null,null,null,null,{"$f":"IF(E71=\"\",\"  \",IF($AJ$4=\"Tabela 1\",VLOOKUP(E71,Tabelapreço[],4),IF($AJ$4=\"Prazo\",VLOOKUP(E71,Tabelapreço[],5),IF($AJ$4=\"A vista\",VLOOKUP(E71,Tabelapreço[],6),IF($AJ$4=\"Varejo\",VLOOKUP(E71,Tabelapreço[],7),IF($AJ$4=\"Tabela 6\",VLOOKUP(E71,Tabelapreço[],8),IF($AJ$4=\"Tabela 8\",VLOOKUP(E71,Tabelapreço[],9),IF($AJ$4=\"L. Fernando\",VLOOKUP(E71,Tabelapreço[],10),IF($AJ$4=\"Promoção\",VLOOKUP(E71,Tabelapreço[],11),IF($AJ$4=\"Facção\",VLOOKUP(E71,Tabelapreço[],12)))))))))))","v":"  "},null,null,null,null,""]
[58,"",null,null,null,null,null,{"$f":"IF(E72=\"\",\"  \",VLOOKUP(E72,'Tabela Preço'!$A$2:$C$600,2,FALSE))","v":"  "},null,null,null,null,null,null,null,null,{"$f":"IF(E72=\"\",\"  \",VLOOKUP(E72,'Tabela Preço'!$A$2:$D$600,18))","v":"  "},null,null,null,null,null,null,null,null,null,null,null,null,null,null,null,null,null,null,null,null,null,null,{"$f":"IF(E72=\"\",\"  \",IF($AJ$4=\"Tabela 1\",VLOOKUP(E72,Tabelapreço[],4),IF($AJ$4=\"Prazo\",VLOOKUP(E72,Tabelapreço[],5),IF($AJ$4=\"A vista\",VLOOKUP(E72,Tabelapreço[],6),IF($AJ$4=\"Varejo\",VLOOKUP(E72,Tabelapreço[],7),IF($AJ$4=\"Tabela 6\",VLOOKUP(E72,Tabelapreço[],8),IF($AJ$4=\"Tabela 8\",VLOOKUP(E72,Tabelapreço[],9),IF($AJ$4=\"L. Fernando\",VLOOKUP(E72,Tabelapreço[],10),IF($AJ$4=\"Promoção\",VLOOKUP(E72,Tabelapreço[],11),IF($AJ$4=\"Facção\",VLOOKUP(E72,Tabelapreço[],12)))))))))))","v":"  "},null,null,null,null,""]
[59,"",null,null,null,null,null,{"$f":"IF(E73=\"\",\"  \",VLOOKUP(E73,'Tabela Preço'!$A$2:$C$600,2,FALSE))","v":"  "},null,null,null,null,null,null,null,null,{"$f":"IF(E73=\"\",\"  \",VLOOKUP(E73,'Tabela Preço'!$A$2:$D$600,18))","v":"  "},null,null,null,null,null,null,null,null,null,null,null,null,null,null,null,null,null,null,null,null,null,null,{"$f":"IF(E73=\"\",\"  \",IF($AJ$4=\"Tabela 1\",VLOOKUP(E73,Tabelapreço[],4),IF($AJ$4=\"Prazo\",VLOOKUP(E73,Tabelapreço[],5),IF($AJ$4=\"A vista\",VLOOKUP(E73,Tabelapreço[],6),IF($AJ$4=\"Varejo\",VLOOKUP(E73,Tabelapreço[],7),IF($AJ$4=\"Tabela 6\",VLOOKUP(E73,Tabelapreço[],8),IF($AJ$4=\"Tabela 8\",VLOOKUP(E73,Tabelapreço[],9),IF($AJ$4=\"L. Fernando\",VLOOKUP(E73,Tabelapreço[],10),IF($AJ$4=\"Promoção\",VLOOKUP(E73,Tabelapreço[],11),IF($AJ$4=\"Facção\",VLOOKUP(E73,Tabelapreço[],12)))))))))))","v":"  "},null,null,null,null,""]
[60,"",null,null,null,null,null,{"$f":"IF(E74=\"\",\"  \",VLOOKUP(E74,'Tabela Preço'!$A$2:$C$600,2,FALSE))","v":"  "},null,null,null,null,null,null,null,null,{"$f":"IF(E74=\"\",\"  \",VLOOKUP(E74,'Tabela Preço'!$A$2:$D$600,18))","v":"  "},null,null,null,null,null,null,null,null,null,null,null,null,null,null,null,null,null,null,null,null,null,null,{"$f":"IF(E74=\"\",\"  \",IF($AJ$4=\"Tabela 1\",VLOOKUP(E74,Tabelapreço[],4),IF($AJ$4=\"Prazo\",VLOOKUP(E74,Tabelapreço[],5),IF($AJ$4=\"A vista\",VLOOKUP(E74,Tabelapreço[],6),IF($AJ$4=\"Varejo\",VLOOKUP(E74,Tabelapreço[],7),IF($AJ$4=\"Tabela 6\",VLOOKUP(E74,Tabelapreço[],8),IF($AJ$4=\"Tabela 8\",VLOOKUP(E74,Tabelapreço[],9),IF($AJ$4=\"L. Fernando\",VLOOKUP(E74,Tabelapreço[],10),IF($AJ$4=\"Promoção\",VLOOKUP(E74,Tabelapreço[],11),IF($AJ$4=\"Facção\",VLOOKUP(E74,Tabelapreço[],12)))))))))))","v":"  "},null,null,null,null,""]
[61,"",null,null,null,null,null,{"$f":"IF(E75=\"\",\"  \",VLOOKUP(E75,'Tabela Preço'!$A$2:$C$600,2,FALSE))","v":"  "},null,null,null,null,null,null,null,null,{"$f":"IF(E75=\"\",\"  \",VLOOKUP(E75,'Tabela Preço'!$A$2:$D$600,18))","v":"  "},null,null,null,null,null,null,null,null,null,null,null,null,null,null,null,null,null,null,null,null,null,null,{"$f":"IF(E75=\"\",\"  \",IF($AJ$4=\"Tabela 1\",VLOOKUP(E75,Tabelapreço[],4),IF($AJ$4=\"Prazo\",VLOOKUP(E75,Tabelapreço[],5),IF($AJ$4=\"A vista\",VLOOKUP(E75,Tabelapreço[],6),IF($AJ$4=\"Varejo\",VLOOKUP(E75,Tabelapreço[],7),IF($AJ$4=\"Tabela 6\",VLOOKUP(E75,Tabelapreço[],8),IF($AJ$4=\"Tabela 8\",VLOOKUP(E75,Tabelapreço[],9),IF($AJ$4=\"L. Fernando\",VLOOKUP(E75,Tabelapreço[],10),IF($AJ$4=\"Promoção\",VLOOKUP(E75,Tabelapreço[],11),IF($AJ$4=\"Facção\",VLOOKUP(E75,Tabelapreço[],12)))))))))))","v":"  "},null,null,null,null,""]
[62,"",null,null,null,null,null,{"$f":"IF(E76=\"\",\"  \",VLOOKUP(E76,'Tabela Preço'!$A$2:$C$600,2,FALSE))","v":"  "},null,null,null,null,null,null,null,null,{"$f":"IF(E76=\"\",\"  \",VLOOKUP(E76,'Tabela Preço'!$A$2:$D$600,18))","v":"  "},null,null,null,null,null,null,null,null,null,null,null,null,null,null,null,null,null,null,null,null,null,null,{"$f":"IF(E76=\"\",\"  \",IF($AJ$4=\"Tabela 1\",VLOOKUP(E76,Tabelapreço[],4),IF($AJ$4=\"Prazo\",VLOOKUP(E76,Tabelapreço[],5),IF($AJ$4=\"A vista\",VLOOKUP(E76,Tabelapreço[],6),IF($AJ$4=\"Varejo\",VLOOKUP(E76,Tabelapreço[],7),IF($AJ$4=\"Tabela 6\",VLOOKUP(E76,Tabelapreço[],8),IF($AJ$4=\"Tabela 8\",VLOOKUP(E76,Tabelapreço[],9),IF($AJ$4=\"L. Fernando\",VLOOKUP(E76,Tabelapreço[],10),IF($AJ$4=\"Promoção\",VLOOKUP(E76,Tabelapreço[],11),IF($AJ$4=\"Facção\",VLOOKUP(E76,Tabelapreço[],12)))))))))))","v":"  "},null,null,null,null,""]
[63,"",null,null,null,null,null,{"$f":"IF(E77=\"\",\"  \",VLOOKUP(E77,'Tabela Preço'!$A$2:$C$600,2,FALSE))","v":"  "},null,null,null,null,null,null,null,null,{"$f":"IF(E77=\"\",\"  \",VLOOKUP(E77,'Tabela Preço'!$A$2:$D$600,18))","v":"  "},null,null,null,null,null,null,null,null,null,null,null,null,null,null,null,null,null,null,null,null,null,null,{"$f":"IF(E77=\"\",\"  \",IF($AJ$4=\"Tabela 1\",VLOOKUP(E77,Tabelapreço[],4),IF($AJ$4=\"Prazo\",VLOOKUP(E77,Tabelapreço[],5),IF($AJ$4=\"A vista\",VLOOKUP(E77,Tabelapreço[],6),IF($AJ$4=\"Varejo\",VLOOKUP(E77,Tabelapreço[],7),IF($AJ$4=\"Tabela 6\",VLOOKUP(E77,Tabelapreço[],8),IF($AJ$4=\"Tabela 8\",VLOOKUP(E77,Tabelapreço[],9),IF($AJ$4=\"L. Fernando\",VLOOKUP(E77,Tabelapreço[],10),IF($AJ$4=\"Promoção\",VLOOKUP(E77,Tabelapreço[],11),IF($AJ$4=\"Facção\",VLOOKUP(E77,Tabelapreço[],12)))))))))))","v":"  "},null,null,null,null,""]
[64,"",null,null,null,null,null,{"$f":"IF(E78=\"\",\"  \",VLOOKUP(E78,'Tabela Preço'!$A$2:$C$600,2,FALSE))","v":"  "},null,null,null,null,null,null,null,null,{"$f":"IF(E78=\"\",\"  \",VLOOKUP(E78,'Tabela Preço'!$A$2:$D$600,18))","v":"  "},null,null,null,null,null,null,null,null,null,null,null,null,null,null,null,null,null,null,null,null,null,null,{"$f":"IF(E78=\"\",\"  \",IF($AJ$4=\"Tabela 1\",VLOOKUP(E78,Tabelapreço[],4),IF($AJ$4=\"Prazo\",VLOOKUP(E78,Tabelapreço[],5),IF($AJ$4=\"A vista\",VLOOKUP(E78,Tabelapreço[],6),IF($AJ$4=\"Varejo\",VLOOKUP(E78,Tabelapreço[],7),IF($AJ$4=\"Tabela 6\",VLOOKUP(E78,Tabelapreço[],8),IF($AJ$4=\"Tabela 8\",VLOOKUP(E78,Tabelapreço[],9),IF($AJ$4=\"L. Fernando\",VLOOKUP(E78,Tabelapreço[],10),IF($AJ$4=\"Promoção\",VLOOKUP(E78,Tabelapreço[],11),IF($AJ$4=\"Facção\",VLOOKUP(E78,Tabelapreço[],12)))))))))))","v":"  "},null,null,null,null,""]
[65,"",null,null,null,null,null,{"$f":"IF(E79=\"\",\"  \",VLOOKUP(E79,'Tabela Preço'!$A$2:$C$600,2,FALSE))","v":"  "},null,null,null,null,null,null,null,null,{"$f":"IF(E79=\"\",\"  \",VLOOKUP(E79,'Tabela Preço'!$A$2:$D$600,18))","v":"  "},null,null,null,null,null,null,null,null,null,null,null,null,null,null,null,null,null,null,null,null,null,null,{"$f":"IF(E79=\"\",\"  \",IF($AJ$4=\"Tabela 1\",VLOOKUP(E79,Tabelapreço[],4),IF($AJ$4=\"Prazo\",VLOOKUP(E79,Tabelapreço[],5),IF($AJ$4=\"A vista\",VLOOKUP(E79,Tabelapreço[],6),IF($AJ$4=\"Varejo\",VLOOKUP(E79,Tabelapreço[],7),IF($AJ$4=\"Tabela 6\",VLOOKUP(E79,Tabelapreço[],8),IF($AJ$4=\"Tabela 8\",VLOOKUP(E79,Tabelapreço[],9),IF($AJ$4=\"L. Fernando\",VLOOKUP(E79,Tabelapreço[],10),IF($AJ$4=\"Promoção\",VLOOKUP(E79,Tabelapreço[],11),IF($AJ$4=\"Facção\",VLOOKUP(E79,Tabelapreço[],12)))))))))))","v":"  "},null,null,null,null,""]
[66,"",null,null,null,null,null,{"$f":"IF(E80=\"\",\"  \",VLOOKUP(E80,'Tabela Preço'!$A$2:$C$600,2,FALSE))","v":"  "},null,null,null,null,null,null,null,null,{"$f":"IF(E80=\"\",\"  \",VLOOKUP(E80,'Tabela Preço'!$A$2:$D$600,18))","v":"  "},null,null,null,null,null,null,null,null,null,null,null,null,null,null,null,null,null,null,null,null,null,null,{"$f":"IF(E80=\"\",\"  \",IF($AJ$4=\"Tabela 1\",VLOOKUP(E80,Tabelapreço[],4),IF($AJ$4=\"Prazo\",VLOOKUP(E80,Tabelapreço[],5),IF($AJ$4=\"A vista\",VLOOKUP(E80,Tabelapreço[],6),IF($AJ$4=\"Varejo\",VLOOKUP(E80,Tabelapreço[],7),IF($AJ$4=\"Tabela 6\",VLOOKUP(E80,Tabelapreço[],8),IF($AJ$4=\"Tabela 8\",VLOOKUP(E80,Tabelapreço[],9),IF($AJ$4=\"L. Fernando\",VLOOKUP(E80,Tabelapreço[],10),IF($AJ$4=\"Promoção\",VLOOKUP(E80,Tabelapreço[],11),IF($AJ$4=\"Facção\",VLOOKUP(E80,Tabelapreço[],12)))))))))))","v":"  "},null,null,null,null,{"$f":"IF(E80=\"\",\"\",AN80*B80)","v":""}]
[67,"",null,null,null,null,null,{"$f":"IF(E81=\"\",\"  \",VLOOKUP(E81,'Tabela Preço'!$A$2:$C$600,2,FALSE))","v":"  "},null,null,null,null,null,null,null,null,{"$f":"IF(E81=\"\",\"  \",VLOOKUP(E81,'Tabela Preço'!$A$2:$D$600,18))","v":"  "},null,null,null,null,null,null,null,null,null,null,null,null,null,null,null,null,null,null,null,null,null,null,{"$f":"IF(E81=\"\",\"  \",IF($AJ$4=\"Tabela 1\",VLOOKUP(E81,Tabelapreço[],4),IF($AJ$4=\"Prazo\",VLOOKUP(E81,Tabelapreço[],5),IF($AJ$4=\"A vista\",VLOOKUP(E81,Tabelapreço[],6),IF($AJ$4=\"Varejo\",VLOOKUP(E81,Tabelapreço[],7),IF($AJ$4=\"Tabela 6\",VLOOKUP(E81,Tabelapreço[],8),IF($AJ$4=\"Tabela 8\",VLOOKUP(E81,Tabelapreço[],9),IF($AJ$4=\"L. Fernando\",VLOOKUP(E81,Tabelapreço[],10),IF($AJ$4=\"Promoção\",VLOOKUP(E81,Tabelapreço[],11),IF($AJ$4=\"Facção\",VLOOKUP(E81,Tabelapreço[],12)))))))))))","v":"  "},null,null,null,null,""]
[68,"",null,null,null,null,null,{"$f":"IF(E82=\"\",\"  \",VLOOKUP(E82,'Tabela Preço'!$A$2:$C$600,2,FALSE))","v":"  "},null,null,null,null,null,null,null,null,{"$f":"IF(E82=\"\",\"  \",VLOOKUP(E82,'Tabela Preço'!$A$2:$D$600,18))","v":"  "},null,null,null,null,null,null,null,null,null,null,null,null,null,null,null,null,null,null,null,null,null,null,{"$f":"IF(E82=\"\",\"  \",IF($AJ$4=\"Tabela 1\",VLOOKUP(E82,Tabelapreço[],4),IF($AJ$4=\"Prazo\",VLOOKUP(E82,Tabelapreço[],5),IF($AJ$4=\"A vista\",VLOOKUP(E82,Tabelapreço[],6),IF($AJ$4=\"Varejo\",VLOOKUP(E82,Tabelapreço[],7),IF($AJ$4=\"Tabela 6\",VLOOKUP(E82,Tabelapreço[],8),IF($AJ$4=\"Tabela 8\",VLOOKUP(E82,Tabelapreço[],9),IF($AJ$4=\"L. Fernando\",VLOOKUP(E82,Tabelapreço[],10),IF($AJ$4=\"Promoção\",VLOOKUP(E82,Tabelapreço[],11),IF($AJ$4=\"Facção\",VLOOKUP(E82,Tabelapreço[],12)))))))))))","v":"  "},null,null,null,null,""]
[69,"",null,null,null,null,null,{"$f":"IF(E83=\"\",\"  \",VLOOKUP(E83,'Tabela Preço'!$A$2:$C$600,2,FALSE))","v":"  "},null,null,null,null,null,null,null,null,{"$f":"IF(E83=\"\",\"  \",VLOOKUP(E83,'Tabela Preço'!$A$2:$D$600,18))","v":"  "},null,null,null,null,null,null,null,null,null,null,null,null,null,null,null,null,null,null,null,null,null,null,{"$f":"IF(E83=\"\",\"  \",IF($AJ$4=\"Tabela 1\",VLOOKUP(E83,Tabelapreço[],4),IF($AJ$4=\"Prazo\",VLOOKUP(E83,Tabelapreço[],5),IF($AJ$4=\"A vista\",VLOOKUP(E83,Tabelapreço[],6),IF($AJ$4=\"Varejo\",VLOOKUP(E83,Tabelapreço[],7),IF($AJ$4=\"Tabela 6\",VLOOKUP(E83,Tabelapreço[],8),IF($AJ$4=\"Tabela 8\",VLOOKUP(E83,Tabelapreço[],9),IF($AJ$4=\"L. Fernando\",VLOOKUP(E83,Tabelapreço[],10),IF($AJ$4=\"Promoção\",VLOOKUP(E83,Tabelapreço[],11),IF($AJ$4=\"Facção\",VLOOKUP(E83,Tabelapreço[],12)))))))))))","v":"  "},null,null,null,null,""]
[70,"",null,null,null,null,null,{"$f":"IF(E84=\"\",\"  \",VLOOKUP(E84,'Tabela Preço'!$A$2:$C$600,2,FALSE))","v":"  "},null,null,null,null,null,null,null,null,{"$f":"IF(E84=\"\",\"  \",VLOOKUP(E84,'Tabela Preço'!$A$2:$D$600,18))","v":"  "},null,null,null,null,null,null,null,null,null,null,null,null,null,null,null,null,null,null,null,null,null,null,{"$f":"IF(E84=\"\",\"  \",IF($AJ$4=\"Tabela 1\",VLOOKUP(E84,Tabelapreço[],4),IF($AJ$4=\"Prazo\",VLOOKUP(E84,Tabelapreço[],5),IF($AJ$4=\"A vista\",VLOOKUP(E84,Tabelapreço[],6),IF($AJ$4=\"Varejo\",VLOOKUP(E84,Tabelapreço[],7),IF($AJ$4=\"Tabela 6\",VLOOKUP(E84,Tabelapreço[],8),IF($AJ$4=\"Tabela 8\",VLOOKUP(E84,Tabelapreço[],9),IF($AJ$4=\"L. Fernando\",VLOOKUP(E84,Tabelapreço[],10),IF($AJ$4=\"Promoção\",VLOOKUP(E84,Tabelapreço[],11),IF($AJ$4=\"Facção\",VLOOKUP(E84,Tabelapreço[],12)))))))))))","v":"  "},null,null,null,null,""]
[71,"",null,null,null,null,null,{"$f":"IF(E85=\"\",\"  \",VLOOKUP(E85,'Tabela Preço'!$A$2:$C$600,2,FALSE))","v":"  "},null,null,null,null,null,null,null,null,{"$f":"IF(E85=\"\",\"  \",VLOOKUP(E85,'Tabela Preço'!$A$2:$D$600,18))","v":"  "},null,null,null,null,null,null,null,null,null,null,null,null,null,null,null,null,null,null,null,null,null,null,{"$f":"IF(E85=\"\",\"  \",IF($AJ$4=\"Tabela 1\",VLOOKUP(E85,Tabelapreço[],4),IF($AJ$4=\"Prazo\",VLOOKUP(E85,Tabelapreço[],5),IF($AJ$4=\"A vista\",VLOOKUP(E85,Tabelapreço[],6),IF($AJ$4=\"Varejo\",VLOOKUP(E85,Tabelapreço[],7),IF($AJ$4=\"Tabela 6\",VLOOKUP(E85,Tabelapreço[],8),IF($AJ$4=\"Tabela 8\",VLOOKUP(E85,Tabelapreço[],9),IF($AJ$4=\"L. Fernando\",VLOOKUP(E85,Tabelapreço[],10),IF($AJ$4=\"Promoção\",VLOOKUP(E85,Tabelapreço[],11),IF($AJ$4=\"Facção\",VLOOKUP(E85,Tabelapreço[],12)))))))))))","v":"  "},null,null,null,null,""]
[72,"",null,null,null,null,null,{"$f":"IF(E86=\"\",\"  \",VLOOKUP(E86,'Tabela Preço'!$A$2:$C$600,2,FALSE))","v":"  "},null,null,null,null,null,null,null,null,{"$f":"IF(E86=\"\",\"  \",VLOOKUP(E86,'Tabela Preço'!$A$2:$D$600,18))","v":"  "},null,null,null,null,null,null,null,null,null,null,null,null,null,null,null,null,null,null,null,null,null,null,{"$f":"IF(E86=\"\",\"  \",IF($AJ$4=\"Tabela 1\",VLOOKUP(E86,Tabelapreço[],4),IF($AJ$4=\"Prazo\",VLOOKUP(E86,Tabelapreço[],5),IF($AJ$4=\"A vista\",VLOOKUP(E86,Tabelapreço[],6),IF($AJ$4=\"Varejo\",VLOOKUP(E86,Tabelapreço[],7),IF($AJ$4=\"Tabela 6\",VLOOKUP(E86,Tabelapreço[],8),IF($AJ$4=\"Tabela 8\",VLOOKUP(E86,Tabelapreço[],9),IF($AJ$4=\"L. Fernando\",VLOOKUP(E86,Tabelapreço[],10),IF($AJ$4=\"Promoção\",VLOOKUP(E86,Tabelapreço[],11),IF($AJ$4=\"Facção\",VLOOKUP(E86,Tabelapreço[],12)))))))))))","v":"  "},null,null,null,null,""]
[73,"",null,null,null,null,null,{"$f":"IF(E87=\"\",\"  \",VLOOKUP(E87,'Tabela Preço'!$A$2:$C$600,2,FALSE))","v":"  "},null,null,null,null,null,null,null,null,{"$f":"IF(E87=\"\",\"  \",VLOOKUP(E87,'Tabela Preço'!$A$2:$D$600,18))","v":"  "},null,null,null,null,null,null,null,null,null,null,null,null,null,null,null,null,null,null,null,null,null,null,{"$f":"IF(E87=\"\",\"  \",IF($AJ$4=\"Tabela 1\",VLOOKUP(E87,Tabelapreço[],4),IF($AJ$4=\"Prazo\",VLOOKUP(E87,Tabelapreço[],5),IF($AJ$4=\"A vista\",VLOOKUP(E87,Tabelapreço[],6),IF($AJ$4=\"Varejo\",VLOOKUP(E87,Tabelapreço[],7),IF($AJ$4=\"Tabela 6\",VLOOKUP(E87,Tabelapreço[],8),IF($AJ$4=\"Tabela 8\",VLOOKUP(E87,Tabelapreço[],9),IF($AJ$4=\"L. Fernando\",VLOOKUP(E87,Tabelapreço[],10),IF($AJ$4=\"Promoção\",VLOOKUP(E87,Tabelapreço[],11),IF($AJ$4=\"Facção\",VLOOKUP(E87,Tabelapreço[],12)))))))))))","v":"  "},null,null,null,null,""]
[74,"",null,null,null,null,null,{"$f":"IF(E88=\"\",\"  \",VLOOKUP(E88,'Tabela Preço'!$A$2:$C$600,2,FALSE))","v":"  "},null,null,null,null,null,null,null,null,{"$f":"IF(E88=\"\",\"  \",VLOOKUP(E88,'Tabela Preço'!$A$2:$D$600,18))","v":"  "},null,null,null,null,null,null,null,null,null,null,null,null,null,null,null,null,null,null,null,null,null,null,{"$f":"IF(E88=\"\",\"  \",IF($AJ$4=\"Tabela 1\",VLOOKUP(E88,Tabelapreço[],4),IF($AJ$4=\"Prazo\",VLOOKUP(E88,Tabelapreço[],5),IF($AJ$4=\"A vista\",VLOOKUP(E88,Tabelapreço[],6),IF($AJ$4=\"Varejo\",VLOOKUP(E88,Tabelapreço[],7),IF($AJ$4=\"Tabela 6\",VLOOKUP(E88,Tabelapreço[],8),IF($AJ$4=\"Tabela 8\",VLOOKUP(E88,Tabelapreço[],9),IF($AJ$4=\"L. Fernando\",VLOOKUP(E88,Tabelapreço[],10),IF($AJ$4=\"Promoção\",VLOOKUP(E88,Tabelapreço[],11),IF($AJ$4=\"Facção\",VLOOKUP(E88,Tabelapreço[],12)))))))))))","v":"  "},null,null,null,null,""]
[75,"",null,null,null,null,null,{"$f":"IF(E89=\"\",\"  \",VLOOKUP(E89,'Tabela Preço'!$A$2:$C$600,2,FALSE))","v":"  "},null,null,null,null,null,null,null,null,{"$f":"IF(E89=\"\",\"  \",VLOOKUP(E89,'Tabela Preço'!$A$2:$D$600,18))","v":"  "},null,null,null,null,null,null,null,null,null,null,null,null,null,null,null,null,null,null,null,null,null,null,{"$f":"IF(E89=\"\",\"  \",IF($AJ$4=\"Tabela 1\",VLOOKUP(E89,Tabelapreço[],4),IF($AJ$4=\"Prazo\",VLOOKUP(E89,Tabelapreço[],5),IF($AJ$4=\"A vista\",VLOOKUP(E89,Tabelapreço[],6),IF($AJ$4=\"Varejo\",VLOOKUP(E89,Tabelapreço[],7),IF($AJ$4=\"Tabela 6\",VLOOKUP(E89,Tabelapreço[],8),IF($AJ$4=\"Tabela 8\",VLOOKUP(E89,Tabelapreço[],9),IF($AJ$4=\"L. Fernando\",VLOOKUP(E89,Tabelapreço[],10),IF($AJ$4=\"Promoção\",VLOOKUP(E89,Tabelapreço[],11),IF($AJ$4=\"Facção\",VLOOKUP(E89,Tabelapreço[],12)))))))))))","v":"  "},null,null,null,null,""]
[76,"",null,null,null,null,null,{"$f":"IF(E90=\"\",\"  \",VLOOKUP(E90,'Tabela Preço'!$A$2:$C$600,2,FALSE))","v":"  "},null,null,null,null,null,null,null,null,{"$f":"IF(E90=\"\",\"  \",VLOOKUP(E90,'Tabela Preço'!$A$2:$D$600,18))","v":"  "},null,null,null,null,null,null,null,null,null,null,null,null,null,null,null,null,null,null,null,null,null,null,{"$f":"IF(E90=\"\",\"  \",IF($AJ$4=\"Tabela 1\",VLOOKUP(E90,Tabelapreço[],4),IF($AJ$4=\"Prazo\",VLOOKUP(E90,Tabelapreço[],5),IF($AJ$4=\"A vista\",VLOOKUP(E90,Tabelapreço[],6),IF($AJ$4=\"Varejo\",VLOOKUP(E90,Tabelapreço[],7),IF($AJ$4=\"Tabela 6\",VLOOKUP(E90,Tabelapreço[],8),IF($AJ$4=\"Tabela 8\",VLOOKUP(E90,Tabelapreço[],9),IF($AJ$4=\"L. Fernando\",VLOOKUP(E90,Tabelapreço[],10),IF($AJ$4=\"Promoção\",VLOOKUP(E90,Tabelapreço[],11),IF($AJ$4=\"Facção\",VLOOKUP(E90,Tabelapreço[],12)))))))))))","v":"  "},null,null,null,null,""]
[77,"",null,null,null,null,null,{"$f":"IF(E91=\"\",\"  \",VLOOKUP(E91,'Tabela Preço'!$A$2:$C$600,2,FALSE))","v":"  "},null,null,null,null,null,null,null,null,{"$f":"IF(E91=\"\",\"  \",VLOOKUP(E91,'Tabela Preço'!$A$2:$D$600,18))","v":"  "},null,null,null,null,null,null,null,null,null,null,null,null,null,null,null,null,null,null,null,null,null,null,{"$f":"IF(E91=\"\",\"  \",IF($AJ$4=\"Tabela 1\",VLOOKUP(E91,Tabelapreço[],4),IF($AJ$4=\"Prazo\",VLOOKUP(E91,Tabelapreço[],5),IF($AJ$4=\"A vista\",VLOOKUP(E91,Tabelapreço[],6),IF($AJ$4=\"Varejo\",VLOOKUP(E91,Tabelapreço[],7),IF($AJ$4=\"Tabela 6\",VLOOKUP(E91,Tabelapreço[],8),IF($AJ$4=\"Tabela 8\",VLOOKUP(E91,Tabelapreço[],9),IF($AJ$4=\"L. Fernando\",VLOOKUP(E91,Tabelapreço[],10),IF($AJ$4=\"Promoção\",VLOOKUP(E91,Tabelapreço[],11),IF($AJ$4=\"Facção\",VLOOKUP(E91,Tabelapreço[],12)))))))))))","v":"  "},null,null,null,null,""]
[78,"",null,null,null,null,null,{"$f":"IF(E92=\"\",\"  \",VLOOKUP(E92,'Tabela Preço'!$A$2:$C$600,2,FALSE))","v":"  "},null,null,null,null,null,null,null,null,{"$f":"IF(E92=\"\",\"  \",VLOOKUP(E92,'Tabela Preço'!$A$2:$D$600,18))","v":"  "},null,null,null,null,null,null,null,null,null,null,null,null,null,null,null,null,null,null,null,null,null,null,{"$f":"IF(E92=\"\",\"  \",IF($AJ$4=\"Tabela 1\",VLOOKUP(E92,Tabelapreço[],4),IF($AJ$4=\"Prazo\",VLOOKUP(E92,Tabelapreço[],5),IF($AJ$4=\"A vista\",VLOOKUP(E92,Tabelapreço[],6),IF($AJ$4=\"Varejo\",VLOOKUP(E92,Tabelapreço[],7),IF($AJ$4=\"Tabela 6\",VLOOKUP(E92,Tabelapreço[],8),IF($AJ$4=\"Tabela 8\",VLOOKUP(E92,Tabelapreço[],9),IF($AJ$4=\"L. Fernando\",VLOOKUP(E92,Tabelapreço[],10),IF($AJ$4=\"Promoção\",VLOOKUP(E92,Tabelapreço[],11),IF($AJ$4=\"Facção\",VLOOKUP(E92,Tabelapreço[],12)))))))))))","v":"  "},null,null,null,null,""]
[79,"",null,null,null,null,null,{"$f":"IF(E93=\"\",\"  \",VLOOKUP(E93,'Tabela Preço'!$A$2:$C$600,2,FALSE))","v":"  "},null,null,null,null,null,null,null,null,{"$f":"IF(E93=\"\",\"  \",VLOOKUP(E93,'Tabela Preço'!$A$2:$D$600,18))","v":"  "},null,null,null,null,null,null,null,null,null,null,null,null,null,null,null,null,null,null,null,null,null,null,{"$f":"IF(E93=\"\",\"  \",IF($AJ$4=\"Tabela 1\",VLOOKUP(E93,Tabelapreço[],4),IF($AJ$4=\"Prazo\",VLOOKUP(E93,Tabelapreço[],5),IF($AJ$4=\"A vista\",VLOOKUP(E93,Tabelapreço[],6),IF($AJ$4=\"Varejo\",VLOOKUP(E93,Tabelapreço[],7),IF($AJ$4=\"Tabela 6\",VLOOKUP(E93,Tabelapreço[],8),IF($AJ$4=\"Tabela 8\",VLOOKUP(E93,Tabelapreço[],9),IF($AJ$4=\"L. Fernando\",VLOOKUP(E93,Tabelapreço[],10),IF($AJ$4=\"Promoção\",VLOOKUP(E93,Tabelapreço[],11),IF($AJ$4=\"Facção\",VLOOKUP(E93,Tabelapreço[],12)))))))))))","v":"  "},null,null,null,null,""]
[80,"",null,null,null,null,null,{"$f":"IF(E94=\"\",\"  \",VLOOKUP(E94,'Tabela Preço'!$A$2:$C$600,2,FALSE))","v":"  "},null,null,null,null,null,null,null,null,{"$f":"IF(E94=\"\",\"  \",VLOOKUP(E94,'Tabela Preço'!$A$2:$D$600,18))","v":"  "},null,null,null,null,null,null,null,null,null,null,null,null,null,null,null,null,null,null,null,null,null,null,{"$f":"IF(E94=\"\",\"  \",IF($AJ$4=\"Tabela 1\",VLOOKUP(E94,Tabelapreço[],4),IF($AJ$4=\"Prazo\",VLOOKUP(E94,Tabelapreço[],5),IF($AJ$4=\"A vista\",VLOOKUP(E94,Tabelapreço[],6),IF($AJ$4=\"Varejo\",VLOOKUP(E94,Tabelapreço[],7),IF($AJ$4=\"Tabela 6\",VLOOKUP(E94,Tabelapreço[],8),IF($AJ$4=\"Tabela 8\",VLOOKUP(E94,Tabelapreço[],9),IF($AJ$4=\"L. Fernando\",VLOOKUP(E94,Tabelapreço[],10),IF($AJ$4=\"Promoção\",VLOOKUP(E94,Tabelapreço[],11),IF($AJ$4=\"Facção\",VLOOKUP(E94,Tabelapreço[],12)))))))))))","v":"  "},null,null,null,null,""]
[81,"",null,null,null,null,null,{"$f":"IF(E95=\"\",\"  \",VLOOKUP(E95,'Tabela Preço'!$A$2:$C$600,2,FALSE))","v":"  "},null,null,null,null,null,null,null,null,{"$f":"IF(E95=\"\",\"  \",VLOOKUP(E95,'Tabela Preço'!$A$2:$D$600,18))","v":"  "},null,null,null,null,null,null,null,null,null,null,null,null,null,null,null,null,null,null,null,null,null,null,{"$f":"IF(E95=\"\",\"  \",IF($AJ$4=\"Tabela 1\",VLOOKUP(E95,Tabelapreço[],4),IF($AJ$4=\"Prazo\",VLOOKUP(E95,Tabelapreço[],5),IF($AJ$4=\"A vista\",VLOOKUP(E95,Tabelapreço[],6),IF($AJ$4=\"Varejo\",VLOOKUP(E95,Tabelapreço[],7),IF($AJ$4=\"Tabela 6\",VLOOKUP(E95,Tabelapreço[],8),IF($AJ$4=\"Tabela 8\",VLOOKUP(E95,Tabelapreço[],9),IF($AJ$4=\"L. Fernando\",VLOOKUP(E95,Tabelapreço[],10),IF($AJ$4=\"Promoção\",VLOOKUP(E95,Tabelapreço[],11),IF($AJ$4=\"Facção\",VLOOKUP(E95,Tabelapreço[],12)))))))))))","v":"  "},null,null,null,null,""]
[82,"",null,null,null,null,null,{"$f":"IF(E96=\"\",\"  \",VLOOKUP(E96,'Tabela Preço'!$A$2:$C$600,2,FALSE))","v":"  "},null,null,null,null,null,null,null,null,{"$f":"IF(E96=\"\",\"  \",VLOOKUP(E96,'Tabela Preço'!$A$2:$D$600,18))","v":"  "},null,null,null,null,null,null,null,null,null,null,null,null,null,null,null,null,null,null,null,null,null,null,{"$f":"IF(E96=\"\",\"  \",IF($AJ$4=\"Tabela 1\",VLOOKUP(E96,Tabelapreço[],4),IF($AJ$4=\"Prazo\",VLOOKUP(E96,Tabelapreço[],5),IF($AJ$4=\"A vista\",VLOOKUP(E96,Tabelapreço[],6),IF($AJ$4=\"Varejo\",VLOOKUP(E96,Tabelapreço[],7),IF($AJ$4=\"Tabela 6\",VLOOKUP(E96,Tabelapreço[],8),IF($AJ$4=\"Tabela 8\",VLOOKUP(E96,Tabelapreço[],9),IF($AJ$4=\"L. Fernando\",VLOOKUP(E96,Tabelapreço[],10),IF($AJ$4=\"Promoção\",VLOOKUP(E96,Tabelapreço[],11),IF($AJ$4=\"Facção\",VLOOKUP(E96,Tabelapreço[],12)))))))))))","v":"  "},null,null,null,null,""]
[83,"",null,null,null,null,null,{"$f":"IF(E97=\"\",\"  \",VLOOKUP(E97,'Tabela Preço'!$A$2:$C$600,2,FALSE))","v":"  "},null,null,null,null,null,null,null,null,{"$f":"IF(E97=\"\",\"  \",VLOOKUP(E97,'Tabela Preço'!$A$2:$D$600,18))","v":"  "},null,null,null,null,null,null,null,null,null,null,null,null,null,null,null,null,null,null,null,null,null,null,{"$f":"IF(E97=\"\",\"  \",IF($AJ$4=\"Tabela 1\",VLOOKUP(E97,Tabelapreço[],4),IF($AJ$4=\"Prazo\",VLOOKUP(E97,Tabelapreço[],5),IF($AJ$4=\"A vista\",VLOOKUP(E97,Tabelapreço[],6),IF($AJ$4=\"Varejo\",VLOOKUP(E97,Tabelapreço[],7),IF($AJ$4=\"Tabela 6\",VLOOKUP(E97,Tabelapreço[],8),IF($AJ$4=\"Tabela 8\",VLOOKUP(E97,Tabelapreço[],9),IF($AJ$4=\"L. Fernando\",VLOOKUP(E97,Tabelapreço[],10),IF($AJ$4=\"Promoção\",VLOOKUP(E97,Tabelapreço[],11),IF($AJ$4=\"Facção\",VLOOKUP(E97,Tabelapreço[],12)))))))))))","v":"  "},null,null,null,null,""]
[84,"",null,null,null,null,null,{"$f":"IF(E98=\"\",\"  \",VLOOKUP(E98,'Tabela Preço'!$A$2:$C$600,2,FALSE))","v":"  "},null,null,null,null,null,null,null,null,{"$f":"IF(E98=\"\",\"  \",VLOOKUP(E98,'Tabela Preço'!$A$2:$D$600,18))","v":"  "},null,null,null,null,null,null,null,null,null,null,null,null,null,null,null,null,null,null,null,null,null,null,{"$f":"IF(E98=\"\",\"  \",IF($AJ$4=\"Tabela 1\",VLOOKUP(E98,Tabelapreço[],4),IF($AJ$4=\"Prazo\",VLOOKUP(E98,Tabelapreço[],5),IF($AJ$4=\"A vista\",VLOOKUP(E98,Tabelapreço[],6),IF($AJ$4=\"Varejo\",VLOOKUP(E98,Tabelapreço[],7),IF($AJ$4=\"Tabela 6\",VLOOKUP(E98,Tabelapreço[],8),IF($AJ$4=\"Tabela 8\",VLOOKUP(E98,Tabelapreço[],9),IF($AJ$4=\"L. Fernando\",VLOOKUP(E98,Tabelapreço[],10),IF($AJ$4=\"Promoção\",VLOOKUP(E98,Tabelapreço[],11),IF($AJ$4=\"Facção\",VLOOKUP(E98,Tabelapreço[],12)))))))))))","v":"  "},null,null,null,null,""]
[85,"",null,null,null,null,null,{"$f":"IF(E99=\"\",\"  \",VLOOKUP(E99,'Tabela Preço'!$A$2:$C$600,2,FALSE))","v":"  "},null,null,null,null,null,null,null,null,{"$f":"IF(E99=\"\",\"  \",VLOOKUP(E99,'Tabela Preço'!$A$2:$D$600,18))","v":"  "},null,null,null,null,null,null,null,null,null,null,null,null,null,null,null,null,null,null,null,null,null,null,{"$f":"IF(E99=\"\",\"  \",IF($AJ$4=\"Tabela 1\",VLOOKUP(E99,Tabelapreço[],4),IF($AJ$4=\"Prazo\",VLOOKUP(E99,Tabelapreço[],5),IF($AJ$4=\"A vista\",VLOOKUP(E99,Tabelapreço[],6),IF($AJ$4=\"Varejo\",VLOOKUP(E99,Tabelapreço[],7),IF($AJ$4=\"Tabela 6\",VLOOKUP(E99,Tabelapreço[],8),IF($AJ$4=\"Tabela 8\",VLOOKUP(E99,Tabelapreço[],9),IF($AJ$4=\"L. Fernando\",VLOOKUP(E99,Tabelapreço[],10),IF($AJ$4=\"Promoção\",VLOOKUP(E99,Tabelapreço[],11),IF($AJ$4=\"Facção\",VLOOKUP(E99,Tabelapreço[],12)))))))))))","v":"  "},null,null,null,null,""]
[86,"",null,null,null,null,null,{"$f":"IF(E100=\"\",\"  \",VLOOKUP(E100,'Tabela Preço'!$A$2:$C$600,2,FALSE))","v":"  "},null,null,null,null,null,null,null,null,{"$f":"IF(E100=\"\",\"  \",VLOOKUP(E100,'Tabela Preço'!$A$2:$D$600,18))","v":"  "},null,null,null,null,null,null,null,null,null,null,null,null,null,null,null,null,null,null,null,null,null,null,{"$f":"IF(E100=\"\",\"  \",IF($AJ$4=\"Tabela 1\",VLOOKUP(E100,Tabelapreço[],4),IF($AJ$4=\"Prazo\",VLOOKUP(E100,Tabelapreço[],5),IF($AJ$4=\"A vista\",VLOOKUP(E100,Tabelapreço[],6),IF($AJ$4=\"Varejo\",VLOOKUP(E100,Tabelapreço[],7),IF($AJ$4=\"Tabela 6\",VLOOKUP(E100,Tabelapreço[],8),IF($AJ$4=\"Tabela 8\",VLOOKUP(E100,Tabelapreço[],9),IF($AJ$4=\"L. Fernando\",VLOOKUP(E100,Tabelapreço[],10),IF($AJ$4=\"Promoção\",VLOOKUP(E100,Tabelapreço[],11),IF($AJ$4=\"Facção\",VLOOKUP(E100,Tabelapreço[],12)))))))))))","v":"  "},null,null,null,null,""]
[87,"",null,null,null,null,null,{"$f":"IF(E101=\"\",\"  \",VLOOKUP(E101,'Tabela Preço'!$A$2:$C$600,2,FALSE))","v":"  "},null,null,null,null,null,null,null,null,{"$f":"IF(E101=\"\",\"  \",VLOOKUP(E101,'Tabela Preço'!$A$2:$D$600,18))","v":"  "},null,null,null,null,null,null,null,null,null,null,null,null,null,null,null,null,null,null,null,null,null,null,{"$f":"IF(E101=\"\",\"  \",IF($AJ$4=\"Tabela 1\",VLOOKUP(E101,Tabelapreço[],4),IF($AJ$4=\"Prazo\",VLOOKUP(E101,Tabelapreço[],5),IF($AJ$4=\"A vista\",VLOOKUP(E101,Tabelapreço[],6),IF($AJ$4=\"Varejo\",VLOOKUP(E101,Tabelapreço[],7),IF($AJ$4=\"Tabela 6\",VLOOKUP(E101,Tabelapreço[],8),IF($AJ$4=\"Tabela 8\",VLOOKUP(E101,Tabelapreço[],9),IF($AJ$4=\"L. Fernando\",VLOOKUP(E101,Tabelapreço[],10),IF($AJ$4=\"Promoção\",VLOOKUP(E101,Tabelapreço[],11),IF($AJ$4=\"Facção\",VLOOKUP(E101,Tabelapreço[],12)))))))))))","v":"  "},null,null,null,null,""]
[88,"",null,null,null,null,null,{"$f":"IF(E102=\"\",\"  \",VLOOKUP(E102,'Tabela Preço'!$A$2:$C$600,2,FALSE))","v":"  "},null,null,null,null,null,null,null,null,{"$f":"IF(E102=\"\",\"  \",VLOOKUP(E102,'Tabela Preço'!$A$2:$D$600,18))","v":"  "},null,null,null,null,null,null,null,null,null,null,null,null,null,null,null,null,null,null,null,null,null,null,{"$f":"IF(E102=\"\",\"  \",IF($AJ$4=\"Tabela 1\",VLOOKUP(E102,Tabelapreço[],4),IF($AJ$4=\"Prazo\",VLOOKUP(E102,Tabelapreço[],5),IF($AJ$4=\"A vista\",VLOOKUP(E102,Tabelapreço[],6),IF($AJ$4=\"Varejo\",VLOOKUP(E102,Tabelapreço[],7),IF($AJ$4=\"Tabela 6\",VLOOKUP(E102,Tabelapreço[],8),IF($AJ$4=\"Tabela 8\",VLOOKUP(E102,Tabelapreço[],9),IF($AJ$4=\"L. Fernando\",VLOOKUP(E102,Tabelapreço[],10),IF($AJ$4=\"Promoção\",VLOOKUP(E102,Tabelapreço[],11),IF($AJ$4=\"Facção\",VLOOKUP(E102,Tabelapreço[],12)))))))))))","v":"  "},null,null,null,null,""]
[89,"",null,null,null,null,null,{"$f":"IF(E103=\"\",\"  \",VLOOKUP(E103,'Tabela Preço'!$A$2:$C$600,2,FALSE))","v":"  "},null,null,null,null,null,null,null,null,{"$f":"IF(E103=\"\",\"  \",VLOOKUP(E103,'Tabela Preço'!$A$2:$D$600,18))","v":"  "},null,null,null,null,null,null,null,null,null,null,null,null,null,null,null,null,null,null,null,null,null,null,{"$f":"IF(E103=\"\",\"  \",IF($AJ$4=\"Tabela 1\",VLOOKUP(E103,Tabelapreço[],4),IF($AJ$4=\"Prazo\",VLOOKUP(E103,Tabelapreço[],5),IF($AJ$4=\"A vista\",VLOOKUP(E103,Tabelapreço[],6),IF($AJ$4=\"Varejo\",VLOOKUP(E103,Tabelapreço[],7),IF($AJ$4=\"Tabela 6\",VLOOKUP(E103,Tabelapreço[],8),IF($AJ$4=\"Tabela 8\",VLOOKUP(E103,Tabelapreço[],9),IF($AJ$4=\"L. Fernando\",VLOOKUP(E103,Tabelapreço[],10),IF($AJ$4=\"Promoção\",VLOOKUP(E103,Tabelapreço[],11),IF($AJ$4=\"Facção\",VLOOKUP(E103,Tabelapreço[],12)))))))))))","v":"  "},null,null,null,null,""]
[90,"",null,null,null,null,null,{"$f":"IF(E104=\"\",\"  \",VLOOKUP(E104,'Tabela Preço'!$A$2:$C$600,2,FALSE))","v":"  "},null,null,null,null,null,null,null,null,{"$f":"IF(E104=\"\",\"  \",VLOOKUP(E104,'Tabela Preço'!$A$2:$D$600,18))","v":"  "},null,null,null,null,null,null,null,null,null,null,null,null,null,null,null,null,null,null,null,null,null,null,{"$f":"IF(E104=\"\",\"  \",IF($AJ$4=\"Tabela 1\",VLOOKUP(E104,Tabelapreço[],4),IF($AJ$4=\"Prazo\",VLOOKUP(E104,Tabelapreço[],5),IF($AJ$4=\"A vista\",VLOOKUP(E104,Tabelapreço[],6),IF($AJ$4=\"Varejo\",VLOOKUP(E104,Tabelapreço[],7),IF($AJ$4=\"Tabela 6\",VLOOKUP(E104,Tabelapreço[],8),IF($AJ$4=\"Tabela 8\",VLOOKUP(E104,Tabelapreço[],9),IF($AJ$4=\"L. Fernando\",VLOOKUP(E104,Tabelapreço[],10),IF($AJ$4=\"Promoção\",VLOOKUP(E104,Tabelapreço[],11),IF($AJ$4=\"Facção\",VLOOKUP(E104,Tabelapreço[],12)))))))))))","v":"  "},null,null,null,null,""]
[91,"",null,null,null,null,null,{"$f":"IF(E105=\"\",\"  \",VLOOKUP(E105,'Tabela Preço'!$A$2:$C$600,2,FALSE))","v":"  "},null,null,null,null,null,null,null,null,{"$f":"IF(E105=\"\",\"  \",VLOOKUP(E105,'Tabela Preço'!$A$2:$D$600,18))","v":"  "},null,null,null,null,null,null,null,null,null,null,null,null,null,null,null,null,null,null,null,null,null,null,{"$f":"IF(E105=\"\",\"  \",IF($AJ$4=\"Tabela 1\",VLOOKUP(E105,Tabelapreço[],4),IF($AJ$4=\"Prazo\",VLOOKUP(E105,Tabelapreço[],5),IF($AJ$4=\"A vista\",VLOOKUP(E105,Tabelapreço[],6),IF($AJ$4=\"Varejo\",VLOOKUP(E105,Tabelapreço[],7),IF($AJ$4=\"Tabela 6\",VLOOKUP(E105,Tabelapreço[],8),IF($AJ$4=\"Tabela 8\",VLOOKUP(E105,Tabelapreço[],9),IF($AJ$4=\"L. Fernando\",VLOOKUP(E105,Tabelapreço[],10),IF($AJ$4=\"Promoção\",VLOOKUP(E105,Tabelapreço[],11),IF($AJ$4=\"Facção\",VLOOKUP(E105,Tabelapreço[],12)))))))))))","v":"  "},null,null,null,null,""]
[92,"",null,null,null,null,null,{"$f":"IF(E106=\"\",\"  \",VLOOKUP(E106,'Tabela Preço'!$A$2:$C$600,2,FALSE))","v":"  "},null,null,null,null,null,null,null,null,{"$f":"IF(E106=\"\",\"  \",VLOOKUP(E106,'Tabela Preço'!$A$2:$D$600,18))","v":"  "},null,null,null,null,null,null,null,null,null,null,null,null,null,null,null,null,null,null,null,null,null,null,{"$f":"IF(E106=\"\",\"  \",IF($AJ$4=\"Tabela 1\",VLOOKUP(E106,Tabelapreço[],4),IF($AJ$4=\"Prazo\",VLOOKUP(E106,Tabelapreço[],5),IF($AJ$4=\"A vista\",VLOOKUP(E106,Tabelapreço[],6),IF($AJ$4=\"Varejo\",VLOOKUP(E106,Tabelapreço[],7),IF($AJ$4=\"Tabela 6\",VLOOKUP(E106,Tabelapreço[],8),IF($AJ$4=\"Tabela 8\",VLOOKUP(E106,Tabelapreço[],9),IF($AJ$4=\"L. Fernando\",VLOOKUP(E106,Tabelapreço[],10),IF($AJ$4=\"Promoção\",VLOOKUP(E106,Tabelapreço[],11),IF($AJ$4=\"Facção\",VLOOKUP(E106,Tabelapreço[],12)))))))))))","v":"  "},null,null,null,null,""]
[93,"",null,null,null,null,null,{"$f":"IF(E107=\"\",\"  \",VLOOKUP(E107,'Tabela Preço'!$A$2:$C$600,2,FALSE))","v":"  "},null,null,null,null,null,null,null,null,{"$f":"IF(E107=\"\",\"  \",VLOOKUP(E107,'Tabela Preço'!$A$2:$D$600,18))","v":"  "},null,null,null,null,null,null,null,null,null,null,null,null,null,null,null,null,null,null,null,null,null,null,{"$f":"IF(E107=\"\",\"  \",IF($AJ$4=\"Tabela 1\",VLOOKUP(E107,Tabelapreço[],4),IF($AJ$4=\"Prazo\",VLOOKUP(E107,Tabelapreço[],5),IF($AJ$4=\"A vista\",VLOOKUP(E107,Tabelapreço[],6),IF($AJ$4=\"Varejo\",VLOOKUP(E107,Tabelapreço[],7),IF($AJ$4=\"Tabela 6\",VLOOKUP(E107,Tabelapreço[],8),IF($AJ$4=\"Tabela 8\",VLOOKUP(E107,Tabelapreço[],9),IF($AJ$4=\"L. Fernando\",VLOOKUP(E107,Tabelapreço[],10),IF($AJ$4=\"Promoção\",VLOOKUP(E107,Tabelapreço[],11),IF($AJ$4=\"Facção\",VLOOKUP(E107,Tabelapreço[],12)))))))))))","v":"  "},null,null,null,null,""]
[94,"",null,null,null,null,null,{"$f":"IF(E108=\"\",\"  \",VLOOKUP(E108,'Tabela Preço'!$A$2:$C$600,2,FALSE))","v":"  "},null,null,null,null,null,null,null,null,{"$f":"IF(E108=\"\",\"  \",VLOOKUP(E108,'Tabela Preço'!$A$2:$D$600,18))","v":"  "},null,null,null,null,null,null,null,null,null,null,null,null,null,null,null,null,null,null,null,null,null,null,{"$f":"IF(E108=\"\",\"  \",IF($AJ$4=\"Tabela 1\",VLOOKUP(E108,Tabelapreço[],4),IF($AJ$4=\"Prazo\",VLOOKUP(E108,Tabelapreço[],5),IF($AJ$4=\"A vista\",VLOOKUP(E108,Tabelapreço[],6),IF($AJ$4=\"Varejo\",VLOOKUP(E108,Tabelapreço[],7),IF($AJ$4=\"Tabela 6\",VLOOKUP(E108,Tabelapreço[],8),IF($AJ$4=\"Tabela 8\",VLOOKUP(E108,Tabelapreço[],9),IF($AJ$4=\"L. Fernando\",VLOOKUP(E108,Tabelapreço[],10),IF($AJ$4=\"Promoção\",VLOOKUP(E108,Tabelapreço[],11),IF($AJ$4=\"Facção\",VLOOKUP(E108,Tabelapreço[],12)))))))))))","v":"  "},null,null,null,null,""]
[95,"",null,null,null,null,null,{"$f":"IF(E109=\"\",\"  \",VLOOKUP(E109,'Tabela Preço'!$A$2:$C$600,2,FALSE))","v":"  "},null,null,null,null,null,null,null,null,{"$f":"IF(E109=\"\",\"  \",VLOOKUP(E109,'Tabela Preço'!$A$2:$D$600,18))","v":"  "},null,null,null,null,null,null,null,null,null,null,null,null,null,null,null,null,null,null,null,null,null,null,{"$f":"IF(E109=\"\",\"  \",IF($AJ$4=\"Tabela 1\",VLOOKUP(E109,Tabelapreço[],4),IF($AJ$4=\"Prazo\",VLOOKUP(E109,Tabelapreço[],5),IF($AJ$4=\"A vista\",VLOOKUP(E109,Tabelapreço[],6),IF($AJ$4=\"Varejo\",VLOOKUP(E109,Tabelapreço[],7),IF($AJ$4=\"Tabela 6\",VLOOKUP(E109,Tabelapreço[],8),IF($AJ$4=\"Tabela 8\",VLOOKUP(E109,Tabelapreço[],9),IF($AJ$4=\"L. Fernando\",VLOOKUP(E109,Tabelapreço[],10),IF($AJ$4=\"Promoção\",VLOOKUP(E109,Tabelapreço[],11),IF($AJ$4=\"Facção\",VLOOKUP(E109,Tabelapreço[],12)))))))))))","v":"  "},null,null,null,null,""]
[96,"",null,null,null,null,null,{"$f":"IF(E110=\"\",\"  \",VLOOKUP(E110,'Tabela Preço'!$A$2:$C$600,2,FALSE))","v":"  "},null,null,null,null,null,null,null,null,{"$f":"IF(E110=\"\",\"  \",VLOOKUP(E110,'Tabela Preço'!$A$2:$D$600,18))","v":"  "},null,null,null,null,null,null,null,null,null,null,null,null,null,null,null,null,null,null,null,null,null,null,{"$f":"IF(E110=\"\",\"  \",IF($AJ$4=\"Tabela 1\",VLOOKUP(E110,Tabelapreço[],4),IF($AJ$4=\"Prazo\",VLOOKUP(E110,Tabelapreço[],5),IF($AJ$4=\"A vista\",VLOOKUP(E110,Tabelapreço[],6),IF($AJ$4=\"Varejo\",VLOOKUP(E110,Tabelapreço[],7),IF($AJ$4=\"Tabela 6\",VLOOKUP(E110,Tabelapreço[],8),IF($AJ$4=\"Tabela 8\",VLOOKUP(E110,Tabelapreço[],9),IF($AJ$4=\"L. Fernando\",VLOOKUP(E110,Tabelapreço[],10),IF($AJ$4=\"Promoção\",VLOOKUP(E110,Tabelapreço[],11),IF($AJ$4=\"Facção\",VLOOKUP(E110,Tabelapreço[],12)))))))))))","v":"  "},null,null,null,null,""]
[97,"",null,null,null,null,null,{"$f":"IF(E111=\"\",\"  \",VLOOKUP(E111,'Tabela Preço'!$A$2:$C$600,2,FALSE))","v":"  "},null,null,null,null,null,null,null,null,{"$f":"IF(E111=\"\",\"  \",VLOOKUP(E111,'Tabela Preço'!$A$2:$D$600,18))","v":"  "},null,null,null,null,null,null,null,null,null,null,null,null,null,null,null,null,null,null,null,null,null,null,{"$f":"IF(E111=\"\",\"  \",IF($AJ$4=\"Tabela 1\",VLOOKUP(E111,Tabelapreço[],4),IF($AJ$4=\"Prazo\",VLOOKUP(E111,Tabelapreço[],5),IF($AJ$4=\"A vista\",VLOOKUP(E111,Tabelapreço[],6),IF($AJ$4=\"Varejo\",VLOOKUP(E111,Tabelapreço[],7),IF($AJ$4=\"Tabela 6\",VLOOKUP(E111,Tabelapreço[],8),IF($AJ$4=\"Tabela 8\",VLOOKUP(E111,Tabelapreço[],9),IF($AJ$4=\"L. Fernando\",VLOOKUP(E111,Tabelapreço[],10),IF($AJ$4=\"Promoção\",VLOOKUP(E111,Tabelapreço[],11),IF($AJ$4=\"Facção\",VLOOKUP(E111,Tabelapreço[],12)))))))))))","v":"  "},null,null,null,null,""]
[98,"",null,null,null,null,null,{"$f":"IF(E112=\"\",\"  \",VLOOKUP(E112,'Tabela Preço'!$A$2:$C$600,2,FALSE))","v":"  "},null,null,null,null,null,null,null,null,{"$f":"IF(E112=\"\",\"  \",VLOOKUP(E112,'Tabela Preço'!$A$2:$D$600,18))","v":"  "},null,null,null,null,null,null,null,null,null,null,null,null,null,null,null,null,null,null,null,null,null,null,{"$f":"IF(E112=\"\",\"  \",IF($AJ$4=\"Tabela 1\",VLOOKUP(E112,Tabelapreço[],4),IF($AJ$4=\"Prazo\",VLOOKUP(E112,Tabelapreço[],5),IF($AJ$4=\"A vista\",VLOOKUP(E112,Tabelapreço[],6),IF($AJ$4=\"Varejo\",VLOOKUP(E112,Tabelapreço[],7),IF($AJ$4=\"Tabela 6\",VLOOKUP(E112,Tabelapreço[],8),IF($AJ$4=\"Tabela 8\",VLOOKUP(E112,Tabelapreço[],9),IF($AJ$4=\"L. Fernando\",VLOOKUP(E112,Tabelapreço[],10),IF($AJ$4=\"Promoção\",VLOOKUP(E112,Tabelapreço[],11),IF($AJ$4=\"Facção\",VLOOKUP(E112,Tabelapreço[],12)))))))))))","v":"  "},null,null,null,null,""]
[99,"",null,null,null,null,null,{"$f":"IF(E113=\"\",\"  \",VLOOKUP(E113,'Tabela Preço'!$A$2:$C$600,2,FALSE))","v":"  "},null,null,null,null,null,null,null,null,{"$f":"IF(E113=\"\",\"  \",VLOOKUP(E113,'Tabela Preço'!$A$2:$D$600,18))","v":"  "},null,null,null,null,null,null,null,null,null,null,null,null,null,null,null,null,null,null,null,null,null,null,{"$f":"IF(E113=\"\",\"  \",IF($AJ$4=\"Tabela 1\",VLOOKUP(E113,Tabelapreço[],4),IF($AJ$4=\"Prazo\",VLOOKUP(E113,Tabelapreço[],5),IF($AJ$4=\"A vista\",VLOOKUP(E113,Tabelapreço[],6),IF($AJ$4=\"Varejo\",VLOOKUP(E113,Tabelapreço[],7),IF($AJ$4=\"Tabela 6\",VLOOKUP(E113,Tabelapreço[],8),IF($AJ$4=\"Tabela 8\",VLOOKUP(E113,Tabelapreço[],9),IF($AJ$4=\"L. Fernando\",VLOOKUP(E113,Tabelapreço[],10),IF($AJ$4=\"Promoção\",VLOOKUP(E113,Tabelapreço[],11),IF($AJ$4=\"Facção\",VLOOKUP(E113,Tabelapreço[],12)))))))))))","v":"  "},null,null,null,null,""]
[100,"",null,null,null,null,null,{"$f":"IF(E114=\"\",\"  \",VLOOKUP(E114,'Tabela Preço'!$A$2:$C$600,2,FALSE))","v":"  "},null,null,null,null,null,null,null,null,{"$f":"IF(E114=\"\",\"  \",VLOOKUP(E114,'Tabela Preço'!$A$2:$D$600,18))","v":"  "},null,null,null,null,null,null,null,null,null,null,null,null,null,null,null,null,null,null,null,null,null,null,{"$f":"IF(E114=\"\",\"  \",IF($AJ$4=\"Tabela 1\",VLOOKUP(E114,Tabelapreço[],4),IF($AJ$4=\"Prazo\",VLOOKUP(E114,Tabelapreço[],5),IF($AJ$4=\"A vista\",VLOOKUP(E114,Tabelapreço[],6),IF($AJ$4=\"Varejo\",VLOOKUP(E114,Tabelapreço[],7),IF($AJ$4=\"Tabela 6\",VLOOKUP(E114,Tabelapreço[],8),IF($AJ$4=\"Tabela 8\",VLOOKUP(E114,Tabelapreço[],9),IF($AJ$4=\"L. Fernando\",VLOOKUP(E114,Tabelapreço[],10),IF($AJ$4=\"Promoção\",VLOOKUP(E114,Tabelapreço[],11),IF($AJ$4=\"Facção\",VLOOKUP(E114,Tabelapreço[],12)))))))))))","v":"  "},null,null,null,null,""]
[101,"",null,null,null,null,null,{"$f":"IF(E115=\"\",\"  \",VLOOKUP(E115,'Tabela Preço'!$A$2:$C$600,2,FALSE))","v":"  "},null,null,null,null,null,null,null,null,{"$f":"IF(E115=\"\",\"  \",VLOOKUP(E115,'Tabela Preço'!$A$2:$D$600,18))","v":"  "},null,null,null,null,null,null,null,null,null,null,null,null,null,null,null,null,null,null,null,null,null,null,{"$f":"IF(E115=\"\",\"  \",IF($AJ$4=\"Tabela 1\",VLOOKUP(E115,Tabelapreço[],4),IF($AJ$4=\"Prazo\",VLOOKUP(E115,Tabelapreço[],5),IF($AJ$4=\"A vista\",VLOOKUP(E115,Tabelapreço[],6),IF($AJ$4=\"Varejo\",VLOOKUP(E115,Tabelapreço[],7),IF($AJ$4=\"Tabela 6\",VLOOKUP(E115,Tabelapreço[],8),IF($AJ$4=\"Tabela 8\",VLOOKUP(E115,Tabelapreço[],9),IF($AJ$4=\"L. Fernando\",VLOOKUP(E115,Tabelapreço[],10),IF($AJ$4=\"Promoção\",VLOOKUP(E115,Tabelapreço[],11),IF($AJ$4=\"Facção\",VLOOKUP(E115,Tabelapreço[],12)))))))))))","v":"  "},null,null,null,null,""]
[102,"",null,null,null,null,null,{"$f":"IF(E116=\"\",\"  \",VLOOKUP(E116,'Tabela Preço'!$A$2:$C$600,2,FALSE))","v":"  "},null,null,null,null,null,null,null,null,{"$f":"IF(E116=\"\",\"  \",VLOOKUP(E116,'Tabela Preço'!$A$2:$D$600,18))","v":"  "},null,null,null,null,null,null,null,null,null,null,null,null,null,null,null,null,null,null,null,null,null,null,{"$f":"IF(E116=\"\",\"  \",IF($AJ$4=\"Tabela 1\",VLOOKUP(E116,Tabelapreço[],4),IF($AJ$4=\"Prazo\",VLOOKUP(E116,Tabelapreço[],5),IF($AJ$4=\"A vista\",VLOOKUP(E116,Tabelapreço[],6),IF($AJ$4=\"Varejo\",VLOOKUP(E116,Tabelapreço[],7),IF($AJ$4=\"Tabela 6\",VLOOKUP(E116,Tabelapreço[],8),IF($AJ$4=\"Tabela 8\",VLOOKUP(E116,Tabelapreço[],9),IF($AJ$4=\"L. Fernando\",VLOOKUP(E116,Tabelapreço[],10),IF($AJ$4=\"Promoção\",VLOOKUP(E116,Tabelapreço[],11),IF($AJ$4=\"Facção\",VLOOKUP(E116,Tabelapreço[],12)))))))))))","v":"  "},null,null,null,null,""]
[103,"",null,null,null,null,null,{"$f":"IF(E117=\"\",\"  \",VLOOKUP(E117,'Tabela Preço'!$A$2:$C$600,2,FALSE))","v":"  "},null,null,null,null,null,null,null,null,{"$f":"IF(E117=\"\",\"  \",VLOOKUP(E117,'Tabela Preço'!$A$2:$D$600,18))","v":"  "},null,null,null,null,null,null,null,null,null,null,null,null,null,null,null,null,null,null,null,null,null,null,{"$f":"IF(E117=\"\",\"  \",IF($AJ$4=\"Tabela 1\",VLOOKUP(E117,Tabelapreço[],4),IF($AJ$4=\"Prazo\",VLOOKUP(E117,Tabelapreço[],5),IF($AJ$4=\"A vista\",VLOOKUP(E117,Tabelapreço[],6),IF($AJ$4=\"Varejo\",VLOOKUP(E117,Tabelapreço[],7),IF($AJ$4=\"Tabela 6\",VLOOKUP(E117,Tabelapreço[],8),IF($AJ$4=\"Tabela 8\",VLOOKUP(E117,Tabelapreço[],9),IF($AJ$4=\"L. Fernando\",VLOOKUP(E117,Tabelapreço[],10),IF($AJ$4=\"Promoção\",VLOOKUP(E117,Tabelapreço[],11),IF($AJ$4=\"Facção\",VLOOKUP(E117,Tabelapreço[],12)))))))))))","v":"  "},null,null,null,null,""]
[104,"",null,null,null,null,null,{"$f":"IF(E118=\"\",\"  \",VLOOKUP(E118,'Tabela Preço'!$A$2:$C$600,2,FALSE))","v":"  "},null,null,null,null,null,null,null,null,{"$f":"IF(E118=\"\",\"  \",VLOOKUP(E118,'Tabela Preço'!$A$2:$D$600,18))","v":"  "},null,null,null,null,null,null,null,null,null,null,null,null,null,null,null,null,null,null,null,null,null,null,{"$f":"IF(E118=\"\",\"  \",IF($AJ$4=\"Tabela 1\",VLOOKUP(E118,Tabelapreço[],4),IF($AJ$4=\"Prazo\",VLOOKUP(E118,Tabelapreço[],5),IF($AJ$4=\"A vista\",VLOOKUP(E118,Tabelapreço[],6),IF($AJ$4=\"Varejo\",VLOOKUP(E118,Tabelapreço[],7),IF($AJ$4=\"Tabela 6\",VLOOKUP(E118,Tabelapreço[],8),IF($AJ$4=\"Tabela 8\",VLOOKUP(E118,Tabelapreço[],9),IF($AJ$4=\"L. Fernando\",VLOOKUP(E118,Tabelapreço[],10),IF($AJ$4=\"Promoção\",VLOOKUP(E118,Tabelapreço[],11),IF($AJ$4=\"Facção\",VLOOKUP(E118,Tabelapreço[],12)))))))))))","v":"  "},null,null,null,null,""]
[105,"",null,null,null,null,null,{"$f":"IF(E119=\"\",\"  \",VLOOKUP(E119,'Tabela Preço'!$A$2:$C$600,2,FALSE))","v":"  "},null,null,null,null,null,null,null,null,{"$f":"IF(E119=\"\",\"  \",VLOOKUP(E119,'Tabela Preço'!$A$2:$D$600,18))","v":"  "},null,null,null,null,null,null,null,null,null,null,null,null,null,null,null,null,null,null,null,null,null,null,{"$f":"IF(E119=\"\",\"  \",IF($AJ$4=\"Tabela 1\",VLOOKUP(E119,Tabelapreço[],4),IF($AJ$4=\"Prazo\",VLOOKUP(E119,Tabelapreço[],5),IF($AJ$4=\"A vista\",VLOOKUP(E119,Tabelapreço[],6),IF($AJ$4=\"Varejo\",VLOOKUP(E119,Tabelapreço[],7),IF($AJ$4=\"Tabela 6\",VLOOKUP(E119,Tabelapreço[],8),IF($AJ$4=\"Tabela 8\",VLOOKUP(E119,Tabelapreço[],9),IF($AJ$4=\"L. Fernando\",VLOOKUP(E119,Tabelapreço[],10),IF($AJ$4=\"Promoção\",VLOOKUP(E119,Tabelapreço[],11),IF($AJ$4=\"Facção\",VLOOKUP(E119,Tabelapreço[],12)))))))))))","v":"  "},null,null,null,null,""]
[106,"",null,null,null,null,null,{"$f":"IF(E120=\"\",\"  \",VLOOKUP(E120,'Tabela Preço'!$A$2:$C$600,2,FALSE))","v":"  "},null,null,null,null,null,null,null,null,{"$f":"IF(E120=\"\",\"  \",VLOOKUP(E120,'Tabela Preço'!$A$2:$D$600,18))","v":"  "},null,null,null,null,null,null,null,null,null,null,null,null,null,null,null,null,null,null,null,null,null,null,{"$f":"IF(E120=\"\",\"  \",IF($AJ$4=\"Tabela 1\",VLOOKUP(E120,Tabelapreço[],4),IF($AJ$4=\"Prazo\",VLOOKUP(E120,Tabelapreço[],5),IF($AJ$4=\"A vista\",VLOOKUP(E120,Tabelapreço[],6),IF($AJ$4=\"Varejo\",VLOOKUP(E120,Tabelapreço[],7),IF($AJ$4=\"Tabela 6\",VLOOKUP(E120,Tabelapreço[],8),IF($AJ$4=\"Tabela 8\",VLOOKUP(E120,Tabelapreço[],9),IF($AJ$4=\"L. Fernando\",VLOOKUP(E120,Tabelapreço[],10),IF($AJ$4=\"Promoção\",VLOOKUP(E120,Tabelapreço[],11),IF($AJ$4=\"Facção\",VLOOKUP(E120,Tabelapreço[],12)))))))))))","v":"  "},null,null,null,null,""]
[107,"",null,null,null,null,null,{"$f":"IF(E121=\"\",\"  \",VLOOKUP(E121,'Tabela Preço'!$A$2:$C$600,2,FALSE))","v":"  "},null,null,null,null,null,null,null,null,{"$f":"IF(E121=\"\",\"  \",VLOOKUP(E121,'Tabela Preço'!$A$2:$D$600,18))","v":"  "},null,null,null,null,null,null,null,null,null,null,null,null,null,null,null,null,null,null,null,null,null,null,{"$f":"IF(E121=\"\",\"  \",IF($AJ$4=\"Tabela 1\",VLOOKUP(E121,Tabelapreço[],4),IF($AJ$4=\"Prazo\",VLOOKUP(E121,Tabelapreço[],5),IF($AJ$4=\"A vista\",VLOOKUP(E121,Tabelapreço[],6),IF($AJ$4=\"Varejo\",VLOOKUP(E121,Tabelapreço[],7),IF($AJ$4=\"Tabela 6\",VLOOKUP(E121,Tabelapreço[],8),IF($AJ$4=\"Tabela 8\",VLOOKUP(E121,Tabelapreço[],9),IF($AJ$4=\"L. Fernando\",VLOOKUP(E121,Tabelapreço[],10),IF($AJ$4=\"Promoção\",VLOOKUP(E121,Tabelapreço[],11),IF($AJ$4=\"Facção\",VLOOKUP(E121,Tabelapreço[],12)))))))))))","v":"  "},null,null,null,null,""]
[108,"",null,null,null,null,null,{"$f":"IF(E122=\"\",\"  \",VLOOKUP(E122,'Tabela Preço'!$A$2:$C$600,2,FALSE))","v":"  "},null,null,null,null,null,null,null,null,{"$f":"IF(E122=\"\",\"  \",VLOOKUP(E122,'Tabela Preço'!$A$2:$D$600,18))","v":"  "},null,null,null,null,null,null,null,null,null,null,null,null,null,null,null,null,null,null,null,null,null,null,{"$f":"IF(E122=\"\",\"  \",IF($AJ$4=\"Tabela 1\",VLOOKUP(E122,Tabelapreço[],4),IF($AJ$4=\"Prazo\",VLOOKUP(E122,Tabelapreço[],5),IF($AJ$4=\"A vista\",VLOOKUP(E122,Tabelapreço[],6),IF($AJ$4=\"Varejo\",VLOOKUP(E122,Tabelapreço[],7),IF($AJ$4=\"Tabela 6\",VLOOKUP(E122,Tabelapreço[],8),IF($AJ$4=\"Tabela 8\",VLOOKUP(E122,Tabelapreço[],9),IF($AJ$4=\"L. Fernando\",VLOOKUP(E122,Tabelapreço[],10),IF($AJ$4=\"Promoção\",VLOOKUP(E122,Tabelapreço[],11),IF($AJ$4=\"Facção\",VLOOKUP(E122,Tabelapreço[],12)))))))))))","v":"  "},null,null,null,null,""]
[109,"",null,null,null,null,null,{"$f":"IF(E123=\"\",\"  \",VLOOKUP(E123,'Tabela Preço'!$A$2:$C$600,2,FALSE))","v":"  "},null,null,null,null,null,null,null,null,{"$f":"IF(E123=\"\",\"  \",VLOOKUP(E123,'Tabela Preço'!$A$2:$D$600,18))","v":"  "},null,null,null,null,null,null,null,null,null,null,null,null,null,null,null,null,null,null,null,null,null,null,{"$f":"IF(E123=\"\",\"  \",IF($AJ$4=\"Tabela 1\",VLOOKUP(E123,Tabelapreço[],4),IF($AJ$4=\"Prazo\",VLOOKUP(E123,Tabelapreço[],5),IF($AJ$4=\"A vista\",VLOOKUP(E123,Tabelapreço[],6),IF($AJ$4=\"Varejo\",VLOOKUP(E123,Tabelapreço[],7),IF($AJ$4=\"Tabela 6\",VLOOKUP(E123,Tabelapreço[],8),IF($AJ$4=\"Tabela 8\",VLOOKUP(E123,Tabelapreço[],9),IF($AJ$4=\"L. Fernando\",VLOOKUP(E123,Tabelapreço[],10),IF($AJ$4=\"Promoção\",VLOOKUP(E123,Tabelapreço[],11),IF($AJ$4=\"Facção\",VLOOKUP(E123,Tabelapreço[],12)))))))))))","v":"  "},null,null,null,null,""]
[110,"",null,null,null,null,null,{"$f":"IF(E124=\"\",\"  \",VLOOKUP(E124,'Tabela Preço'!$A$2:$C$600,2,FALSE))","v":"  "},null,null,null,null,null,null,null,null,{"$f":"IF(E124=\"\",\"  \",VLOOKUP(E124,'Tabela Preço'!$A$2:$D$600,18))","v":"  "},null,null,null,null,null,null,null,null,null,null,null,null,null,null,null,null,null,null,null,null,null,null,{"$f":"IF(E124=\"\",\"  \",IF($AJ$4=\"Tabela 1\",VLOOKUP(E124,Tabelapreço[],4),IF($AJ$4=\"Prazo\",VLOOKUP(E124,Tabelapreço[],5),IF($AJ$4=\"A vista\",VLOOKUP(E124,Tabelapreço[],6),IF($AJ$4=\"Varejo\",VLOOKUP(E124,Tabelapreço[],7),IF($AJ$4=\"Tabela 6\",VLOOKUP(E124,Tabelapreço[],8),IF($AJ$4=\"Tabela 8\",VLOOKUP(E124,Tabelapreço[],9),IF($AJ$4=\"L. Fernando\",VLOOKUP(E124,Tabelapreço[],10),IF($AJ$4=\"Promoção\",VLOOKUP(E124,Tabelapreço[],11),IF($AJ$4=\"Facção\",VLOOKUP(E124,Tabelapreço[],12)))))))))))","v":"  "},null,null,null,null,""]
[111,"",null,null,null,null,null,{"$f":"IF(E125=\"\",\"  \",VLOOKUP(E125,'Tabela Preço'!$A$2:$C$600,2,FALSE))","v":"  "},null,null,null,null,null,null,null,null,{"$f":"IF(E125=\"\",\"  \",VLOOKUP(E125,'Tabela Preço'!$A$2:$D$600,18))","v":"  "},null,null,null,null,null,null,null,null,null,null,null,null,null,null,null,null,null,null,null,null,null,null,{"$f":"IF(E125=\"\",\"  \",IF($AJ$4=\"Tabela 1\",VLOOKUP(E125,Tabelapreço[],4),IF($AJ$4=\"Prazo\",VLOOKUP(E125,Tabelapreço[],5),IF($AJ$4=\"A vista\",VLOOKUP(E125,Tabelapreço[],6),IF($AJ$4=\"Varejo\",VLOOKUP(E125,Tabelapreço[],7),IF($AJ$4=\"Tabela 6\",VLOOKUP(E125,Tabelapreço[],8),IF($AJ$4=\"Tabela 8\",VLOOKUP(E125,Tabelapreço[],9),IF($AJ$4=\"L. Fernando\",VLOOKUP(E125,Tabelapreço[],10),IF($AJ$4=\"Promoção\",VLOOKUP(E125,Tabelapreço[],11),IF($AJ$4=\"Facção\",VLOOKUP(E125,Tabelapreço[],12)))))))))))","v":"  "},null,null,null,null,""]
[112,"",null,null,null,null,null,{"$f":"IF(E126=\"\",\"  \",VLOOKUP(E126,'Tabela Preço'!$A$2:$C$600,2,FALSE))","v":"  "},null,null,null,null,null,null,null,null,{"$f":"IF(E126=\"\",\"  \",VLOOKUP(E126,'Tabela Preço'!$A$2:$D$600,18))","v":"  "},null,null,null,null,null,null,null,null,null,null,null,null,null,null,null,null,null,null,null,null,null,null,{"$f":"IF(E126=\"\",\"  \",IF($AJ$4=\"Tabela 1\",VLOOKUP(E126,Tabelapreço[],4),IF($AJ$4=\"Prazo\",VLOOKUP(E126,Tabelapreço[],5),IF($AJ$4=\"A vista\",VLOOKUP(E126,Tabelapreço[],6),IF($AJ$4=\"Varejo\",VLOOKUP(E126,Tabelapreço[],7),IF($AJ$4=\"Tabela 6\",VLOOKUP(E126,Tabelapreço[],8),IF($AJ$4=\"Tabela 8\",VLOOKUP(E126,Tabelapreço[],9),IF($AJ$4=\"L. Fernando\",VLOOKUP(E126,Tabelapreço[],10),IF($AJ$4=\"Promoção\",VLOOKUP(E126,Tabelapreço[],11),IF($AJ$4=\"Facção\",VLOOKUP(E126,Tabelapreço[],12)))))))))))","v":"  "},null,null,null,null,""]
[113,"",null,null,null,null,null,{"$f":"IF(E127=\"\",\"  \",VLOOKUP(E127,'Tabela Preço'!$A$2:$C$600,2,FALSE))","v":"  "},null,null,null,null,null,null,null,null,{"$f":"IF(E127=\"\",\"  \",VLOOKUP(E127,'Tabela Preço'!$A$2:$D$600,18))","v":"  "},null,null,null,null,null,null,null,null,null,null,null,null,null,null,null,null,null,null,null,null,null,null,{"$f":"IF(E127=\"\",\"  \",IF($AJ$4=\"Tabela 1\",VLOOKUP(E127,Tabelapreço[],4),IF($AJ$4=\"Prazo\",VLOOKUP(E127,Tabelapreço[],5),IF($AJ$4=\"A vista\",VLOOKUP(E127,Tabelapreço[],6),IF($AJ$4=\"Varejo\",VLOOKUP(E127,Tabelapreço[],7),IF($AJ$4=\"Tabela 6\",VLOOKUP(E127,Tabelapreço[],8),IF($AJ$4=\"Tabela 8\",VLOOKUP(E127,Tabelapreço[],9),IF($AJ$4=\"L. Fernando\",VLOOKUP(E127,Tabelapreço[],10),IF($AJ$4=\"Promoção\",VLOOKUP(E127,Tabelapreço[],11),IF($AJ$4=\"Facção\",VLOOKUP(E127,Tabelapreço[],12)))))))))))","v":"  "},null,null,null,null,""]
[114,{"$f":"IF(E128=\"\",\"\",SUM(AD128:AL128))","v":""},null,null,null,null,null,{"$f":"IF(E128=\"\",\"  \",VLOOKUP(E128,'Tabela Preço'!$A$2:$C$600,2,FALSE))","v":"  "},null,null,null,null,null,null,null,null,{"$f":"IF(E128=\"\",\"  \",VLOOKUP(E128,'Tabela Preço'!$A$2:$D$600,18))","v":"  "},null,null,null,null,null,null,null,null,null,null,null,null,null,null,null,null,null,null,null,null,null,null,{"$f":"IF(E128=\"\",\"  \",IF($AJ$4=\"Tabela 1\",VLOOKUP(E128,Tabelapreço[],4),IF($AJ$4=\"Prazo\",VLOOKUP(E128,Tabelapreço[],5),IF($AJ$4=\"A vista\",VLOOKUP(E128,Tabelapreço[],6),IF($AJ$4=\"Varejo\",VLOOKUP(E128,Tabelapreço[],7),IF($AJ$4=\"Tabela 6\",VLOOKUP(E128,Tabelapreço[],8),IF($AJ$4=\"Tabela 8\",VLOOKUP(E128,Tabelapreço[],9),IF($AJ$4=\"L. Fernando\",VLOOKUP(E128,Tabelapreço[],10),IF($AJ$4=\"Promoção\",VLOOKUP(E128,Tabelapreço[],11),IF($AJ$4=\"Facção\",VLOOKUP(E128,Tabelapreço[],12)))))))))))","v":"  "},null,null,null,null,""]
[115,"",null,null,null,null,null,{"$f":"IF(E129=\"\",\"  \",VLOOKUP(E129,'Tabela Preço'!$A$2:$C$600,2,FALSE))","v":"  "},null,null,null,null,null,null,null,null,{"$f":"IF(E129=\"\",\"  \",VLOOKUP(E129,'Tabela Preço'!$A$2:$D$600,18))","v":"  "},null,null,null,null,null,null,null,null,null,null,null,null,null,null,null,null,null,null,null,null,null,null,{"$f":"IF(E129=\"\",\"  \",IF($AJ$4=\"Tabela 1\",VLOOKUP(E129,Tabelapreço[],4),IF($AJ$4=\"Prazo\",VLOOKUP(E129,Tabelapreço[],5),IF($AJ$4=\"A vista\",VLOOKUP(E129,Tabelapreço[],6),IF($AJ$4=\"Varejo\",VLOOKUP(E129,Tabelapreço[],7),IF($AJ$4=\"Tabela 6\",VLOOKUP(E129,Tabelapreço[],8),IF($AJ$4=\"Tabela 8\",VLOOKUP(E129,Tabelapreço[],9),IF($AJ$4=\"L. Fernando\",VLOOKUP(E129,Tabelapreço[],10),IF($AJ$4=\"Promoção\",VLOOKUP(E129,Tabelapreço[],11),IF($AJ$4=\"Facção\",VLOOKUP(E129,Tabelapreço[],12)))))))))))","v":"  "},null,null,null,null,""]
[116,"",null,null,null,null,null,{"$f":"IF(E130=\"\",\"  \",VLOOKUP(E130,'Tabela Preço'!$A$2:$C$600,2,FALSE))","v":"  "},null,null,null,null,null,null,null,null,{"$f":"IF(E130=\"\",\"  \",VLOOKUP(E130,'Tabela Preço'!$A$2:$D$600,18))","v":"  "},null,null,null,null,null,null,null,null,null,null,null,null,null,null,null,null,null,null,null,null,null,null,{"$f":"IF(E130=\"\",\"  \",IF($AJ$4=\"Tabela 1\",VLOOKUP(E130,Tabelapreço[],4),IF($AJ$4=\"Prazo\",VLOOKUP(E130,Tabelapreço[],5),IF($AJ$4=\"A vista\",VLOOKUP(E130,Tabelapreço[],6),IF($AJ$4=\"Varejo\",VLOOKUP(E130,Tabelapreço[],7),IF($AJ$4=\"Tabela 6\",VLOOKUP(E130,Tabelapreço[],8),IF($AJ$4=\"Tabela 8\",VLOOKUP(E130,Tabelapreço[],9),IF($AJ$4=\"L. Fernando\",VLOOKUP(E130,Tabelapreço[],10),IF($AJ$4=\"Promoção\",VLOOKUP(E130,Tabelapreço[],11),IF($AJ$4=\"Facção\",VLOOKUP(E130,Tabelapreço[],12)))))))))))","v":"  "},null,null,null,null,""]
[117,"",null,null,null,null,null,{"$f":"IF(E131=\"\",\"  \",VLOOKUP(E131,'Tabela Preço'!$A$2:$C$600,2,FALSE))","v":"  "},null,null,null,null,null,null,null,null,{"$f":"IF(E131=\"\",\"  \",VLOOKUP(E131,'Tabela Preço'!$A$2:$D$600,18))","v":"  "},null,null,null,null,null,null,null,null,null,null,null,null,null,null,null,null,null,null,null,null,null,null,{"$f":"IF(E131=\"\",\"  \",IF($AJ$4=\"Tabela 1\",VLOOKUP(E131,Tabelapreço[],4),IF($AJ$4=\"Prazo\",VLOOKUP(E131,Tabelapreço[],5),IF($AJ$4=\"A vista\",VLOOKUP(E131,Tabelapreço[],6),IF($AJ$4=\"Varejo\",VLOOKUP(E131,Tabelapreço[],7),IF($AJ$4=\"Tabela 6\",VLOOKUP(E131,Tabelapreço[],8),IF($AJ$4=\"Tabela 8\",VLOOKUP(E131,Tabelapreço[],9),IF($AJ$4=\"L. Fernando\",VLOOKUP(E131,Tabelapreço[],10),IF($AJ$4=\"Promoção\",VLOOKUP(E131,Tabelapreço[],11),IF($AJ$4=\"Facção\",VLOOKUP(E131,Tabelapreço[],12)))))))))))","v":"  "},null,null,null,null,""]
[118,"",null,null,null,null,null,{"$f":"IF(E132=\"\",\"  \",VLOOKUP(E132,'Tabela Preço'!$A$2:$C$600,2,FALSE))","v":"  "},null,null,null,null,null,null,null,null,{"$f":"IF(E132=\"\",\"  \",VLOOKUP(E132,'Tabela Preço'!$A$2:$D$600,18))","v":"  "},null,null,null,null,null,null,null,null,null,null,null,null,null,null,null,null,null,null,null,null,null,null,{"$f":"IF(E132=\"\",\"  \",IF($AJ$4=\"Tabela 1\",VLOOKUP(E132,Tabelapreço[],4),IF($AJ$4=\"Prazo\",VLOOKUP(E132,Tabelapreço[],5),IF($AJ$4=\"A vista\",VLOOKUP(E132,Tabelapreço[],6),IF($AJ$4=\"Varejo\",VLOOKUP(E132,Tabelapreço[],7),IF($AJ$4=\"Tabela 6\",VLOOKUP(E132,Tabelapreço[],8),IF($AJ$4=\"Tabela 8\",VLOOKUP(E132,Tabelapreço[],9),IF($AJ$4=\"L. Fernando\",VLOOKUP(E132,Tabelapreço[],10),IF($AJ$4=\"Promoção\",VLOOKUP(E132,Tabelapreço[],11),IF($AJ$4=\"Facção\",VLOOKUP(E132,Tabelapreço[],12)))))))))))","v":"  "},null,null,null,null,""]
[119,"",null,null,null,null,null,{"$f":"IF(E133=\"\",\"  \",VLOOKUP(E133,'Tabela Preço'!$A$2:$C$600,2,FALSE))","v":"  "},null,null,null,null,null,null,null,null,{"$f":"IF(E133=\"\",\"  \",VLOOKUP(E133,'Tabela Preço'!$A$2:$D$600,18))","v":"  "},null,null,null,null,null,null,null,null,null,null,null,null,null,null,null,null,null,null,null,null,null,null,{"$f":"IF(E133=\"\",\"  \",IF($AJ$4=\"Tabela 1\",VLOOKUP(E133,Tabelapreço[],4),IF($AJ$4=\"Prazo\",VLOOKUP(E133,Tabelapreço[],5),IF($AJ$4=\"A vista\",VLOOKUP(E133,Tabelapreço[],6),IF($AJ$4=\"Varejo\",VLOOKUP(E133,Tabelapreço[],7),IF($AJ$4=\"Tabela 6\",VLOOKUP(E133,Tabelapreço[],8),IF($AJ$4=\"Tabela 8\",VLOOKUP(E133,Tabelapreço[],9),IF($AJ$4=\"L. Fernando\",VLOOKUP(E133,Tabelapreço[],10),IF($AJ$4=\"Promoção\",VLOOKUP(E133,Tabelapreço[],11),IF($AJ$4=\"Facção\",VLOOKUP(E133,Tabelapreço[],12)))))))))))","v":"  "},null,null,null,null,""]
[120,"",null,null,null,null,null,{"$f":"IF(E134=\"\",\"  \",VLOOKUP(E134,'Tabela Preço'!$A$2:$C$600,2,FALSE))","v":"  "},null,null,null,null,null,null,null,null,{"$f":"IF(E134=\"\",\"  \",VLOOKUP(E134,'Tabela Preço'!$A$2:$D$600,18))","v":"  "},null,null,null,null,null,null,null,null,null,null,null,null,null,null,null,null,null,null,null,null,null,null,{"$f":"IF(E134=\"\",\"  \",IF($AJ$4=\"Tabela 1\",VLOOKUP(E134,Tabelapreço[],4),IF($AJ$4=\"Prazo\",VLOOKUP(E134,Tabelapreço[],5),IF($AJ$4=\"A vista\",VLOOKUP(E134,Tabelapreço[],6),IF($AJ$4=\"Varejo\",VLOOKUP(E134,Tabelapreço[],7),IF($AJ$4=\"Tabela 6\",VLOOKUP(E134,Tabelapreço[],8),IF($AJ$4=\"Tabela 8\",VLOOKUP(E134,Tabelapreço[],9),IF($AJ$4=\"L. Fernando\",VLOOKUP(E134,Tabelapreço[],10),IF($AJ$4=\"Promoção\",VLOOKUP(E134,Tabelapreço[],11),IF($AJ$4=\"Facção\",VLOOKUP(E134,Tabelapreço[],12)))))))))))","v":"  "},null,null,null,null,""]
[121,"",null,null,null,null,null,{"$f":"IF(E135=\"\",\"  \",VLOOKUP(E135,'Tabela Preço'!$A$2:$C$600,2,FALSE))","v":"  "},null,null,null,null,null,null,null,null,{"$f":"IF(E135=\"\",\"  \",VLOOKUP(E135,'Tabela Preço'!$A$2:$D$600,18))","v":"  "},null,null,null,null,null,null,null,null,null,null,null,null,null,null,null,null,null,null,null,null,null,null,{"$f":"IF(E135=\"\",\"  \",IF($AJ$4=\"Tabela 1\",VLOOKUP(E135,Tabelapreço[],4),IF($AJ$4=\"Prazo\",VLOOKUP(E135,Tabelapreço[],5),IF($AJ$4=\"A vista\",VLOOKUP(E135,Tabelapreço[],6),IF($AJ$4=\"Varejo\",VLOOKUP(E135,Tabelapreço[],7),IF($AJ$4=\"Tabela 6\",VLOOKUP(E135,Tabelapreço[],8),IF($AJ$4=\"Tabela 8\",VLOOKUP(E135,Tabelapreço[],9),IF($AJ$4=\"L. Fernando\",VLOOKUP(E135,Tabelapreço[],10),IF($AJ$4=\"Promoção\",VLOOKUP(E135,Tabelapreço[],11),IF($AJ$4=\"Facção\",VLOOKUP(E135,Tabelapreço[],12)))))))))))","v":"  "},null,null,null,null,""]
[122,"",null,null,null,null,null,{"$f":"IF(E136=\"\",\"  \",VLOOKUP(E136,'Tabela Preço'!$A$2:$C$600,2,FALSE))","v":"  "},null,null,null,null,null,null,null,null,{"$f":"IF(E136=\"\",\"  \",VLOOKUP(E136,'Tabela Preço'!$A$2:$D$600,18))","v":"  "},null,null,null,null,null,null,null,null,null,null,null,null,null,null,null,null,null,null,null,null,null,null,{"$f":"IF(E136=\"\",\"  \",IF($AJ$4=\"Tabela 1\",VLOOKUP(E136,Tabelapreço[],4),IF($AJ$4=\"Prazo\",VLOOKUP(E136,Tabelapreço[],5),IF($AJ$4=\"A vista\",VLOOKUP(E136,Tabelapreço[],6),IF($AJ$4=\"Varejo\",VLOOKUP(E136,Tabelapreço[],7),IF($AJ$4=\"Tabela 6\",VLOOKUP(E136,Tabelapreço[],8),IF($AJ$4=\"Tabela 8\",VLOOKUP(E136,Tabelapreço[],9),IF($AJ$4=\"L. Fernando\",VLOOKUP(E136,Tabelapreço[],10),IF($AJ$4=\"Promoção\",VLOOKUP(E136,Tabelapreço[],11),IF($AJ$4=\"Facção\",VLOOKUP(E136,Tabelapreço[],12)))))))))))","v":"  "},null,null,null,null,""]
[123,"",null,null,null,null,null,{"$f":"IF(E137=\"\",\"  \",VLOOKUP(E137,'Tabela Preço'!$A$2:$C$600,2,FALSE))","v":"  "},null,null,null,null,null,null,null,null,{"$f":"IF(E137=\"\",\"  \",VLOOKUP(E137,'Tabela Preço'!$A$2:$D$600,18))","v":"  "},null,null,null,null,null,null,null,null,null,null,null,null,null,null,null,null,null,null,null,null,null,null,{"$f":"IF(E137=\"\",\"  \",IF($AJ$4=\"Tabela 1\",VLOOKUP(E137,Tabelapreço[],4),IF($AJ$4=\"Prazo\",VLOOKUP(E137,Tabelapreço[],5),IF($AJ$4=\"A vista\",VLOOKUP(E137,Tabelapreço[],6),IF($AJ$4=\"Varejo\",VLOOKUP(E137,Tabelapreço[],7),IF($AJ$4=\"Tabela 6\",VLOOKUP(E137,Tabelapreço[],8),IF($AJ$4=\"Tabela 8\",VLOOKUP(E137,Tabelapreço[],9),IF($AJ$4=\"L. Fernando\",VLOOKUP(E137,Tabelapreço[],10),IF($AJ$4=\"Promoção\",VLOOKUP(E137,Tabelapreço[],11),IF($AJ$4=\"Facção\",VLOOKUP(E137,Tabelapreço[],12)))))))))))","v":"  "},null,null,null,null,""]
[124,"",null,null,null,null,null,{"$f":"IF(E138=\"\",\"  \",VLOOKUP(E138,'Tabela Preço'!$A$2:$C$600,2,FALSE))","v":"  "},null,null,null,null,null,null,null,null,{"$f":"IF(E138=\"\",\"  \",VLOOKUP(E138,'Tabela Preço'!$A$2:$D$600,18))","v":"  "},null,null,null,null,null,null,null,null,null,null,null,null,null,null,null,null,null,null,null,null,null,null,{"$f":"IF(E138=\"\",\"  \",IF($AJ$4=\"Tabela 1\",VLOOKUP(E138,Tabelapreço[],4),IF($AJ$4=\"Prazo\",VLOOKUP(E138,Tabelapreço[],5),IF($AJ$4=\"A vista\",VLOOKUP(E138,Tabelapreço[],6),IF($AJ$4=\"Varejo\",VLOOKUP(E138,Tabelapreço[],7),IF($AJ$4=\"Tabela 6\",VLOOKUP(E138,Tabelapreço[],8),IF($AJ$4=\"Tabela 8\",VLOOKUP(E138,Tabelapreço[],9),IF($AJ$4=\"L. Fernando\",VLOOKUP(E138,Tabelapreço[],10),IF($AJ$4=\"Promoção\",VLOOKUP(E138,Tabelapreço[],11),IF($AJ$4=\"Facção\",VLOOKUP(E138,Tabelapreço[],12)))))))))))","v":"  "},null,null,null,null,""]
[125,"",null,null,null,null,null,{"$f":"IF(E139=\"\",\"  \",VLOOKUP(E139,'Tabela Preço'!$A$2:$C$600,2,FALSE))","v":"  "},null,null,null,null,null,null,null,null,{"$f":"IF(E139=\"\",\"  \",VLOOKUP(E139,'Tabela Preço'!$A$2:$D$600,18))","v":"  "},null,null,null,null,null,null,null,null,null,null,null,null,null,null,null,null,null,null,null,null,null,null,{"$f":"IF(E139=\"\",\"  \",IF($AJ$4=\"Tabela 1\",VLOOKUP(E139,Tabelapreço[],4),IF($AJ$4=\"Prazo\",VLOOKUP(E139,Tabelapreço[],5),IF($AJ$4=\"A vista\",VLOOKUP(E139,Tabelapreço[],6),IF($AJ$4=\"Varejo\",VLOOKUP(E139,Tabelapreço[],7),IF($AJ$4=\"Tabela 6\",VLOOKUP(E139,Tabelapreço[],8),IF($AJ$4=\"Tabela 8\",VLOOKUP(E139,Tabelapreço[],9),IF($AJ$4=\"L. Fernando\",VLOOKUP(E139,Tabelapreço[],10),IF($AJ$4=\"Promoção\",VLOOKUP(E139,Tabelapreço[],11),IF($AJ$4=\"Facção\",VLOOKUP(E139,Tabelapreço[],12)))))))))))","v":"  "},null,null,null,null,""]
[126,"",null,null,null,null,null,{"$f":"IF(E140=\"\",\"  \",VLOOKUP(E140,'Tabela Preço'!$A$2:$C$600,2,FALSE))","v":"  "},null,null,null,null,null,null,null,null,{"$f":"IF(E140=\"\",\"  \",VLOOKUP(E140,'Tabela Preço'!$A$2:$D$600,18))","v":"  "},null,null,null,null,null,null,null,null,null,null,null,null,null,null,null,null,null,null,null,null,null,null,{"$f":"IF(E140=\"\",\"  \",IF($AJ$4=\"Tabela 1\",VLOOKUP(E140,Tabelapreço[],4),IF($AJ$4=\"Prazo\",VLOOKUP(E140,Tabelapreço[],5),IF($AJ$4=\"A vista\",VLOOKUP(E140,Tabelapreço[],6),IF($AJ$4=\"Varejo\",VLOOKUP(E140,Tabelapreço[],7),IF($AJ$4=\"Tabela 6\",VLOOKUP(E140,Tabelapreço[],8),IF($AJ$4=\"Tabela 8\",VLOOKUP(E140,Tabelapreço[],9),IF($AJ$4=\"L. Fernando\",VLOOKUP(E140,Tabelapreço[],10),IF($AJ$4=\"Promoção\",VLOOKUP(E140,Tabelapreço[],11),IF($AJ$4=\"Facção\",VLOOKUP(E140,Tabelapreço[],12)))))))))))","v":"  "},null,null,null,null,""]
[127,"",null,null,null,null,null,{"$f":"IF(E141=\"\",\"  \",VLOOKUP(E141,'Tabela Preço'!$A$2:$C$600,2,FALSE))","v":"  "},null,null,null,null,null,null,null,null,{"$f":"IF(E141=\"\",\"  \",VLOOKUP(E141,'Tabela Preço'!$A$2:$D$600,18))","v":"  "},null,null,null,null,null,null,null,null,null,null,null,null,null,null,null,null,null,null,null,null,null,null,{"$f":"IF(E141=\"\",\"  \",IF($AJ$4=\"Tabela 1\",VLOOKUP(E141,Tabelapreço[],4),IF($AJ$4=\"Prazo\",VLOOKUP(E141,Tabelapreço[],5),IF($AJ$4=\"A vista\",VLOOKUP(E141,Tabelapreço[],6),IF($AJ$4=\"Varejo\",VLOOKUP(E141,Tabelapreço[],7),IF($AJ$4=\"Tabela 6\",VLOOKUP(E141,Tabelapreço[],8),IF($AJ$4=\"Tabela 8\",VLOOKUP(E141,Tabelapreço[],9),IF($AJ$4=\"L. Fernando\",VLOOKUP(E141,Tabelapreço[],10),IF($AJ$4=\"Promoção\",VLOOKUP(E141,Tabelapreço[],11),IF($AJ$4=\"Facção\",VLOOKUP(E141,Tabelapreço[],12)))))))))))","v":"  "},null,null,null,null,""]
[128,"",null,null,null,null,null,{"$f":"IF(E142=\"\",\"  \",VLOOKUP(E142,'Tabela Preço'!$A$2:$C$600,2,FALSE))","v":"  "},null,null,null,null,null,null,null,null,{"$f":"IF(E142=\"\",\"  \",VLOOKUP(E142,'Tabela Preço'!$A$2:$D$600,18))","v":"  "},null,null,null,null,null,null,null,null,null,null,null,null,null,null,null,null,null,null,null,null,null,null,{"$f":"IF(E142=\"\",\"  \",IF($AJ$4=\"Tabela 1\",VLOOKUP(E142,Tabelapreço[],4),IF($AJ$4=\"Prazo\",VLOOKUP(E142,Tabelapreço[],5),IF($AJ$4=\"A vista\",VLOOKUP(E142,Tabelapreço[],6),IF($AJ$4=\"Varejo\",VLOOKUP(E142,Tabelapreço[],7),IF($AJ$4=\"Tabela 6\",VLOOKUP(E142,Tabelapreço[],8),IF($AJ$4=\"Tabela 8\",VLOOKUP(E142,Tabelapreço[],9),IF($AJ$4=\"L. Fernando\",VLOOKUP(E142,Tabelapreço[],10),IF($AJ$4=\"Promoção\",VLOOKUP(E142,Tabelapreço[],11),IF($AJ$4=\"Facção\",VLOOKUP(E142,Tabelapreço[],12)))))))))))","v":"  "},null,null,null,null,""]
[129,"",null,null,null,null,null,{"$f":"IF(E143=\"\",\"  \",VLOOKUP(E143,'Tabela Preço'!$A$2:$C$600,2,FALSE))","v":"  "},null,null,null,null,null,null,null,null,{"$f":"IF(E143=\"\",\"  \",VLOOKUP(E143,'Tabela Preço'!$A$2:$D$600,18))","v":"  "},null,null,null,null,null,null,null,null,null,null,null,null,null,null,null,null,null,null,null,null,null,null,{"$f":"IF(E143=\"\",\"  \",IF($AJ$4=\"Tabela 1\",VLOOKUP(E143,Tabelapreço[],4),IF($AJ$4=\"Prazo\",VLOOKUP(E143,Tabelapreço[],5),IF($AJ$4=\"A vista\",VLOOKUP(E143,Tabelapreço[],6),IF($AJ$4=\"Varejo\",VLOOKUP(E143,Tabelapreço[],7),IF($AJ$4=\"Tabela 6\",VLOOKUP(E143,Tabelapreço[],8),IF($AJ$4=\"Tabela 8\",VLOOKUP(E143,Tabelapreço[],9),IF($AJ$4=\"L. Fernando\",VLOOKUP(E143,Tabelapreço[],10),IF($AJ$4=\"Promoção\",VLOOKUP(E143,Tabelapreço[],11),IF($AJ$4=\"Facção\",VLOOKUP(E143,Tabelapreço[],12)))))))))))","v":"  "},null,null,null,null,""]
[130,"",null,null,null,null,null,{"$f":"IF(E144=\"\",\"  \",VLOOKUP(E144,'Tabela Preço'!$A$2:$C$600,2,FALSE))","v":"  "},null,null,null,null,null,null,null,null,{"$f":"IF(E144=\"\",\"  \",VLOOKUP(E144,'Tabela Preço'!$A$2:$D$600,18))","v":"  "},null,null,null,null,null,null,null,null,null,null,null,null,null,null,null,null,null,null,null,null,null,null,{"$f":"IF(E144=\"\",\"  \",IF($AJ$4=\"Tabela 1\",VLOOKUP(E144,Tabelapreço[],4),IF($AJ$4=\"Prazo\",VLOOKUP(E144,Tabelapreço[],5),IF($AJ$4=\"A vista\",VLOOKUP(E144,Tabelapreço[],6),IF($AJ$4=\"Varejo\",VLOOKUP(E144,Tabelapreço[],7),IF($AJ$4=\"Tabela 6\",VLOOKUP(E144,Tabelapreço[],8),IF($AJ$4=\"Tabela 8\",VLOOKUP(E144,Tabelapreço[],9),IF($AJ$4=\"L. Fernando\",VLOOKUP(E144,Tabelapreço[],10),IF($AJ$4=\"Promoção\",VLOOKUP(E144,Tabelapreço[],11),IF($AJ$4=\"Facção\",VLOOKUP(E144,Tabelapreço[],12)))))))))))","v":"  "},null,null,null,null,{"$f":"IF(E144=\"\",\"\",AN144*B144)","v":""}]
[131,"",null,null,null,null,null,{"$f":"IF(E145=\"\",\"  \",VLOOKUP(E145,'Tabela Preço'!$A$2:$C$600,2,FALSE))","v":"  "},null,null,null,null,null,null,null,null,{"$f":"IF(E145=\"\",\"  \",VLOOKUP(E145,'Tabela Preço'!$A$2:$D$600,18))","v":"  "},null,null,null,null,null,null,null,null,null,null,null,null,null,null,null,null,null,null,null,null,null,null,{"$f":"IF(E145=\"\",\"  \",IF($AJ$4=\"Tabela 1\",VLOOKUP(E145,Tabelapreço[],4),IF($AJ$4=\"Prazo\",VLOOKUP(E145,Tabelapreço[],5),IF($AJ$4=\"A vista\",VLOOKUP(E145,Tabelapreço[],6),IF($AJ$4=\"Varejo\",VLOOKUP(E145,Tabelapreço[],7),IF($AJ$4=\"Tabela 6\",VLOOKUP(E145,Tabelapreço[],8),IF($AJ$4=\"Tabela 8\",VLOOKUP(E145,Tabelapreço[],9),IF($AJ$4=\"L. Fernando\",VLOOKUP(E145,Tabelapreço[],10),IF($AJ$4=\"Promoção\",VLOOKUP(E145,Tabelapreço[],11),IF($AJ$4=\"Facção\",VLOOKUP(E145,Tabelapreço[],12)))))))))))","v":"  "},null,null,null,null,""]
[132,"",null,null,null,null,null,{"$f":"IF(E146=\"\",\"  \",VLOOKUP(E146,'Tabela Preço'!$A$2:$C$600,2,FALSE))","v":"  "},null,null,null,null,null,null,null,null,{"$f":"IF(E146=\"\",\"  \",VLOOKUP(E146,'Tabela Preço'!$A$2:$D$600,18))","v":"  "},null,null,null,null,null,null,null,null,null,null,null,null,null,null,null,null,null,null,null,null,null,null,{"$f":"IF(E146=\"\",\"  \",IF($AJ$4=\"Tabela 1\",VLOOKUP(E146,Tabelapreço[],4),IF($AJ$4=\"Prazo\",VLOOKUP(E146,Tabelapreço[],5),IF($AJ$4=\"A vista\",VLOOKUP(E146,Tabelapreço[],6),IF($AJ$4=\"Varejo\",VLOOKUP(E146,Tabelapreço[],7),IF($AJ$4=\"Tabela 6\",VLOOKUP(E146,Tabelapreço[],8),IF($AJ$4=\"Tabela 8\",VLOOKUP(E146,Tabelapreço[],9),IF($AJ$4=\"L. Fernando\",VLOOKUP(E146,Tabelapreço[],10),IF($AJ$4=\"Promoção\",VLOOKUP(E146,Tabelapreço[],11),IF($AJ$4=\"Facção\",VLOOKUP(E146,Tabelapreço[],12)))))))))))","v":"  "},null,null,null,null,""]
[133,"",null,null,null,null,null,{"$f":"IF(E147=\"\",\"  \",VLOOKUP(E147,'Tabela Preço'!$A$2:$C$600,2,FALSE))","v":"  "},null,null,null,null,null,null,null,null,{"$f":"IF(E147=\"\",\"  \",VLOOKUP(E147,'Tabela Preço'!$A$2:$D$600,18))","v":"  "},null,null,null,null,null,null,null,null,null,null,null,null,null,null,null,null,null,null,null,null,null,null,{"$f":"IF(E147=\"\",\"  \",IF($AJ$4=\"Tabela 1\",VLOOKUP(E147,Tabelapreço[],4),IF($AJ$4=\"Prazo\",VLOOKUP(E147,Tabelapreço[],5),IF($AJ$4=\"A vista\",VLOOKUP(E147,Tabelapreço[],6),IF($AJ$4=\"Varejo\",VLOOKUP(E147,Tabelapreço[],7),IF($AJ$4=\"Tabela 6\",VLOOKUP(E147,Tabelapreço[],8),IF($AJ$4=\"Tabela 8\",VLOOKUP(E147,Tabelapreço[],9),IF($AJ$4=\"L. Fernando\",VLOOKUP(E147,Tabelapreço[],10),IF($AJ$4=\"Promoção\",VLOOKUP(E147,Tabelapreço[],11),IF($AJ$4=\"Facção\",VLOOKUP(E147,Tabelapreço[],12)))))))))))","v":"  "},null,null,null,null,""]
[134,"",null,null,null,null,null,{"$f":"IF(E148=\"\",\"  \",VLOOKUP(E148,'Tabela Preço'!$A$2:$C$600,2,FALSE))","v":"  "},null,null,null,null,null,null,null,null,{"$f":"IF(E148=\"\",\"  \",VLOOKUP(E148,'Tabela Preço'!$A$2:$D$600,18))","v":"  "},null,null,null,null,null,null,null,null,null,null,null,null,null,null,null,null,null,null,null,null,null,null,{"$f":"IF(E148=\"\",\"  \",IF($AJ$4=\"Tabela 1\",VLOOKUP(E148,Tabelapreço[],4),IF($AJ$4=\"Prazo\",VLOOKUP(E148,Tabelapreço[],5),IF($AJ$4=\"A vista\",VLOOKUP(E148,Tabelapreço[],6),IF($AJ$4=\"Varejo\",VLOOKUP(E148,Tabelapreço[],7),IF($AJ$4=\"Tabela 6\",VLOOKUP(E148,Tabelapreço[],8),IF($AJ$4=\"Tabela 8\",VLOOKUP(E148,Tabelapreço[],9),IF($AJ$4=\"L. Fernando\",VLOOKUP(E148,Tabelapreço[],10),IF($AJ$4=\"Promoção\",VLOOKUP(E148,Tabelapreço[],11),IF($AJ$4=\"Facção\",VLOOKUP(E148,Tabelapreço[],12)))))))))))","v":"  "},null,null,null,null,""]
[135,"",null,null,null,null,null,{"$f":"IF(E149=\"\",\"  \",VLOOKUP(E149,'Tabela Preço'!$A$2:$C$600,2,FALSE))","v":"  "},null,null,null,null,null,null,null,null,{"$f":"IF(E149=\"\",\"  \",VLOOKUP(E149,'Tabela Preço'!$A$2:$D$600,18))","v":"  "},null,null,null,null,null,null,null,null,null,null,null,null,null,null,null,null,null,null,null,null,null,null,{"$f":"IF(E149=\"\",\"  \",IF($AJ$4=\"Tabela 1\",VLOOKUP(E149,Tabelapreço[],4),IF($AJ$4=\"Prazo\",VLOOKUP(E149,Tabelapreço[],5),IF($AJ$4=\"A vista\",VLOOKUP(E149,Tabelapreço[],6),IF($AJ$4=\"Varejo\",VLOOKUP(E149,Tabelapreço[],7),IF($AJ$4=\"Tabela 6\",VLOOKUP(E149,Tabelapreço[],8),IF($AJ$4=\"Tabela 8\",VLOOKUP(E149,Tabelapreço[],9),IF($AJ$4=\"L. Fernando\",VLOOKUP(E149,Tabelapreço[],10),IF($AJ$4=\"Promoção\",VLOOKUP(E149,Tabelapreço[],11),IF($AJ$4=\"Facção\",VLOOKUP(E149,Tabelapreço[],12)))))))))))","v":"  "},null,null,null,null,""]
[136,"",null,null,null,null,null,{"$f":"IF(E150=\"\",\"  \",VLOOKUP(E150,'Tabela Preço'!$A$2:$C$600,2,FALSE))","v":"  "},null,null,null,null,null,null,null,null,{"$f":"IF(E150=\"\",\"  \",VLOOKUP(E150,'Tabela Preço'!$A$2:$D$600,18))","v":"  "},null,null,null,null,null,null,null,null,null,null,null,null,null,null,null,null,null,null,null,null,null,null,{"$f":"IF(E150=\"\",\"  \",IF($AJ$4=\"Tabela 1\",VLOOKUP(E150,Tabelapreço[],4),IF($AJ$4=\"Prazo\",VLOOKUP(E150,Tabelapreço[],5),IF($AJ$4=\"A vista\",VLOOKUP(E150,Tabelapreço[],6),IF($AJ$4=\"Varejo\",VLOOKUP(E150,Tabelapreço[],7),IF($AJ$4=\"Tabela 6\",VLOOKUP(E150,Tabelapreço[],8),IF($AJ$4=\"Tabela 8\",VLOOKUP(E150,Tabelapreço[],9),IF($AJ$4=\"L. Fernando\",VLOOKUP(E150,Tabelapreço[],10),IF($AJ$4=\"Promoção\",VLOOKUP(E150,Tabelapreço[],11),IF($AJ$4=\"Facção\",VLOOKUP(E150,Tabelapreço[],12)))))))))))","v":"  "},null,null,null,null,""]
[137,"",null,null,null,null,null,{"$f":"IF(E151=\"\",\"  \",VLOOKUP(E151,'Tabela Preço'!$A$2:$C$600,2,FALSE))","v":"  "},null,null,null,null,null,null,null,null,{"$f":"IF(E151=\"\",\"  \",VLOOKUP(E151,'Tabela Preço'!$A$2:$D$600,18))","v":"  "},null,null,null,null,null,null,null,null,null,null,null,null,null,null,null,null,null,null,null,null,null,null,{"$f":"IF(E151=\"\",\"  \",IF($AJ$4=\"Tabela 1\",VLOOKUP(E151,Tabelapreço[],4),IF($AJ$4=\"Prazo\",VLOOKUP(E151,Tabelapreço[],5),IF($AJ$4=\"A vista\",VLOOKUP(E151,Tabelapreço[],6),IF($AJ$4=\"Varejo\",VLOOKUP(E151,Tabelapreço[],7),IF($AJ$4=\"Tabela 6\",VLOOKUP(E151,Tabelapreço[],8),IF($AJ$4=\"Tabela 8\",VLOOKUP(E151,Tabelapreço[],9),IF($AJ$4=\"L. Fernando\",VLOOKUP(E151,Tabelapreço[],10),IF($AJ$4=\"Promoção\",VLOOKUP(E151,Tabelapreço[],11),IF($AJ$4=\"Facção\",VLOOKUP(E151,Tabelapreço[],12)))))))))))","v":"  "},null,null,null,null,""]
[138,"",null,null,null,null,null,{"$f":"IF(E152=\"\",\"  \",VLOOKUP(E152,'Tabela Preço'!$A$2:$C$600,2,FALSE))","v":"  "},null,null,null,null,null,null,null,null,{"$f":"IF(E152=\"\",\"  \",VLOOKUP(E152,'Tabela Preço'!$A$2:$D$600,18))","v":"  "},null,null,null,null,null,null,null,null,null,null,null,null,null,null,null,null,null,null,null,null,null,null,{"$f":"IF(E152=\"\",\"  \",IF($AJ$4=\"Tabela 1\",VLOOKUP(E152,Tabelapreço[],4),IF($AJ$4=\"Prazo\",VLOOKUP(E152,Tabelapreço[],5),IF($AJ$4=\"A vista\",VLOOKUP(E152,Tabelapreço[],6),IF($AJ$4=\"Varejo\",VLOOKUP(E152,Tabelapreço[],7),IF($AJ$4=\"Tabela 6\",VLOOKUP(E152,Tabelapreço[],8),IF($AJ$4=\"Tabela 8\",VLOOKUP(E152,Tabelapreço[],9),IF($AJ$4=\"L. Fernando\",VLOOKUP(E152,Tabelapreço[],10),IF($AJ$4=\"Promoção\",VLOOKUP(E152,Tabelapreço[],11),IF($AJ$4=\"Facção\",VLOOKUP(E152,Tabelapreço[],12)))))))))))","v":"  "},null,null,null,null,""]
[139,"",null,null,null,null,null,{"$f":"IF(E153=\"\",\"  \",VLOOKUP(E153,'Tabela Preço'!$A$2:$C$600,2,FALSE))","v":"  "},null,null,null,null,null,null,null,null,{"$f":"IF(E153=\"\",\"  \",VLOOKUP(E153,'Tabela Preço'!$A$2:$D$600,18))","v":"  "},null,null,null,null,null,null,null,null,null,null,null,null,null,null,null,null,null,null,null,null,null,null,{"$f":"IF(E153=\"\",\"  \",IF($AJ$4=\"Tabela 1\",VLOOKUP(E153,Tabelapreço[],4),IF($AJ$4=\"Prazo\",VLOOKUP(E153,Tabelapreço[],5),IF($AJ$4=\"A vista\",VLOOKUP(E153,Tabelapreço[],6),IF($AJ$4=\"Varejo\",VLOOKUP(E153,Tabelapreço[],7),IF($AJ$4=\"Tabela 6\",VLOOKUP(E153,Tabelapreço[],8),IF($AJ$4=\"Tabela 8\",VLOOKUP(E153,Tabelapreço[],9),IF($AJ$4=\"L. Fernando\",VLOOKUP(E153,Tabelapreço[],10),IF($AJ$4=\"Promoção\",VLOOKUP(E153,Tabelapreço[],11),IF($AJ$4=\"Facção\",VLOOKUP(E153,Tabelapreço[],12)))))))))))","v":"  "},null,null,null,null,""]
[140,"",null,null,null,null,null,{"$f":"IF(E154=\"\",\"  \",VLOOKUP(E154,'Tabela Preço'!$A$2:$C$600,2,FALSE))","v":"  "},null,null,null,null,null,null,null,null,{"$f":"IF(E154=\"\",\"  \",VLOOKUP(E154,'Tabela Preço'!$A$2:$D$600,18))","v":"  "},null,null,null,null,null,null,null,null,null,null,null,null,null,null,null,null,null,null,null,null,null,null,{"$f":"IF(E154=\"\",\"  \",IF($AJ$4=\"Tabela 1\",VLOOKUP(E154,Tabelapreço[],4),IF($AJ$4=\"Prazo\",VLOOKUP(E154,Tabelapreço[],5),IF($AJ$4=\"A vista\",VLOOKUP(E154,Tabelapreço[],6),IF($AJ$4=\"Varejo\",VLOOKUP(E154,Tabelapreço[],7),IF($AJ$4=\"Tabela 6\",VLOOKUP(E154,Tabelapreço[],8),IF($AJ$4=\"Tabela 8\",VLOOKUP(E154,Tabelapreço[],9),IF($AJ$4=\"L. Fernando\",VLOOKUP(E154,Tabelapreço[],10),IF($AJ$4=\"Promoção\",VLOOKUP(E154,Tabelapreço[],11),IF($AJ$4=\"Facção\",VLOOKUP(E154,Tabelapreço[],12)))))))))))","v":"  "},null,null,null,null,""]
[141,"",null,null,null,null,null,{"$f":"IF(E155=\"\",\"  \",VLOOKUP(E155,'Tabela Preço'!$A$2:$C$600,2,FALSE))","v":"  "},null,null,null,null,null,null,null,null,{"$f":"IF(E155=\"\",\"  \",VLOOKUP(E155,'Tabela Preço'!$A$2:$D$600,18))","v":"  "},null,null,null,null,null,null,null,null,null,null,null,null,null,null,null,null,null,null,null,null,null,null,{"$f":"IF(E155=\"\",\"  \",IF($AJ$4=\"Tabela 1\",VLOOKUP(E155,Tabelapreço[],4),IF($AJ$4=\"Prazo\",VLOOKUP(E155,Tabelapreço[],5),IF($AJ$4=\"A vista\",VLOOKUP(E155,Tabelapreço[],6),IF($AJ$4=\"Varejo\",VLOOKUP(E155,Tabelapreço[],7),IF($AJ$4=\"Tabela 6\",VLOOKUP(E155,Tabelapreço[],8),IF($AJ$4=\"Tabela 8\",VLOOKUP(E155,Tabelapreço[],9),IF($AJ$4=\"L. Fernando\",VLOOKUP(E155,Tabelapreço[],10),IF($AJ$4=\"Promoção\",VLOOKUP(E155,Tabelapreço[],11),IF($AJ$4=\"Facção\",VLOOKUP(E155,Tabelapreço[],12)))))))))))","v":"  "},null,null,null,null,""]
[142,"",null,null,null,null,null,{"$f":"IF(E156=\"\",\"  \",VLOOKUP(E156,'Tabela Preço'!$A$2:$C$600,2,FALSE))","v":"  "},null,null,null,null,null,null,null,null,{"$f":"IF(E156=\"\",\"  \",VLOOKUP(E156,'Tabela Preço'!$A$2:$D$600,18))","v":"  "},null,null,null,null,null,null,null,null,null,null,null,null,null,null,null,null,null,null,null,null,null,null,{"$f":"IF(E156=\"\",\"  \",IF($AJ$4=\"Tabela 1\",VLOOKUP(E156,Tabelapreço[],4),IF($AJ$4=\"Prazo\",VLOOKUP(E156,Tabelapreço[],5),IF($AJ$4=\"A vista\",VLOOKUP(E156,Tabelapreço[],6),IF($AJ$4=\"Varejo\",VLOOKUP(E156,Tabelapreço[],7),IF($AJ$4=\"Tabela 6\",VLOOKUP(E156,Tabelapreço[],8),IF($AJ$4=\"Tabela 8\",VLOOKUP(E156,Tabelapreço[],9),IF($AJ$4=\"L. Fernando\",VLOOKUP(E156,Tabelapreço[],10),IF($AJ$4=\"Promoção\",VLOOKUP(E156,Tabelapreço[],11),IF($AJ$4=\"Facção\",VLOOKUP(E156,Tabelapreço[],12)))))))))))","v":"  "},null,null,null,null,""]
[143,"",null,null,null,null,null,{"$f":"IF(E157=\"\",\"  \",VLOOKUP(E157,'Tabela Preço'!$A$2:$C$600,2,FALSE))","v":"  "},null,null,null,null,null,null,null,null,{"$f":"IF(E157=\"\",\"  \",VLOOKUP(E157,'Tabela Preço'!$A$2:$D$600,18))","v":"  "},null,null,null,null,null,null,null,null,null,null,null,null,null,null,null,null,null,null,null,null,null,null,{"$f":"IF(E157=\"\",\"  \",IF($AJ$4=\"Tabela 1\",VLOOKUP(E157,Tabelapreço[],4),IF($AJ$4=\"Prazo\",VLOOKUP(E157,Tabelapreço[],5),IF($AJ$4=\"A vista\",VLOOKUP(E157,Tabelapreço[],6),IF($AJ$4=\"Varejo\",VLOOKUP(E157,Tabelapreço[],7),IF($AJ$4=\"Tabela 6\",VLOOKUP(E157,Tabelapreço[],8),IF($AJ$4=\"Tabela 8\",VLOOKUP(E157,Tabelapreço[],9),IF($AJ$4=\"L. Fernando\",VLOOKUP(E157,Tabelapreço[],10),IF($AJ$4=\"Promoção\",VLOOKUP(E157,Tabelapreço[],11),IF($AJ$4=\"Facção\",VLOOKUP(E157,Tabelapreço[],12)))))))))))","v":"  "},null,null,null,null,""]
[144,"",null,null,null,null,null,{"$f":"IF(E158=\"\",\"  \",VLOOKUP(E158,'Tabela Preço'!$A$2:$C$600,2,FALSE))","v":"  "},null,null,null,null,null,null,null,null,{"$f":"IF(E158=\"\",\"  \",VLOOKUP(E158,'Tabela Preço'!$A$2:$D$600,18))","v":"  "},null,null,null,null,null,null,null,null,null,null,null,null,null,null,null,null,null,null,null,null,null,null,{"$f":"IF(E158=\"\",\"  \",IF($AJ$4=\"Tabela 1\",VLOOKUP(E158,Tabelapreço[],4),IF($AJ$4=\"Prazo\",VLOOKUP(E158,Tabelapreço[],5),IF($AJ$4=\"A vista\",VLOOKUP(E158,Tabelapreço[],6),IF($AJ$4=\"Varejo\",VLOOKUP(E158,Tabelapreço[],7),IF($AJ$4=\"Tabela 6\",VLOOKUP(E158,Tabelapreço[],8),IF($AJ$4=\"Tabela 8\",VLOOKUP(E158,Tabelapreço[],9),IF($AJ$4=\"L. Fernando\",VLOOKUP(E158,Tabelapreço[],10),IF($AJ$4=\"Promoção\",VLOOKUP(E158,Tabelapreço[],11),IF($AJ$4=\"Facção\",VLOOKUP(E158,Tabelapreço[],12)))))))))))","v":"  "},null,null,null,null,""]
[145,"",null,null,null,null,null,{"$f":"IF(E159=\"\",\"  \",VLOOKUP(E159,'Tabela Preço'!$A$2:$C$600,2,FALSE))","v":"  "},null,null,null,null,null,null,null,null,{"$f":"IF(E159=\"\",\"  \",VLOOKUP(E159,'Tabela Preço'!$A$2:$D$600,18))","v":"  "},null,null,null,null,null,null,null,null,null,null,null,null,null,null,null,null,null,null,null,null,null,null,{"$f":"IF(E159=\"\",\"  \",IF($AJ$4=\"Tabela 1\",VLOOKUP(E159,Tabelapreço[],4),IF($AJ$4=\"Prazo\",VLOOKUP(E159,Tabelapreço[],5),IF($AJ$4=\"A vista\",VLOOKUP(E159,Tabelapreço[],6),IF($AJ$4=\"Varejo\",VLOOKUP(E159,Tabelapreço[],7),IF($AJ$4=\"Tabela 6\",VLOOKUP(E159,Tabelapreço[],8),IF($AJ$4=\"Tabela 8\",VLOOKUP(E159,Tabelapreço[],9),IF($AJ$4=\"L. Fernando\",VLOOKUP(E159,Tabelapreço[],10),IF($AJ$4=\"Promoção\",VLOOKUP(E159,Tabelapreço[],11),IF($AJ$4=\"Facção\",VLOOKUP(E159,Tabelapreço[],12)))))))))))","v":"  "},null,null,null,null,""]
[146,"",null,null,null,null,null,{"$f":"IF(E160=\"\",\"  \",VLOOKUP(E160,'Tabela Preço'!$A$2:$C$600,2,FALSE))","v":"  "},null,null,null,null,null,null,null,null,{"$f":"IF(E160=\"\",\"  \",VLOOKUP(E160,'Tabela Preço'!$A$2:$D$600,18))","v":"  "},null,null,null,null,null,null,null,null,null,null,null,null,null,null,null,null,null,null,null,null,null,null,{"$f":"IF(E160=\"\",\"  \",IF($AJ$4=\"Tabela 1\",VLOOKUP(E160,Tabelapreço[],4),IF($AJ$4=\"Prazo\",VLOOKUP(E160,Tabelapreço[],5),IF($AJ$4=\"A vista\",VLOOKUP(E160,Tabelapreço[],6),IF($AJ$4=\"Varejo\",VLOOKUP(E160,Tabelapreço[],7),IF($AJ$4=\"Tabela 6\",VLOOKUP(E160,Tabelapreço[],8),IF($AJ$4=\"Tabela 8\",VLOOKUP(E160,Tabelapreço[],9),IF($AJ$4=\"L. Fernando\",VLOOKUP(E160,Tabelapreço[],10),IF($AJ$4=\"Promoção\",VLOOKUP(E160,Tabelapreço[],11),IF($AJ$4=\"Facção\",VLOOKUP(E160,Tabelapreço[],12)))))))))))","v":"  "},null,null,null,null,""]
[147,"",null,null,null,null,null,{"$f":"IF(E161=\"\",\"  \",VLOOKUP(E161,'Tabela Preço'!$A$2:$C$600,2,FALSE))","v":"  "},null,null,null,null,null,null,null,null,{"$f":"IF(E161=\"\",\"  \",VLOOKUP(E161,'Tabela Preço'!$A$2:$D$600,18))","v":"  "},null,null,null,null,null,null,null,null,null,null,null,null,null,null,null,null,null,null,null,null,null,null,{"$f":"IF(E161=\"\",\"  \",IF($AJ$4=\"Tabela 1\",VLOOKUP(E161,Tabelapreço[],4),IF($AJ$4=\"Prazo\",VLOOKUP(E161,Tabelapreço[],5),IF($AJ$4=\"A vista\",VLOOKUP(E161,Tabelapreço[],6),IF($AJ$4=\"Varejo\",VLOOKUP(E161,Tabelapreço[],7),IF($AJ$4=\"Tabela 6\",VLOOKUP(E161,Tabelapreço[],8),IF($AJ$4=\"Tabela 8\",VLOOKUP(E161,Tabelapreço[],9),IF($AJ$4=\"L. Fernando\",VLOOKUP(E161,Tabelapreço[],10),IF($AJ$4=\"Promoção\",VLOOKUP(E161,Tabelapreço[],11),IF($AJ$4=\"Facção\",VLOOKUP(E161,Tabelapreço[],12)))))))))))","v":"  "},null,null,null,null,""]
[148,"",null,null,null,null,null,{"$f":"IF(E162=\"\",\"  \",VLOOKUP(E162,'Tabela Preço'!$A$2:$C$600,2,FALSE))","v":"  "},null,null,null,null,null,null,null,null,{"$f":"IF(E162=\"\",\"  \",VLOOKUP(E162,'Tabela Preço'!$A$2:$D$600,18))","v":"  "},null,null,null,null,null,null,null,null,null,null,null,null,null,null,null,null,null,null,null,null,null,null,{"$f":"IF(E162=\"\",\"  \",IF($AJ$4=\"Tabela 1\",VLOOKUP(E162,Tabelapreço[],4),IF($AJ$4=\"Prazo\",VLOOKUP(E162,Tabelapreço[],5),IF($AJ$4=\"A vista\",VLOOKUP(E162,Tabelapreço[],6),IF($AJ$4=\"Varejo\",VLOOKUP(E162,Tabelapreço[],7),IF($AJ$4=\"Tabela 6\",VLOOKUP(E162,Tabelapreço[],8),IF($AJ$4=\"Tabela 8\",VLOOKUP(E162,Tabelapreço[],9),IF($AJ$4=\"L. Fernando\",VLOOKUP(E162,Tabelapreço[],10),IF($AJ$4=\"Promoção\",VLOOKUP(E162,Tabelapreço[],11),IF($AJ$4=\"Facção\",VLOOKUP(E162,Tabelapreço[],12)))))))))))","v":"  "},null,null,null,null,""]
[149,"",null,null,null,null,null,{"$f":"IF(E163=\"\",\"  \",VLOOKUP(E163,'Tabela Preço'!$A$2:$C$600,2,FALSE))","v":"  "},null,null,null,null,null,null,null,null,{"$f":"IF(E163=\"\",\"  \",VLOOKUP(E163,'Tabela Preço'!$A$2:$D$600,18))","v":"  "},null,null,null,null,null,null,null,null,null,null,null,null,null,null,null,null,null,null,null,null,null,null,{"$f":"IF(E163=\"\",\"  \",IF($AJ$4=\"Tabela 1\",VLOOKUP(E163,Tabelapreço[],4),IF($AJ$4=\"Prazo\",VLOOKUP(E163,Tabelapreço[],5),IF($AJ$4=\"A vista\",VLOOKUP(E163,Tabelapreço[],6),IF($AJ$4=\"Varejo\",VLOOKUP(E163,Tabelapreço[],7),IF($AJ$4=\"Tabela 6\",VLOOKUP(E163,Tabelapreço[],8),IF($AJ$4=\"Tabela 8\",VLOOKUP(E163,Tabelapreço[],9),IF($AJ$4=\"L. Fernando\",VLOOKUP(E163,Tabelapreço[],10),IF($AJ$4=\"Promoção\",VLOOKUP(E163,Tabelapreço[],11),IF($AJ$4=\"Facção\",VLOOKUP(E163,Tabelapreço[],12)))))))))))","v":"  "},null,null,null,null,""]
[150,"",null,null,null,null,null,{"$f":"IF(E164=\"\",\"  \",VLOOKUP(E164,'Tabela Preço'!$A$2:$C$600,2,FALSE))","v":"  "},null,null,null,null,null,null,null,null,{"$f":"IF(E164=\"\",\"  \",VLOOKUP(E164,'Tabela Preço'!$A$2:$D$600,18))","v":"  "},null,null,null,null,null,null,null,null,null,null,null,null,null,null,null,null,null,null,null,null,null,null,{"$f":"IF(E164=\"\",\"  \",IF($AJ$4=\"Tabela 1\",VLOOKUP(E164,Tabelapreço[],4),IF($AJ$4=\"Prazo\",VLOOKUP(E164,Tabelapreço[],5),IF($AJ$4=\"A vista\",VLOOKUP(E164,Tabelapreço[],6),IF($AJ$4=\"Varejo\",VLOOKUP(E164,Tabelapreço[],7),IF($AJ$4=\"Tabela 6\",VLOOKUP(E164,Tabelapreço[],8),IF($AJ$4=\"Tabela 8\",VLOOKUP(E164,Tabelapreço[],9),IF($AJ$4=\"L. Fernando\",VLOOKUP(E164,Tabelapreço[],10),IF($AJ$4=\"Promoção\",VLOOKUP(E164,Tabelapreço[],11),IF($AJ$4=\"Facção\",VLOOKUP(E164,Tabelapreço[],12)))))))))))","v":"  "},null,null,null,null,""]

{"sheet":"Tabela Preço","index":2,"n_rows":430,"n_cols":4,"rows_kept":430,"cut":false,"hidden":false,"merged":[]}
["Ref.","Descrição","Tamanho","Tabela 1"]
[1001,"Calçola Ad. 100% Algodão Estampada","P-M-G-GG",1.1000000000000001]
[1002,"Calçola Ad. 96% Poliester 4% Elastano","P-M-G-GG",1.1499999999999999]
[1003,"Calçola Ad. 100% Algodão Tam. Nobre","G2-G3-G4",1.2]
[2019,"Gola Polo Masc.Com Bolso Piquet","P-M-G-GG",1.25]
[2020,"Gola Polo Masculina Manga Curta","P-M-G-GG",1.3]
[2021,"Regata Ad. Fem. Listrada 50% Alg. E 50% Poliester","P-M-G-GG-EX",1.35]
[2030,"Bermuda Ad. Gorgurão","P-M-G-GG-EX",1.4]
[2031,"Bermuda Ad. Senhora Elanca Canelada  100% Poliester","P-M-G-GG-EX",1.45]
[2032,"Bermuda Ad. Cotton Liso 8% Com Cós Estampado","P-M-G-GG-EX",1.5]
[2034,"Capri Ad. Senhora Elanca Canelada  100% Poliester","P-M-G-GG-EX",1.55]
[2035,"Calça Ad. Senhora Elanca  Canelada  100% Poliester","P-M-G-GG-EX",1.6]
[2036,"Calça Ad. Senhora Elanca Lisa  100% Poliester","P-M-G-GG-EX",1.65]
[2037,"Capri Senhora Ad.Gorgurão Poliester","P-M-G-GG-EX",1.7]
[2048,"Capri  Senhora Ad. Elanca Lisa  100% Poliester","P-M-G-GG-EX",1.75]
[2049,"Bermuda Senhora Elanca Lisa 100% Poliester","P-M-G-GG-EX",1.8]
[2051,"Regata  Masc. Ad. Cor Mista Com  Vivo  100% Algodao","P-M-G-GG",1.85]
[2052,"Camiseta Ad. M Curta Branca Lisa 100% Algodao","P-M-G-GG-EX",1.9]
[2054,"Regata Cavada Fem. Fitness Preto/Branco","P-M-G-GG-EX",1.95]
[2056,"Calça Ad. Cotton Cos Baixo Com Estampa","P-M-G-GG-EX",2]
[2058,"Legging Ad Cotton Cós Baixo Toda Lisa Em Cores","P-M-G-GG-EX",2.0499999999999998]
[2060,"Top Ad. Cotton Liso - Em Cores","P-M-G-GG-EX",2.1]
[2062,"Corsário Infantil Cintura Baixa Cós Estampado","10-12-14-16",2.15]
[2068,"Corsário Ad.Cotton Todo Liso - Em Cores","P-M-G-GG-EX",2.2000000000000002]
[2069,"Calça Fem. Ad. Gorgurão","P-M-G-GG-EX",2.25]
[2071,"Calça Ad. Senhora Cotton Jeans","P-M-G-GG-EX",2.2999999999999998]
[2073,"Calça  Ad.Elanca Peluciada  100% Poliester","P-M-G-GG-EX",2.35]
[2074,"Corsário Ad. Cotton Liso 8% Com Cós Estampado","P-M-G-GG-EX",2.4]
[2079,"Xortes Ad. Cotton Cós Baixo 8% Elastano","P-M-G-GG-EX",2.4500000000000002]
[2080,"Camizeta Ad.M.Curta Cor Escura Lisa 100% Algodao","P-M-G-GG-EX",2.5]
[2082,"Xortes Juvenil Cotton Cós Baixo - Liso - Em Cores","10-12-14-16",2.5499999999999901]
[2104,"Bermuda Juvenil Cotton Com Filete Escolar","10-12-14-16",2.5999999999999899]
[2105,"Corsário Juvenil Cotton Com Filete Escolar","10-12-14-16",2.6499999999999901]
[2118,"Corsário Ad. Cotton Liso 8% Com Strass No Cós","P-M-G-GG-EX",2.69999999999999]
[2128,"Bermuda Ad. Cotton Liso 8%  Com Stráss No Cós","P-M-G-GG-EX",2.7499999999999898]
[2129,"Shorts Elanca Light Academia","P-M-G-GG-EX",2.7999999999999901]
[2135,"Regatão Viscolycra Pp Liso Com Peitilho E Botões","P-M-G-GG-EX",2.8499999999999899]
[2136,"Maria João Gorgurão Optical C/ Botão","P-M-G-GG-EX",2.8999999999999901]
[2137,"Maria João Ad. Elanca Lisa Com Barra E Botões ","P-M-G-GG-EX",2.94999999999999]
[2140,"Legging Ad. Cotton Mescla","P-M-G-GG-EX",2.9999999999999898]
[2142,"Legging Ad. Gflex Lisa Em Cores","P-M-G-GG-EX",3.0499999999999901]
[2143,"Bermuda Juvenil Cotton Liso - Em Cores","10-12-14-16",3.0999999999999899]
[2144,"Corsário Juvenil Cotton Liso - Em Cores","10-12-14-16",3.1499999999999901]
[3008,"Calça Elanca Peluciada Ad. Masc. C/ Bolso","P-M-G-GG",3.19999999999999]
[3013,"Ciroula Ad. Masculina Ribana 100% Algodão","P-M-G-GG-EX",3.2499999999999898]
[3014,"Ciroula Ad. Feminina Ribana 100% Algodão","P-M-G-GG-EX",3.2999999999999901]
[3015,"Blusa Manga Longa Ad. Fem. Ribana C/ Lycra ","P-M-G-GG-EX",3.3499999999999899]
[3024,"Camiseta Manga Longa 100% Algodão Branca","P-M-G-GG",3.3999999999999901]
[3025,"Camiseta Manga Longa 100% Algodão Lisa","P-M-G-GG",3.44999999999999]
[3026,"Camiseta Manga Longa 100% Algodão Estampada","P-M-G-GG",3.4999999999999898]
[3030,"Casaco Masc. Ad. Moleton Mescla 50% Alg. 50% Pol.","P-M-G-GG",3.5499999999999901]
[3031,"Calça Masc. Ad. Moleton Mescla 50% Alg. 50% Pol.","P-M-G-GG",3.5999999999999899]
[3040,"Calça Ad. Cotton Com Strass 92% Alg. 8% Elast.","P-M-G-GG-EX",3.6499999999999901]
[3042,"Calça Senhora El. Peluciada C/ Bolso Cintura Alta","P-M-G-GG-EX",3.69999999999999]
[3047,"Gola Polo Manga Longa Com Bolso","P-M-G-GG",3.7499999999999898]
[3049,"Legging Ad. Cotton Jeans","P-M-G-GG-EX",3.7999999999999901]
[3051,"Calça Fem. Poliflex Lisa - Em Cores","P-M-G-GG-EX",3.8499999999999899]
[3054,"Calça Cotton Mescla","P-M-G-GG-EX",3.8999999999999901]
[3056,"Blusa Manga Longa Lisa De Ribana","P-M-G-GG-EX",3.94999999999999]
[3057,"Jaqueta Fem. Plush Com Capuz E Bordado","P-M-G-GG-EX",3.9999999999999898]
[3058,"Calça Fem. Plush Liso","P-M-G-GG-EX",4.0499999999999901]
[3065,"Legging Juv. Cotton Lisa - Em Cores","10-12-14-16",4.0999999999999899]
[3066,"Legging Juv. Cotton Jeans","10-12-14-16",4.1499999999999897]
[3067,"Legging Ad. Cotton Estampado","P-M-G-GG-EX",4.1999999999999904]
[3068,"Sobretudo Moleton Pa Com Botões","P-M-G-GG-EX",4.2499999999999902]
[3069,"Sobretudo Plush Liso Com Botões","P-M-G-GG-EX",4.2999999999999901]
[3070,"Sobretudo Plush Mescla Cinturado Com Botões","P-M-G-GG-EX",4.3499999999999899]
[3071,"Camisete Fem. M. Longa Ribana Estampada","P-M-G-GG-EX",4.3999999999999897]
[3072,"Blazer Feminino Plush Mescla","P-M-G-GG-EX",4.4499999999999904]
[3073,"Casaco Tipo Cardigan Feminino Viscolycra PP Com Botões","P-M-G-GG-EX",4.4999999999999902]
[3074,"Blusa Fem. Básica Viscolycra","P-M-G-GG-EX",4.5499999999999901]
[3076,"Calça Fem. Ad. Plush Liso Com Bolso E Cordão","P-M-G-GG-EX",4.5999999999999899]
[3077,"Calça Fem. Ad. Viscolycra PP Com Bolso E Cordão","P-M-G-GG-EX",4.6499999999999897]
[3079,"Legging Juv. Cotton Estampado","10-12-14-16",4.6999999999999904]
[3080,"Calça Fem. Ad. Poliflex Peluciado","P-M-G-GG-EX",4.7499999999999902]
[3081,"Legging Fem. Ad. Poliflex Peluciado","P-M-G-GG-EX",4.7999999999999901]
[3082,"Gola Polo Masc. M. Longa Plush Mescla ","P-M-G-GG",4.8499999999999899]
[3084,"Calça Ad. Masc. Elanca Lisa Com Bolsos","P-M-G-GG",4.8999999999999897]
[3085,"Jaqueta Fem. Infantil Plush Liso Com Bordado","2-4-6-8",4.9499999999999904]
[3086,"Calça Fem. Infantil Plush Liso","2-4-6-8",4.9999999999999902]
[3088,"Jaqueta Masc. Infantil Plush Liso Com Bordado","2-4-6-8",5.0499999999999901]
[3089,"Calça Masc. Infantil Plush Liso","2-4-6-8",5.0999999999999899]
[3090,"Sobretudo Plush Juvenil","10-12-14-16",5.1499999999999897]
[3091,"Calça Ad. Senhora Plush Mescla","P-M-G-GG-EX",5.1999999999999904]
[3094,"Camisete Manga 3/4 Ribana Estampada ","P-M-G-GG-EX",5.2499999999999902]
[3095,"Blusa Liganete Meia Manga Com Franzido","P-M-G-GG-EX",5.2999999999999901]
[3096,"Blusa Liganete Manga Longa Gola Drapeada","P-M-G-GG-EX",5.3499999999999801]
[3099,"Camisete Cotton Jeans C/Detalhe Ribana Estampada","P-M-G-GG-EX",5.3999999999999799]
[4001,"Blusa Liganete Est. Franzido E Laço","P-M-G-GG-EX",5.4499999999999797]
[4002,"Blusa Ad. Fem. Liganete Com Fivela","P-M-G-GG-EX",5.4999999999999796]
[4009,"Shorts Ad. Fem. Liganete Com Bolsos","P-M-G-GG-EX",5.5499999999999803]
[4010,"Capri Senhora Cotton Jeans","P-M-G-GG-EX",5.5999999999999801]
[4011,"Bermuda Senhora Cotton Jeans","P-M-G-GG-EX",5.6499999999999799]
[4012,"Maria João Senhora Cotton Jeans Com Botões","P-M-G-GG-EX",5.6999999999999797]
[4016,"Regata Ribana Lisa Com Botões E Laço","P-M-G-GG-EX",5.7499999999999796]
[4017,"Blusa Viscolycra PP Estampa Toda Sublimática - Estampas Diversas","P-M-G-GG-EX",5.7999999999999803]
[4018,"Corsário Ad. Cotton Estampado","P-M-G-GG-EX",5.8499999999999801]
[4019,"Top. Ad. Cotton Estampado","P-M-G-GG-EX",5.8999999999999799]
[4020,"Corsário Gflex Liso Em Cores","P-M-G-GG-EX",5.9499999999999797]
[4021,"Bermuda Gflex Liso Em Cores","P-M-G-GG-EX",5.9999999999999796]
[4022,"Top Gflex Liso Em Cores","P-M-G-GG-EX",6.0499999999999803]
[4024,"Bermuda Juvenil Cotton Jeans C/ Strass","10-12-14-16",6.0999999999999801]
[4025,"Corsário Juvenil Cotton Jeans C/ Strass","10-12-14-16",6.1499999999999799]
[4028,"Regatão Machão Meia Malha Com Estampa","P-M-G-GG",6.1999999999999797]
[4029,"Bermuda Ad. Cotton Estampado","P-M-G-GG-EX",6.2499999999999796]
[4032,"Bermuda Juvenil Cotton Estampado","10-12-14-16",6.2999999999999803]
[4033,"Corsário Juvenil Cotton Estampado","10-12-14-16",6.3499999999999801]
[4036,"Bermuda Ad. Cotton Jeans Com Pesponto E Laço","P-M-G-GG-EX",6.3999999999999799]
[4038,"Regata Ribana Ad Estampada Feminina","P-M-G-GG-EX",6.4499999999999797]
[4039,"Regata Ad. Gaze Sublimática","P-M-G-GG-EX",6.4999999999999796]
[4040,"Regata Ribana Nadador Básica","P-M-G-GG-EX",6.5499999999999803]
[4041,"Regata Ribana Nadador Com Peitilho Aberto","P-M-G-GG-EX",6.5999999999999801]
[4042,"Saia Rodada Viscolycra Estampada","P-M-G-GG-EX",6.6499999999999799]
[4043,"Baby Look Sublimática Tecido Gaze E Renda","P-M-G-GG-EX",6.6999999999999797]
[4044,"Baby Look Ribana Básica","P-M-G-GG-EX",6.7499999999999796]
[4045,"Blusa Ad. Madam Com Babado ","P-M-G-GG-EX",6.7999999999999803]
[4046,"Shorts Ad. Poliflex Liso","P-M-G-GG-EX",6.8499999999999801]
[4047,"Shorts Ad. Cotton Estampado","P-M-G-GG-EX",6.8999999999999799]
[4048,"Bermuda Cotton Jeans Com Cordão E Bolso","P-M-G-GG-EX",6.9499999999999797]
[4049,"Corsário Fitness Cinza Mescla","P-M-G-GG-EX",6.9999999999999796]
[4050,"Bermuda Ad. Cotton Liso","P-M-G-GG-EX",7.0499999999999803]
[4051,"Regata Viscolycra Lisa Com Laço No Decote","P-M-G-GG-EX",7.0999999999999801]
[4052,"Vestido Nadador Viscolycra Estampada","P-M-G-GG-EX",7.1499999999999799]
[4053,"Vestido Liganete Estampada","P-M-G-GG-EX",7.1999999999999797]
[4054,"Macacão Viscolycra Estampada Com Alça E Peitilho","P-M-G-GG-EX",7.2499999999999796]
[4055,"Blusa Liganete Estampada Decote V E Barra","P-M-G-GG-EX",7.2999999999999803]
[4056,"Regata Liganete Estampada Gola Caída","P-M-G-GG-EX",7.3499999999999801]
[4057,"Blusa Mullet Viscolycra Estampada","P-M-G-GG-EX",7.3999999999999799]
[4058,"Blusa Viscolycra Lisa Com Fivela","P-M-G-GG-EX",7.4499999999999797]
[4059,"Tuniquete Liganete Estampada Com Lapela ","P-M-G-GG-EX",7.4999999999999796]
[4060,"Regata Ribana Juvenil Nadador ","10-12-14-16",7.5499999999999803]
[4061,"Blusa Eternal Listrada Decote Caído","P-M-G-GG-EX",7.5999999999999801]
[4062,"Bermuda Gflex Rajado","P-M-G-GG-EX",7.6499999999999799]
[4063,"Corsário Gflex Rajado","P-M-G-GG-EX",7.6999999999999797]
[4064,"Corsário Cotton Com Filete","P-M-G-GG-EX",7.7499999999999796]
[4065,"Bermuda Cotton Com Frizzo Duplo","P-M-G-GG-EX",7.7999999999999803]
[4066,"Corsário Poliflex Com Recorte","P-M-G-GG-EX",7.8499999999999801]
[4067,"Shorts Juv. Cotton Estampado","10-12-14-16",7.8999999999999799]
[4068,"Top Ad. Poliflex Frente Única","P-M-G-GG-EX",7.9499999999999797]
[4069,"Saia Senhora Cotton Jeans","P-M-G-GG-EX",7.9999999999999796]
[4070,"Regata Básica Liganete Estampada","P-M-G-GG-EX",8.0499999999999794]
[4071,"Blusa Liganete Com Manga E Franzido ","P-M-G-GG-EX",8.0999999999999801]
[4072,"Blusa M. Curta Viscolycra PP Com Franzido Lateral","P-M-G-GG-EX",8.1499999999999702]
[4073,"Regata Liganete Gola Boba","P-M-G-GG-EX",8.1999999999999709]
[4074,"Camisete Viscolycra PP","P-M-G-GG-EX",8.2499999999999698]
[4075,"Vestido Básico Liganete Estampada","P-M-G-GG-EX",8.2999999999999705]
[4076,"Vestido Liganete C/ Gota Nas Costas","P-M-G-GG-EX",8.3499999999999694]
[4078,"Regata De Alçinha Liganete Estampada","P-M-G-GG-EX",8.3999999999999702]
[4079,"Vestido Viscolycra Estampada C/ Abertuda Decote","P-M-G-GG-EX",8.4499999999999709]
[4080,"Macacão Liganete Manga Curta Frente Transpassada","P-M-G-GG-EX",8.4999999999999698]
[4081,"Bermuda Cotton Jeans Com Botões E Pregas","P-M-G-GG-EX",8.5499999999999705]
[4082,"Regata Ribana Alça Fina","P-M-G-GG-EX",8.5999999999999694]
[4083,"Baby Look Gaze Colorida Estampa Frontal","P-M-G-GG-EX",8.6499999999999702]
[4084,"Babylook Liganete Estampada","P-M-G-GG-EX",8.6999999999999709]
[4085,"Vestido Viscolycra Estampada Com Babado ","P-M-G-GG-EX",8.7499999999999698]
[4086,"Macacão Viscolycra Estampada Tipo Regata Com Bolso","P-M-G-GG-EX",8.7999999999999705]
[4087,"Bermuda Fitness - Apenas No Cinza Mescla","P-M-G-GG-EX",8.8499999999999694]
[4088,"Blusa Juvenil Viscolycra Estampada Com Babado","10-12-14-16",8.8999999999999702]
[4089,"Regata Juvenil Viscolycra Estampada","10-12-14-16",8.9499999999999709]
[4090,"Bermuda Gflex Juvenil","10-12-14-16",8.9999999999999698]
[4091,"Corsário Gflex Juvenil","10-12-14-16",9.0499999999999705]
[4092,"Blusa Viscolycra PP Sublimática Listrada - Apenas Estampas De Listras","P-M-G-GG-EX",9.0999999999999694]
[4093,"Regata Ribana Mescla Com Bordado","P-M-G-GG-EX",9.1499999999999702]
[4094,"Blusa Liganete Decote V ","P-M-G-GG-EX",9.1999999999999709]
[4095,"Top. Poliflex Estampado decote V","P-M-G-GG-EX",9.2499999999999698]
[4096,"Saia Longa Liganete","P-M-G-GG-EX",9.2999999999999705]
[4097,"Shorts Saia PoliFitness Liso","P-M-G-GG-EX",9.3499999999999694]
[4098,"Bermuda Senhora Liganete Estampada","P-M-G-GG-EX",9.3999999999999702]
[4099,"Shorts Saia PoliFitness Estampado","P-M-G-GG-EX",9.4499999999999709]
[4100,"Top Poliflex Estampado decote Redondo","P-M-G-GG-EX",9.4999999999999698]
[4101,"Shorts Poliflex Estampado Cós Largo","P-M-G-GG-EX",9.5499999999999705]
[4102,"Bermuda Poliflex Estampado Cós Largo","P-M-G-GG-EX",9.5999999999999694]
[4103,"Corsário Poliflex Estampado Cós Largo","P-M-G-GG-EX",9.6499999999999702]
[4104,"Regata Nadador Fitness Dry","P-M-G-GG-EX",9.6999999999999709]
[4105,"Bermuda Poliflex Liso Cós Largo","P-M-G-GG-EX",9.7499999999999698]
[4106,"Corsário Poliflex Liso Cós Largo","P-M-G-GG-EX",9.7999999999999705]
[4107,"Top Poliflex Liso Nadador decote V","P-M-G-GG-EX",9.8499999999999694]
[4108,"Regata Básica Viscolycra Lisa Com franzido","P-M-G-GG-EX",9.8999999999999702]
[4109,"Regata de alça Viscolycra Lisa - com renda decote","P-M-G-GG-EX",9.9499999999999709]
[4110,"Blusa Viscolycra Lisa manga curta","P-M-G-GG-EX",9.9999999999999698]
[4111,"Saia Ad. Longuete Liganete Estampada","P-M-G-GG-EX",10.050000000000001]
[4112,"Camisete Viscolycra estampado manga curta","P-M-G-GG-EX",10.1]
[4113,"Camisete Viscolycra estampado Sem manga","P-M-G-GG-EX",10.15]
[4114,"Camisete Viscolycra Liso manga curta","P-M-G-GG-EX",10.199999999999999]
[4115,"Regata Liganete Decote Canoa","P-M-G-GG-EX",10.25]
[4116,"Blusa Liganete Manga Curta e Martingale com botão","P-M-G-GG-EX",10.3]
[4117,"Blusa Liganete com manga e Decote transpassado","P-M-G-GG-EX",10.35]
[4118,"Vestido longuete liganete estampado","P-M-G-GG-EX",10.4]
[4119,"Vestido Liganete decote redondo e cós cinturado","P-M-G-GG-EX",10.45]
[4120,"Shorts Saia Viscolycra Estampado com pontas","P-M-G-GG-EX",10.5]
[4121,"Camisete Viscolycra Lisa Sem Manga","P-M-G-GG-EX",10.55]
[4122,"Regata Juvenil Ribana com peitilho e botões","10-12-14-16",10.6]
[4127,"Saia Juvenil Viscolycra Estampada c/ babado","10-12-14-16",10.65]
[4128,"Vestido Juvenil Viscolycra Estampada com manga boba","10-12-14-16",10.7]
[4129,"Vestido Juvenil Viscolycra Estampada Tipo Regata","10-12-14-16",10.75]
[4130,"Vestido Liganete com manga curta e Babado","P-M-G-GG-EX",10.8]
[4131,"Vestido Viscolycra Estampada com peitilho e botões","P-M-G-GG-EX",10.85]
[4132,"Vestido Longo Liganete Estampada","P-M-G-GG-EX",10.9]
[4133,"Vestido Viscolycra Lisa com recorte pespontado e Renda","P-M-G-GG-EX",10.95]
[4134,"Vestido Liganete tipo regata frente transpassada ","P-M-G-GG-EX",11]
[4135,"Blusa Viscolycra lisa Manga Haglã e strass","P-M-G-GG-EX",11.05]
[4138,"Shorts Viscolycra Estampada - Debrum e laço Liso","P-M-G-GG-EX",11.1]
[4139,"Bermuda Gorgurinho com bolsos e racha","P-M-G-GG-EX",11.15]
[4143,"Vestido Viscolycra Estampada manga curta e frente transp.","P-M-G-GG-EX",11.2]
[4144,"Vestido Viscolycra Estampada Soltinho - Decote duplo","P-M-G-GG-EX",11.25]
[4145,"Bermuda Liganete Estampada com bolsos","P-M-G-GG-EX",11.3]
[4146,"Vestido Viscolycra Estampada com cós e decote V","P-M-G-GG-EX",11.35]
[4147,"Shorts-saia Peplum - Poliflex Jacquard","P-M-G-GG-EX",11.4]
[4148,"Bermuda Poliflex Jacquard Colméia","P-M-G-GG-EX",11.45]
[4149,"Bermuda Poliflex Jacquard Favinho","P-M-G-GG-EX",11.5]
[4150,"Shorts Ad. Poliflex Jacquard Colméia","P-M-G-GG-EX",11.55]
[4151,"Regata Nadador Polifitness Liso","P-M-G-GG-EX",11.6]
[4152,"Regata Nadador Viscolycra Lisa com estampa fitness","P-M-G-GG-EX",11.65]
[4153,"Shorts PoliFitness sobreposto Dry","P-M-G-GG-EX",11.7]
[4154,"Shorts Saia Polifitness Liso com babado lateral ","P-M-G-GG-EX",11.75]
[4155,"Top Nadador Polifitness Liso com Bojo","P-M-G-GG-EX",11.8]
[4156,"Shorts Saia Polifitness Estampado com babado lateral ","P-M-G-GG-EX",11.85]
[4157,"Blusa Bata Liganete com cordão e ponteiras","P-M-G-GG-EX",11.9]
[4158,"Vestido Longo Viscolycra Estampada","P-M-G-GG-EX",11.95]
[4159,"Vestido Longo Viscolycra Lisa com detalhe metal","P-M-G-GG-EX",12]
[4160,"Vestido Viscolycra Est. alça e decote renda guipir","P-M-G-GG-EX",12.05]
[4161,"Vestido Viscolycra Est. manga japonesa com punho","P-M-G-GG-EX",12.1]
[4162,"Vestido Viscolycra Lisa Frente PP Sublimada","P-M-G-GG-EX",12.15]
[4163,"Vestido Chemisier Viscolycra Estampada ","P-M-G-GG-EX",12.2]
[4164,"Blusa Viscolycra est. ciganinha tomara que caia com babado","P-M-G-GG-EX",12.25]
[4165,"Maria João Crepe com botões","P-M-G-GG-EX",12.3]
[4166,"Blusa Viscolycra Lisa com Tule e Pedras","P-M-G-GG-EX",12.35]
[4167,"Blusa Viscolycra lisa com punho manga e estampa ","P-M-G-GG-EX",12.4]
[4168,"Top Nadador Polifitness Estampado com Bojo","P-M-G-GG-EX",12.45]
[4169,"Vestido Chemisier Viscolycra Lisa com renda","P-M-G-GG-EX",12.5]
[4170,"Blusa Bata Viscolycra lisa anos 70 com bordado ","P-M-G-GG-EX",12.55]
[4171,"Vestido Viscolycra Lisa Anos 70 com bordado","P-M-G-GG-EX",12.6]
[4172,"Vestido Crepe Decote Nadador","P-M-G-GG-EX",12.65]
[4173,"Shorts Boxer Viscolycra Lisa com renda, cordão e ponteiras","P-M-G-GG-EX",12.7]
[4174,"Blusa Liganete renda guipir no decote e viés interno","P-M-G-GG-EX",12.75]
[4175,"Shorts Scuba Liso com recorte à laser","P-M-G-GG-EX",12.8]
[4176,"Shorts Suplex light estampado frizo e detalhe preto ","P-M-G-GG-EX",12.85]
[4177,"Blusa M. Curta Viscolycra lisa com renda, estampa, strass","P-M-G-GG-EX",12.9]
[4178,"Shorts Viscose Estampada com Bolsos","P-M-G-GG-EX",12.95]
[4179,"Shorts Scuba Liso com renda sobreposta","P-M-G-GG-EX",13]
[4180,"Regata Alcinha Viscolycra estampada renda guipir decote","P-M-G-GG-EX",13.05]
[4181,"Blusa Viscolycra estampada ciganinha alça e manguinha","P-M-G-GG-EX",13.1]
[4182,"Regata Viscolycra lisa com renda e franzido nas costas","P-M-G-GG-EX",13.15]
[4183,"Regata Liganete com Alça e decote de renda","P-M-G-GG-EX",13.2]
[4184,"Vestido Liganete Manga Japonesa viés interno","P-M-G-GG-EX",13.25]
[4185,"Vestido Liganete tipo regata com babado","P-M-G-GG-EX",13.3]
[4186,"Vestido Viscolycra estampada ciganinha com alcinha","P-M-G-GG-EX",13.35]
[4187,"Macaquinho regata liganete com bolsos","P-M-G-GG-EX",13.4]
[4188,"Calça liganete com bolsos","P-M-G-GG-EX",13.45]
[4189,"Macaquinho Viscolycra Est. Manga Japonesa Decote V","P-M-G-GG-EX",13.5]
[4190,"Macaquinho Viscolycra Lisa com recorte tule","P-M-G-GG-EX",13.55]
[4191,"Macaquinho Viscolycra Estampada Alça e recorte Tule","P-M-G-GG-EX",13.6]
[4192,"Shorts Saia Colmeia Bicolor","P-M-G-GG-EX",13.65]
[4193,"Top Com bojo Colmeia Bicolor","P-M-G-GG-EX",13.7]
[4194,"Blusa Ciganinha lisa tomara que caia com babado renda","P-M-G-GG-EX",13.75]
[4195,"Blusa Fitness Jacquard Light com recortes frontais","P-M-G-GG-EX",13.8]
[4196,"Blusa PoliFitness com recortes e transparência tule","P-M-G-GG-EX",13.85]
[4198,"Saia Skater Kloque Estampado","P-M-G-GG-EX",13.9]
[4199,"Top Polifitness Liso com bojo e recorte tule  ","P-M-G-GG-EX",13.95]
[4201,"Top Cirrê com bojo - Strappy","P-M-G-GG-EX",14]
[4202,"Saia Skater Malha Cotelê ","P-M-G-GG-EX",14.05]
[4203,"Saia Fashion Jeans com Botões na frente","P-M-G-GG-EX",14.1]
[5001,"Legging Ad. Montaria Poliflex ","P-M-G-GG-EX",14.15]
[5002,"Legging Ad. Poliflex - Apenas No Cinza Mescla ","P-M-G-GG-EX",14.2]
[5003,"Legging Adulto Cirrê","P-M-G-GG-EX",14.25]
[5004,"Blusa Cotton Light Decote V","P-M-G-GG-EX",14.3]
[5005,"Blusa Cotton Light Gola Alta","P-M-G-GG-EX",14.35]
[5006,"Camisete Estampado Tricolight","P-M-G-GG-EX",14.4]
[5007,"Blusa Liganete Manga 3/4","P-M-G-GG-EX",14.45]
[5008,"Blusa Liganete M.Longa Com Drapeado","P-M-G-GG-EX",14.5]
[5009,"Blusa Viscolycra Pp Com Estampa","P-M-G-GG-EX",14.55]
[5010,"Blusa Ribana Decote V ","P-M-G-GG-EX",14.6]
[5011,"Blusa Viscolycra Pp Manga 3/4 Com Botões","P-M-G-GG-EX",14.65]
[5012,"Blazer Ad. Fem. Plush Mescla","P-M-G-GG-EX",14.7]
[5013,"Calça Senhora Veludo Cotelê","P-M-G-GG-EX",14.75]
[5014,"Blazer Ad. Fem. Veludo Cotelê","P-M-G-GG-EX",14.8]
[5015,"Legging Adulto Veludo Cotelê","P-M-G-GG-EX",14.85]
[5016,"Calça Veludo Liso Com Bolso","P-M-G-GG-EX",14.9]
[5017,"Casaquinho Inf. Masc. Veludo Molhado Com Bordado","2-4-6-8",14.95]
[5018,"Calça Inf. Masc. Veludo Molhado","2-4-6-8",15]
[5019,"Casaquinho Inf. Fem. Veludo Molhado Com Botões","2-4-6-8",15.049999999999899]
[5020,"Calça Inf. Fem. Veludo Molhado","2-4-6-8",15.1]
[5021,"Legging Juvenil Gflex Liso","10-12-14-16",15.15]
[5022,"Sobretudo Juvenil Veludo Molhado","10-12-14-16",15.1999999999999]
[5023,"Blusa Juvenil Básica Ribana","10-12-14-16",15.249999999999901]
[5024,"Calça Ad. Lisa Cotton 8%","P-M-G-GG-EX",15.299999999999899]
[5025,"Camisete Lisa Viscolycra Pp Com Botões Spike","P-M-G-GG-EX",15.35]
[5026,"Bolero Ad. Veludo Molhado","P-M-G-GG-EX",15.399999999999901]
[5027,"Calça Ad. Liganete Estampada Com Bolso","P-M-G-GG-EX",15.4499999999999]
[5028,"Legging Juvenil Cirrê","10-12-14-16",15.499999999999901]
[5029,"Legging Adulto Safari","P-M-G-GG-EX",15.549999999999899]
[5030,"Calça Legging Gorgurinho Montaria Com Bolsos","P-M-G-GG-EX",15.5999999999999]
[5031,"Legging Ad. Poliflex Com Faixa Cirrê","P-M-G-GG-EX",15.649999999999901]
[5032,"Calça Legging Gorgurinho Cós Largo E Botões","P-M-G-GG-EX",15.6999999999999]
[5033,"Legging Ad. Poliflex Básica Com Cós Largo","P-M-G-GG-EX",15.749999999999901]
[5034,"Blusa M. Longa Viscolycra PP - Frente Estampa Sublimática","P-M-G-GG-EX",15.799999999999899]
[5035,"Camisete M. Longa Viscolycra Estampada","P-M-G-GG-EX",15.8499999999999]
[null,"Legging Poliflex Estampado","P-M-G-GG-EX",15.899999999999901]
[5037,"Blusa M. Longa Viscolycra Mescla Com Franzido Na Manga","P-M-G-GG-EX",15.9499999999999]
[5038,"Blusa M. Longa Viscolycra Estampada Com Babado","P-M-G-GG-EX",15.999999999999901]
[5039,"Blusa M. Longa Viscolycra Com Estampa E Filete Duplo","P-M-G-GG-EX",16.049999999999901]
[5040,"Blusa Ribana Lisa Com Peitilho E Botões","P-M-G-GG-EX",16.099999999999898]
[5041,"Moletom Adulto Fem. Com Estampa","P-M-G-GG-EX",16.149999999999899]
[5042,"Legging Juvenil Poliflex Montaria","10-12-14-16",16.1999999999999]
[5043,"Blusa Juvenil Viscolycra PP Franzido Manga E Sublimação","10-12-14-16",16.249999999999901]
[5044,"Blusa Juvenil Viscolycra PP Lisa C/ Strass E Babado","10-12-14-16",16.299999999999901]
[5045,"Sobretudo Adulto Plush Abotoamento Duplo E Bolsos","P-M-G-GG-EX",16.349999999999898]
[5046,"Calça Juvenil Feminina Plush ","10-12-14-16",16.399999999999899]
[5047,"Calça Juvenil Masculina Plush ","10-12-14-16",16.4499999999999]
[5048,"Legging Saia Ad. Poliflex Liso","P-M-G-GG-EX",16.499999999999901]
[5049,"Moletom Juvenil Fem. Com Estampa","10-12-14-16",16.549999999999901]
[5050,"Blusa M. Longa Viscolycra PP Com Strass No Decote","P-M-G-GG-EX",16.599999999999898]
[5051,"Blusa M. Longa Viscolycra PP Frente Liganete Estampada","P-M-G-GG-EX",16.649999999999899]
[5052,"Camisete Viscolycra PP Lisa Com Bolso","P-M-G-GG-EX",16.6999999999999]
[5053,"Camisete Viscolycra Estampada - Estampas Em Xadrez","P-M-G-GG-EX",16.749999999999901]
[5054,"Legging Saia Ad. Poliflex Estampado","P-M-G-GG-EX",16.799999999999901]
[5055,"Legging Ad. Sublimada Tecido Poliflex","P-M-G-GG-EX",16.849999999999898]
[5056,"Saia Longa Viscolycra Lisa","P-M-G-GG-EX",16.899999999999899]
[5057,"Saia Longa Viscolycra Estampada","P-M-G-GG-EX",16.9499999999999]
[5058,"Blusa M. Longa Viscolycra PP Decote V E Franzido","P-M-G-GG-EX",16.999999999999901]
[5059,"Legging Poliflex Montaria Com Recorte No Joelho","P-M-G-GG-EX",17.049999999999901]
[5060,"Blazer Scuba Estampado","P-M-G-GG-EX",17.099999999999898]
[5061,"Cardigã Lã Lisa","P-M-G-GG-EX",17.149999999999899]
[5062,"Blazer Scuba Liso","P-M-G-GG-EX",17.1999999999999]
[5063,"Cardigã Lã Estampada","P-M-G-GG-EX",17.249999999999901]
[5064,"Blazer Moletinho peluciado com bolsos","P-M-G-GG-EX",17.299999999999901]
[5065,"Legging Scuba Liso Montaria com bolso ","P-M-G-GG-EX",17.349999999999898]
[5066,"Blusa Sobrelegging Viscolycra Estampada com peitilho","P-M-G-GG-EX",17.399999999999899]
[5067,"Blusa Básica manga longa Lã lisa","P-M-G-GG-EX",17.4499999999999]
[5068,"Blusa Viscolycra Lisa com peitilho e detalhe na manga","P-M-G-GG-EX",17.499999999999901]
[5069,"Vestido Viscolycra estampada estilo Camisete M. Longa ","P-M-G-GG-EX",17.549999999999901]
[5070,"Vestido Manga 3/4 Viscolycra estampada c/ recortes ","P-M-G-GG-EX",17.599999999999898]
[5071,"Legging Poliflex Jacquard Colmeia","P-M-G-GG-EX",17.649999999999899]
[5072,"Calça Scuba Estampado com bolsos","P-M-G-GG-EX",17.6999999999999]
[5073,"Calça Viscolycra Estampada Com pregas e bolsos","P-M-G-GG-EX",17.749999999999901]
[5074,"Calça Scuba Liso com bolsos","P-M-G-GG-EX",17.799999999999901]
[5075,"Vestido Ad. Viscolycra Lisa Decote V. Manga 3/4","P-M-G-GG-EX",17.849999999999898]
[5076,"Blusa básica lã estampada manga longa","P-M-G-GG-EX",17.899999999999899]
[5077,"Blusa M. longa Viscolycra Lisa c/ detalhe renda e estampa","P-M-G-GG-EX",17.9499999999999]
[5078,"Blusa M. longa Viscolycra Lisa c/ detalhe renda","P-M-G-GG-EX",17.999999999999901]
[5079,"Blusa M. L. Viscolycra Lisa Decote jateado renda e pérolas","P-M-G-GG-EX",18.049999999999901]
[5080,"Blusa M. Curta Viscolycra Lisa Degradê Renda","P-M-G-GG-EX",18.099999999999898]
[5081,"Legging Scuba Estampado com faixa lateral lisa","P-M-G-GG-EX",18.149999999999899]
[5082,"Legging Poliflex Jacquard Favinho","P-M-G-GG-EX",18.1999999999999]
[5083,"Vestido Juvenil Viscolycra Estampada","10-12-14-16",18.249999999999901]
[5084,"Legging Juvenil Poliflex Peluciado","10-12-14-16",18.299999999999901]
[5085,"Macacão Viscolycra Estampada manga Haglã","P-M-G-GG-EX",18.349999999999898]
[5086,"Macacão Viscolycra Lisa Frente Transpassada","P-M-G-GG-EX",18.399999999999899]
[5087,"Legging Courinho Cirrê","P-M-G-GG-EX",18.4499999999999]
[5089,"Calça Viscolycra lisa com bolsos","P-M-G-GG-EX",18.499999999999901]
[5090,"Blusa Militar Viscolycra Lisa gola redonda e bolsos c/ lapela","P-M-G-GG-EX",18.549999999999901]
[5091,"Camisete Fashion Jeans Liso com tule bordado","P-M-G-GG-EX",18.599999999999898]
[5092,"Blusa Viscolycra Botonê manga Sino decote V pregas","P-M-G-GG-EX",18.649999999999899]
[5093,"Blusa Viscolycra Diamante Franzida e Manga Bufante","P-M-G-GG-EX",18.6999999999999]
[5094,"Camisete Fashion Jeans Estampado com Lapelas e botões","P-M-G-GG-EX",18.749999999999901]
[5095,"Suéter Lã lisa com decote, recorte e bolso em cirrê","P-M-G-GG-EX",18.799999999999901]
[5096,"Suéter Moletom Tweed c/ recorte nas mangas e bolso","P-M-G-GG-EX",18.849999999999898]
[5097,"Blusa M. Longa Viscolycra Lisa com bordado anos 70","P-M-G-GG-EX",18.899999999999899]
[5099,"Colete Feminino Malha Cotelê","P-M-G-GG-EX",18.9499999999999]
[5100,"Blusa M. Longa Viscolycra Lisa com Guipir Decote","P-M-G-GG-EX",18.999999999999901]
[5101,"Legging Poliflex Jacquard Tree Bicolor","P-M-G-GG-EX",19.049999999999901]
[5102,"Blusa Laço Viscolycra Diamante com renda nas costas","P-M-G-GG-EX",19.099999999999898]
[5103,"Camisete Sobrelegging Viscolycra lisa com lapelas","P-M-G-GG-EX",19.149999999999899]
[5104,"Jaqueta Moleton Tweed Gola careca com bolsos","P-M-G-GG-EX",19.1999999999999]
[5105,"Camisete Sobrelegging Viscolycra estampada com lapelas","P-M-G-GG-EX",19.249999999999901]
[5106,"Cardigã Frente Aberta Lã Lisa                                                      ","P-M-G-GG-EX",19.299999999999901]
[5107,"Calça Ponto roma com bolsos atrás","P-M-G-GG-EX",19.349999999999898]
[5108,"Calça Legging Ponto Roma com Courinho e Zíper Barra Perna","P-M-G-GG-EX",19.399999999999899]
[5109,"Legging Malha 3D com zíper superior Lateral","P-M-G-GG-EX",19.4499999999999]
[5110,"Calça Flare Jaquard Estampado com bolsos","P-M-G-GG-EX",19.499999999999901]
[5111,"Cardigã sobrelegging Lã Lisa decote V","P-M-G-GG-EX",19.549999999999901]
[5112,"Calça Flare Malha 3D com bolsos","P-M-G-GG-EX",19.599999999999898]
[5113,"Legging Poliflex com recortes coloridos e filete","P-M-G-GG-EX",19.649999999999899]
[5114,"Legging Cirre Estampada com recorte Tule","P-M-G-GG-EX",19.6999999999999]
[5115,"Blazer Moletom Maquinetado","P-M-G-GG-EX",19.749999999999901]
[5116,"Legging Poliflex com recortes laterais em Mescla e tule","P-M-G-GG-EX",19.799999999999901]
[5117,"Legging Poliflex Lisa com recorte tule","P-M-G-GG-EX",19.849999999999898]
[5118,"Vestido Jacquard estampado manga flare anos 70 ","P-M-G-GG-EX",19.899999999999899]
[5119,"Vestido Crepe Liso com pala e mangas em renda","P-M-G-GG-EX",19.9499999999999]
[5120,"Vestido Viscolycra Est. Manga 3/4 com guipir decote","P-M-G-GG-EX",19.999999999999901]
[5121,"Calça Senhora Cotelê","P-M-G-GG-EX",20.049999999999901]
[5122,"Calça Ad. Fashion Jeans com bolsos atrás","P-M-G-GG-EX",20.099999999999898]
[5123,"Cardigã frente aberta Lã estampada","P-M-G-GG-EX",20.149999999999899]
[6002,"Blusa Liganete Manga Haglã ","G2-G3-G4",20.1999999999999]
[6003,"Blusa Liganete manga curta e decote transpassado","G2-G3-G4",20.249999999999901]
[6004,"Blusa Viscolycra Lisa Manga Haglã com recorte Liganete","G2-G3-G4",20.299999999999901]
[6005,"Bermuda Plus Size Gorgurinho com racha e bolsos","G2-G3-G4",20.349999999999898]
[6006,"Bermuda Elanca Lisa Plus Size","G2-G3-G4",20.399999999999899]
[6007,"Blazer Scuba Liso com bolsos - Plus Size","G2-G3-G4",20.4499999999999]
[6008,"Camisete Viscolycra Estampado Plus Size","G2-G3-G4",20.499999999999901]
[6009,"Calça Ad. Elanca Lisa Plus Size","G2-G3-G4",20.549999999999901]
[6010,"Calça Elanca Peluciada Plus Size","G2-G3-G4",20.599999999999898]
[6011,"Blusa M. Longa Viscolycra lisa com renda e estampa - Plus Size","G2-G3-G4",20.649999999999899]
[6012,"Legging Scuba Liso Cós Alto Montaria - Plus Size","G2-G3-G4",20.6999999999999]
[6013,"Calça Scuba Liso cós alto com bolsos - Plus Size","G2-G3-G4",20.749999999999901]
[6014,"Blusa Viscolycra Lisa c/ peitilho e detalhe manga - Plus Size","G2-G3-G4",20.799999999999901]
[6015,"Vestido Liganete manga haglã viés interno Plus Size","G2-G3-G4",20.849999999999898]
[6016,"Vestido Chemisier Viscolycra Lisa com renda Plus Size","G2-G3-G4",20.899999999999899]
[6017,"Vestido Viscolycra estampada decote V Plus Size","G2-G3-G4",20.9499999999999]
[6018,"Vestido Liganete Básico Tipo regata Plus Size","G2-G3-G4",20.999999999999901]
[6019,"Blusa Viscolycra lisa com renda e peitilho Plus Size","G2-G3-G4",21.049999999999901]
[6020,"Blusa Bata Viscolycra est. com amarração decote Plus Size","G2-G3-G4",21.099999999999898]
[6021,"Blusa Viscolycra Lisa com strass na manga Plus Size","G2-G3-G4",21.149999999999899]
[6022,"Regata Básica Liganete Estampada Plus Size","G2-G3-G4",21.1999999999999]
[6023,"Blusa Liganete guipir no decote e viés interno Plus Size","G2-G3-G4",21.249999999999901]
[6024,"Camisete Viscolycra Estampada Plus Size","G2-G3-G4",21.299999999999901]
[6025,"Maria joão Cotton Jeans com botões Plus Size","G2-G3-G4",21.349999999999898]
[6026,"Maria João Crepe com martingale e botões Plus Size","G2-G3-G4",21.399999999999899]
[6027,"Blusa Laço Viscolycra Diamante","G2-G3-G4",21.4499999999999]
[6028,"Blusa Bata Viscolycra Lisa com babado manga e ponteiras","G2-G3-G4",21.499999999999901]
[6029,"Blusa Botonê com pregas decote V manga sino","G2-G3-G4",21.549999999999901]
[6030,"Cardigã Lã Lisa frente aberta","G2-G3-G4",21.599999999999898]
[6031,"Vestido Crepe Liso com pala e mangas de renda ","G2-G3-G4",21.649999999999899]
[6032,"Cardigã Jacquard Estampado frente aberta","G2-G3-G4",21.6999999999999]
[6033,"Blusa M. Longa Viscolycra Lisa com guipir da cor no decote","G2-G3-G4",21.749999999999901]
[6034,"Blusa M. Longa Viscolycra Est. Com tule e peitilho botões","G2-G3-G4",21.799999999999901]
[6035,"Blusa Viscolycra Lisa com pala e detalhe nas mangas em renda","G2-G3-G4",21.849999999999898]
[6036,"Camisete Viscolycra Lisa","G2-G3-G4",21.899999999999899]
[6037,"Legging Poliflex Básica cós alto","G2-G3-G4",21.9499999999999]
[6038,"Calça Ponto Roma com bolsos costas","G2-G3-G4",21.999999999999901]
[6039,"Calça Flare Malha 3D com bolsos frontais","G2-G3-G4",22.049999999999901]
[6040,"Legging Poliflex cós alto com faixa cirrê","G2-G3-G4",22.099999999999898]
[6041,"Calça Cotton Jeans ","G2-G3-G4",22.149999999999899]
[9001,"Blusa Liganete Meia Manga Com Franzido Tam. Nobre","G2-G3-G4",22.1999999999999]
[9002,"Blusa Liganete M. Longa Gola Drapeada Tam. Nobre","G2-G3-G4",22.249999999999901]
[9004,"Calça Fem. Ad. Cotton Jeans Tam. Nobre","G2-G3-G4",22.299999999999901]
[9005,"Legging Ad. Gflex - Tam. Nobre","G2-G3-G4",22.349999999999898]
[9006,"Camisete Fem. Ribana Estampada Tam. Nobre","G2-G3-G4",22.399999999999899]
[9007,"Jaqueta Fem. Plush Liso C/ Bordado -  Tam. Nobre","G2-G3-G4",22.4499999999999]
[9008,"Calça Fem. Plush Liso - Tam. Nobre","G2-G3-G4",22.499999999999901]